ORGANISATION NAME,EFEFCTIVE DATE,DIRECTORATE,SUPPLIER NAME,DATE PAID,AMOUNT (�),PURPOSE,TRANSACTION No.
ROCHDALE BOROUGH COUNCIL,27/11/2020,NEIGHBOURHOODS AND ENVIRONMENT,PATTERSONS BRISTOL LTD,27/11/2020,109.36,CLEANING MATERIALS,V001516974
ROCHDALE BOROUGH COUNCIL,27/11/2020,NEIGHBOURHOODS AND ENVIRONMENT,PATTERSONS BRISTOL LTD,27/11/2020,120.88,CLEANING MATERIALS,V001541167
ROCHDALE BOROUGH COUNCIL,27/11/2020,NEIGHBOURHOODS AND ENVIRONMENT,PATTERSONS BRISTOL LTD,27/11/2020,63.12,CLEANING MATERIALS,V001542179
ROCHDALE BOROUGH COUNCIL,02/11/2020,ECONOMY DIRECTORATE,TRANSPORT FOR GREATER MANCHESTER,02/11/2020,2950,CONSULTANTS FEES,V001542646
ROCHDALE BOROUGH COUNCIL,20/11/2020,ECONOMY DIRECTORATE,TRANSPORT FOR GREATER MANCHESTER,20/11/2020,7499.95,CONSULTANTS FEES,V001546440
ROCHDALE BOROUGH COUNCIL,20/11/2020,ECONOMY DIRECTORATE,TRANSPORT FOR GREATER MANCHESTER,20/11/2020,56850.05,CONSULTANTS FEES,V001546440
ROCHDALE BOROUGH COUNCIL,06/11/2020,CHILDREN�S SOCIAL CARE,JULIE STIRPE ASSOCIATES LIMITED,06/11/2020,-831.4,ACTIVITIES,V001557771
ROCHDALE BOROUGH COUNCIL,27/11/2020,CHILDREN�S SOCIAL CARE,MILLENNIUM TRANSLATIONS LTD,27/11/2020,96,TRANSLATION & INTERPRETATION,V001563511
ROCHDALE BOROUGH COUNCIL,20/11/2020,CHILDREN�S SOCIAL CARE,ENABLING FUTURES LTD,20/11/2020,10457.14,EBD (EMOT & BEHAV DIFF) PLACEMENTS,V001577906
ROCHDALE BOROUGH COUNCIL,06/11/2020,CHILDREN�S SOCIAL CARE,JULIE STIRPE ASSOCIATES LIMITED,06/11/2020,291.2,ACTIVITIES,V001578010
ROCHDALE BOROUGH COUNCIL,06/11/2020,CHILDREN�S SOCIAL CARE,JULIE STIRPE ASSOCIATES LIMITED,06/11/2020,291.2,ACTIVITIES,V001578011
ROCHDALE BOROUGH COUNCIL,06/11/2020,CHILDREN�S SOCIAL CARE,JULIE STIRPE ASSOCIATES LIMITED,06/11/2020,-120,ACTIVITIES,V001578505
ROCHDALE BOROUGH COUNCIL,06/11/2020,CHILDREN�S SOCIAL CARE,JULIE STIRPE ASSOCIATES LIMITED,06/11/2020,-228.05,ACTIVITIES,V001578506
ROCHDALE BOROUGH COUNCIL,12/11/2020,PROPERTY AND HIGHWAYS,REACH PUBLISHING SERVICES LTD,12/11/2020,50.67,ADVERTISING,V001583710
ROCHDALE BOROUGH COUNCIL,09/11/2020,NEIGHBOURHOODS AND ENVIRONMENT,ALLIANCE DISPOSABLES LIMITED,09/11/2020,172.5,EQUIPMENT - GENERAL,V001584137
ROCHDALE BOROUGH COUNCIL,10/11/2020,ECONOMY DIRECTORATE,ROCHDALE OCCUPATIONAL HEALTH SERVICE LTD,10/11/2020,150,TRAINING,V001584180
ROCHDALE BOROUGH COUNCIL,06/11/2020,ADULT CARE LCO FUNCTIONS, FAIRHOME CARE PLC,06/11/2020,1500,RESIDENTIAL LONG TERM,V001584589
ROCHDALE BOROUGH COUNCIL,06/11/2020,ADULT CARE LCO FUNCTIONS, FAIRHOME CARE PLC,06/11/2020,-565.71,RESIDENTIAL LONG TERM,V001584830
ROCHDALE BOROUGH COUNCIL,06/11/2020,ADULT CARE LCO FUNCTIONS, FAIRHOME CARE PLC,06/11/2020,-1320,RESIDENTIAL LONG TERM,V001584831
ROCHDALE BOROUGH COUNCIL,06/11/2020,ADULT CARE LCO FUNCTIONS, FAIRHOME CARE PLC,06/11/2020,-1320,RESIDENTIAL LONG TERM,V001584832
ROCHDALE BOROUGH COUNCIL,06/11/2020,ADULT CARE LCO FUNCTIONS, FAIRHOME CARE PLC,06/11/2020,-1320,RESIDENTIAL LONG TERM,V001584833
ROCHDALE BOROUGH COUNCIL,16/11/2020,EARLY HELP AND SCHOOLS,MILLENNIUM TRANSLATIONS LTD,16/11/2020,70.1,TRANSLATION & INTERPRETATION,V001586013
ROCHDALE BOROUGH COUNCIL,09/11/2020,CHILDREN�S SOCIAL CARE,MILLENNIUM TRANSLATIONS LTD,09/11/2020,48,TRANSLATION & INTERPRETATION,V001586014
ROCHDALE BOROUGH COUNCIL,27/11/2020,NEIGHBOURHOODS AND ENVIRONMENT,PATTERSONS BRISTOL LTD,27/11/2020,-3.93,CONSUMABLES,V001586356
ROCHDALE BOROUGH COUNCIL,27/11/2020,CHILDREN�S SOCIAL CARE,MILLENNIUM TRANSLATIONS LTD,27/11/2020,72,TRANSLATION & INTERPRETATION,V001586360
ROCHDALE BOROUGH COUNCIL,27/11/2020,CHILDREN�S SOCIAL CARE,MILLENNIUM TRANSLATIONS LTD,27/11/2020,60,TRANSLATION & INTERPRETATION,V001588488
ROCHDALE BOROUGH COUNCIL,23/11/2020,ECONOMY DIRECTORATE,CFA ARCHAEOLOGY LTD,23/11/2020,4455,MINOR BUILDING WORKS,V001594764
ROCHDALE BOROUGH COUNCIL,06/11/2020,ADULT CARE LCO FUNCTIONS, FAIRHOME CARE PLC,06/11/2020,1500,RESIDENTIAL LONG TERM,V001598239
ROCHDALE BOROUGH COUNCIL,25/11/2020,ECONOMY DIRECTORATE,BANNER GROUP LIMITED,25/11/2020,271.29,PRINTING & STATIONERY,V001601676
ROCHDALE BOROUGH COUNCIL,13/11/2020,NEIGHBOURHOODS AND ENVIRONMENT,TEACRATE RENTALS LTD,13/11/2020,176,REMOVAL EXPENDITURE,V001601678
ROCHDALE BOROUGH COUNCIL,26/11/2020,CHILDREN�S SOCIAL CARE,MILLENNIUM TRANSLATIONS LTD,26/11/2020,42.8,TRANSLATION & INTERPRETATION,V001602414
ROCHDALE BOROUGH COUNCIL,10/11/2020,EARLY HELP AND SCHOOLS,TARGET FIRE PROTECTION LTD,10/11/2020,597.08,MINOR BUILDING WORKS,V001602524
ROCHDALE BOROUGH COUNCIL,23/11/2020,PROPERTY AND HIGHWAYS,ELECTRIC CENTER,23/11/2020,10.55,PROPERTY - WORKS ELEMENT,V001603156
ROCHDALE BOROUGH COUNCIL,06/11/2020,ADULT CARE LCO FUNCTIONS, FAIRHOME CARE PLC,06/11/2020,1500,RESIDENTIAL LONG TERM,V001603556
ROCHDALE BOROUGH COUNCIL,27/11/2020,NEIGHBOURHOODS AND ENVIRONMENT,PATTERSONS BRISTOL LTD,27/11/2020,4,CLEANING EQUIPMENT,V001604609
ROCHDALE BOROUGH COUNCIL,27/11/2020,NEIGHBOURHOODS AND ENVIRONMENT,PATTERSONS BRISTOL LTD,27/11/2020,3.48,CLEANING MATERIALS,V001604609
ROCHDALE BOROUGH COUNCIL,27/11/2020,NEIGHBOURHOODS AND ENVIRONMENT,PATTERSONS BRISTOL LTD,27/11/2020,10.8,CLEANING EQUIPMENT,V001604609
ROCHDALE BOROUGH COUNCIL,27/11/2020,NEIGHBOURHOODS AND ENVIRONMENT,PATTERSONS BRISTOL LTD,27/11/2020,10.8,CLEANING EQUIPMENT,V001604609
ROCHDALE BOROUGH COUNCIL,27/11/2020,NEIGHBOURHOODS AND ENVIRONMENT,PATTERSONS BRISTOL LTD,27/11/2020,2.51,CLEANING EQUIPMENT,V001604609
ROCHDALE BOROUGH COUNCIL,27/11/2020,NEIGHBOURHOODS AND ENVIRONMENT,PATTERSONS BRISTOL LTD,27/11/2020,2.02,CLEANING MATERIALS,V001604609
ROCHDALE BOROUGH COUNCIL,27/11/2020,NEIGHBOURHOODS AND ENVIRONMENT,PATTERSONS BRISTOL LTD,27/11/2020,5.7,CLEANING MATERIALS,V001604609
ROCHDALE BOROUGH COUNCIL,27/11/2020,NEIGHBOURHOODS AND ENVIRONMENT,PATTERSONS BRISTOL LTD,27/11/2020,18.5,CLEANING EQUIPMENT,V001604609
ROCHDALE BOROUGH COUNCIL,27/11/2020,NEIGHBOURHOODS AND ENVIRONMENT,PATTERSONS BRISTOL LTD,27/11/2020,18.5,CLEANING EQUIPMENT,V001604609
ROCHDALE BOROUGH COUNCIL,27/11/2020,NEIGHBOURHOODS AND ENVIRONMENT,PATTERSONS BRISTOL LTD,27/11/2020,7.1,CLEANING EQUIPMENT,V001604609
ROCHDALE BOROUGH COUNCIL,27/11/2020,NEIGHBOURHOODS AND ENVIRONMENT,PATTERSONS BRISTOL LTD,27/11/2020,31.88,CLEANING EQUIPMENT,V001604609
ROCHDALE BOROUGH COUNCIL,27/11/2020,NEIGHBOURHOODS AND ENVIRONMENT,PATTERSONS BRISTOL LTD,27/11/2020,19.04,CLEANING EQUIPMENT,V001604609
ROCHDALE BOROUGH COUNCIL,27/11/2020,NEIGHBOURHOODS AND ENVIRONMENT,PATTERSONS BRISTOL LTD,27/11/2020,14.1,CLEANING MATERIALS,V001604609
ROCHDALE BOROUGH COUNCIL,27/11/2020,NEIGHBOURHOODS AND ENVIRONMENT,PATTERSONS BRISTOL LTD,27/11/2020,4.54,CLEANING MATERIALS,V001604609
ROCHDALE BOROUGH COUNCIL,27/11/2020,NEIGHBOURHOODS AND ENVIRONMENT,PATTERSONS BRISTOL LTD,27/11/2020,12.08,CLEANING MATERIALS,V001604609
ROCHDALE BOROUGH COUNCIL,27/11/2020,NEIGHBOURHOODS AND ENVIRONMENT,PATTERSONS BRISTOL LTD,27/11/2020,14.56,CLEANING MATERIALS,V001604609
ROCHDALE BOROUGH COUNCIL,27/11/2020,NEIGHBOURHOODS AND ENVIRONMENT,PATTERSONS BRISTOL LTD,27/11/2020,3.34,CLEANING MATERIALS,V001604609
ROCHDALE BOROUGH COUNCIL,27/11/2020,NEIGHBOURHOODS AND ENVIRONMENT,PATTERSONS BRISTOL LTD,27/11/2020,7.38,CLEANING MATERIALS,V001604609
ROCHDALE BOROUGH COUNCIL,27/11/2020,NEIGHBOURHOODS AND ENVIRONMENT,PATTERSONS BRISTOL LTD,27/11/2020,18.8,CLEANING MATERIALS,V001604609
ROCHDALE BOROUGH COUNCIL,27/11/2020,NEIGHBOURHOODS AND ENVIRONMENT,PATTERSONS BRISTOL LTD,27/11/2020,30,CLEANING EQUIPMENT,V001604609
ROCHDALE BOROUGH COUNCIL,27/11/2020,NEIGHBOURHOODS AND ENVIRONMENT,PATTERSONS BRISTOL LTD,27/11/2020,29.8,CLEANING MATERIALS,V001604609
ROCHDALE BOROUGH COUNCIL,27/11/2020,NEIGHBOURHOODS AND ENVIRONMENT,PATTERSONS BRISTOL LTD,27/11/2020,43.08,CONSUMABLES,V001604609
ROCHDALE BOROUGH COUNCIL,27/11/2020,NEIGHBOURHOODS AND ENVIRONMENT,PATTERSONS BRISTOL LTD,27/11/2020,6.74,CLEANING MATERIALS,V001604609
ROCHDALE BOROUGH COUNCIL,27/11/2020,NEIGHBOURHOODS AND ENVIRONMENT,PATTERSONS BRISTOL LTD,27/11/2020,6.74,CLEANING MATERIALS,V001604609
ROCHDALE BOROUGH COUNCIL,27/11/2020,NEIGHBOURHOODS AND ENVIRONMENT,PATTERSONS BRISTOL LTD,27/11/2020,2.52,CLEANING MATERIALS,V001604609
ROCHDALE BOROUGH COUNCIL,27/11/2020,NEIGHBOURHOODS AND ENVIRONMENT,PATTERSONS BRISTOL LTD,27/11/2020,2.52,CLEANING MATERIALS,V001604609
ROCHDALE BOROUGH COUNCIL,27/11/2020,NEIGHBOURHOODS AND ENVIRONMENT,PATTERSONS BRISTOL LTD,27/11/2020,2.86,CLEANING MATERIALS,V001604609
ROCHDALE BOROUGH COUNCIL,27/11/2020,NEIGHBOURHOODS AND ENVIRONMENT,PATTERSONS BRISTOL LTD,27/11/2020,2.86,CLEANING MATERIALS,V001604609
ROCHDALE BOROUGH COUNCIL,27/11/2020,NEIGHBOURHOODS AND ENVIRONMENT,PATTERSONS BRISTOL LTD,27/11/2020,24.2,CLEANING EQUIPMENT,V001604609
ROCHDALE BOROUGH COUNCIL,10/11/2020,CHILDREN�S SOCIAL CARE,CRESTA WORLD TRAVEL LIMITED,10/11/2020,19.5,PUBLIC TRANSPORT,V001604623
ROCHDALE BOROUGH COUNCIL,10/11/2020,CHILDREN�S SOCIAL CARE,CRESTA WORLD TRAVEL LIMITED,10/11/2020,19.5,PUBLIC TRANSPORT,V001604625
ROCHDALE BOROUGH COUNCIL,10/11/2020,CHILDREN�S SOCIAL CARE,CRESTA WORLD TRAVEL LIMITED,10/11/2020,19.5,PUBLIC TRANSPORT,V001605029
ROCHDALE BOROUGH COUNCIL,27/11/2020,NEIGHBOURHOODS AND ENVIRONMENT,PATTERSONS BRISTOL LTD,27/11/2020,-1.81,CONSUMABLES,V001605095
ROCHDALE BOROUGH COUNCIL,27/11/2020,NEIGHBOURHOODS AND ENVIRONMENT,PATTERSONS BRISTOL LTD,27/11/2020,-52.6,CONSUMABLES,V001605096
ROCHDALE BOROUGH COUNCIL,09/11/2020,ECONOMY DIRECTORATE,CFA ARCHAEOLOGY LTD,09/11/2020,1390,MINOR BUILDING WORKS,V001605253
ROCHDALE BOROUGH COUNCIL,10/11/2020,PROPERTY AND HIGHWAYS,ABBEY ARCHITECTURAL IRONMONGERY CO LTD,10/11/2020,8.75,PROPERTY - WORKS ELEMENT,V001605300
ROCHDALE BOROUGH COUNCIL,10/11/2020,ECONOMY DIRECTORATE,ABC INDUSTRIAL DOORS LTD,10/11/2020,150.5,ELECTRICAL,V001606447
ROCHDALE BOROUGH COUNCIL,16/11/2020,CHILDREN�S SOCIAL CARE,BALTIMORE CONSULTING LTD,16/11/2020,3281.25,AGENCY STAFF,V001606602
ROCHDALE BOROUGH COUNCIL,20/11/2020,ECONOMY DIRECTORATE,FISHERS CLEANING SERVICES LIMITED,20/11/2020,225,CLEANING AND DOMESTIC SUPPLIES,V001606803
ROCHDALE BOROUGH COUNCIL,03/11/2020,NEIGHBOURHOODS AND ENVIRONMENT,TLC GARDEN SERVICES,03/11/2020,250,ENVIRONMENTAL WORKS LANDSCAPE,V001606816
ROCHDALE BOROUGH COUNCIL,10/11/2020,CHILDREN�S SOCIAL CARE,CARITAS CARE LTD,10/11/2020,4145.01,FOSTER PARENTS BASIC ALLOWANCE,V001606898
ROCHDALE BOROUGH COUNCIL,10/11/2020,CHILDREN�S SOCIAL CARE,CARITAS CARE LTD,10/11/2020,4145.01,FOSTER PARENTS BASIC ALLOWANCE,V001606898
ROCHDALE BOROUGH COUNCIL,20/11/2020,RESOURCES,CIVICA UK LIMITED,20/11/2020,95750,SOFTWARE,V001607101
ROCHDALE BOROUGH COUNCIL,10/11/2020,EARLY HELP AND SCHOOLS,ABC INDUSTRIAL DOORS LTD,10/11/2020,150.5,ELECTRICAL,V001607126
ROCHDALE BOROUGH COUNCIL,10/11/2020,ECONOMY DIRECTORATE,GENR8 ROCHDALE LTD,10/11/2020,630,CONSULTANTS FEES,V001607157
ROCHDALE BOROUGH COUNCIL,10/11/2020,ECONOMY DIRECTORATE,LAMBERT SMITH HAMPTON GROUP LTD,10/11/2020,682.5,CONDITION SURVEYS,V001607616
ROCHDALE BOROUGH COUNCIL,03/11/2020,PROPERTY AND HIGHWAYS,ELECTRIC CENTER,03/11/2020,48.97,PROPERTY - WORKS ELEMENT,V001610081
ROCHDALE BOROUGH COUNCIL,16/11/2020,CHILDREN�S SOCIAL CARE,BALTIMORE CONSULTING LTD,16/11/2020,983.46,AGENCY STAFF,V001610091
ROCHDALE BOROUGH COUNCIL,16/11/2020,CHILDREN�S SOCIAL CARE,BALTIMORE CONSULTING LTD,16/11/2020,1641.54,AGENCY STAFF,V001610091
ROCHDALE BOROUGH COUNCIL,23/11/2020,PROPERTY AND HIGHWAYS,LANCASHIRE LOCK AND SAFE COMPANY LIMITED,23/11/2020,20,PROPERTY - WORKS ELEMENT,V001610425
ROCHDALE BOROUGH COUNCIL,20/11/2020,RESOURCES,ZEN INTERNET LIMITED,20/11/2020,7.63,EYE TESTS  VDU USERS,V001611317
ROCHDALE BOROUGH COUNCIL,10/11/2020,ECONOMY DIRECTORATE,ROCHDALE OCCUPATIONAL HEALTH SERVICE LTD,10/11/2020,400,TRAINING-NON QUALIFICATION,V001611319
ROCHDALE BOROUGH COUNCIL,10/11/2020,NEIGHBOURHOODS AND ENVIRONMENT,CROMWELL POLYTHENE LIMITED,10/11/2020,1491.51,EQUIPMENT - GENERAL,V001611774
ROCHDALE BOROUGH COUNCIL,10/11/2020,NEIGHBOURHOODS AND ENVIRONMENT,CROMWELL POLYTHENE LIMITED,10/11/2020,735.99,EQUIPMENT - GENERAL,V001611774
ROCHDALE BOROUGH COUNCIL,10/11/2020,RESOURCES,FORBES SOLICITORS,10/11/2020,2074.14,INPUT VAT -  ADJUSTMENTS,V001611780
ROCHDALE BOROUGH COUNCIL,06/11/2020,EARLY HELP AND SCHOOLS,TEACHING PERSONNEL LTD,06/11/2020,296,OTHER LA`S - SEN PROVISION,V001611792
ROCHDALE BOROUGH COUNCIL,16/11/2020,CHILDREN�S SOCIAL CARE,ACORN HOUSE FOSTERING SERVICES LIMITED,16/11/2020,4221.3,FOSTER PARENTS BASIC ALLOWANCE,V001611942
ROCHDALE BOROUGH COUNCIL,16/11/2020,CHILDREN�S SOCIAL CARE,ACORN HOUSE FOSTERING SERVICES LIMITED,16/11/2020,3786.3,FOSTER PARENTS BASIC ALLOWANCE,V001611943
ROCHDALE BOROUGH COUNCIL,25/11/2020,NEIGHBOURHOODS AND ENVIRONMENT,ARCO GROUP LIMITED,25/11/2020,57.26,"CLOTHES, UNIFORM AND LAUNDRY",V001611959
ROCHDALE BOROUGH COUNCIL,25/11/2020,NEIGHBOURHOODS AND ENVIRONMENT,ARCO GROUP LIMITED,25/11/2020,57.26,"CLOTHES, UNIFORM AND LAUNDRY",V001611959
ROCHDALE BOROUGH COUNCIL,25/11/2020,NEIGHBOURHOODS AND ENVIRONMENT,ARCO GROUP LIMITED,25/11/2020,57.26,"CLOTHES, UNIFORM AND LAUNDRY",V001611959
ROCHDALE BOROUGH COUNCIL,17/11/2020,NEIGHBOURHOODS AND ENVIRONMENT,ALLIANCE DISPOSABLES LIMITED,17/11/2020,108,CLEANING EQUIPMENT,V001611999
ROCHDALE BOROUGH COUNCIL,25/11/2020,NEIGHBOURHOODS AND ENVIRONMENT,TEACRATE RENTALS LTD,25/11/2020,422.4,REMOVAL EXPENDITURE,V001612001
ROCHDALE BOROUGH COUNCIL,23/11/2020,PROPERTY AND HIGHWAYS,DDH FABRICATIONS LTD,23/11/2020,180,PROPERTY - WORKS ELEMENT,V001612720
ROCHDALE BOROUGH COUNCIL,13/11/2020,ECONOMY DIRECTORATE,BANNER GROUP LIMITED,13/11/2020,48.88,PRINTING & STATIONERY,V001612760
ROCHDALE BOROUGH COUNCIL,09/11/2020,CHILDREN�S SOCIAL CARE,EXCEL FOSTERING,09/11/2020,5357.1,FOSTER PARENTS BASIC ALLOWANCE,V001612808
ROCHDALE BOROUGH COUNCIL,23/11/2020,NEIGHBOURHOODS AND ENVIRONMENT,TREE HEROES LTD,23/11/2020,450,CONTRACTS,V001612856
ROCHDALE BOROUGH COUNCIL,23/11/2020,CHILDREN�S SOCIAL CARE,MILLENNIUM TRANSLATIONS LTD,23/11/2020,55.1,TRANSLATION & INTERPRETATION,V001612896
ROCHDALE BOROUGH COUNCIL,23/11/2020,PROPERTY AND HIGHWAYS,ELECTRIC CENTER,23/11/2020,14.48,PROPERTY - WORKS ELEMENT,V001613017
ROCHDALE BOROUGH COUNCIL,27/11/2020,CHILDREN�S SOCIAL CARE,MILLENNIUM TRANSLATIONS LTD,27/11/2020,48,TRANSLATION & INTERPRETATION,V001613036
ROCHDALE BOROUGH COUNCIL,27/11/2020,CHILDREN�S SOCIAL CARE,MILLENNIUM TRANSLATIONS LTD,27/11/2020,55.1,TRANSLATION & INTERPRETATION,V001613037
ROCHDALE BOROUGH COUNCIL,23/11/2020,ECONOMY DIRECTORATE,J C MILLS & SON LIMITED,23/11/2020,56,CENTRAL HEATING,V001613060
ROCHDALE BOROUGH COUNCIL,16/11/2020,PROPERTY AND HIGHWAYS,J C MILLS & SON LIMITED,16/11/2020,56,CENTRAL HEATING,V001613064
ROCHDALE BOROUGH COUNCIL,16/11/2020,PROPERTY AND HIGHWAYS,ELECTRIC CENTER,16/11/2020,76.61,PROPERTY - WORKS ELEMENT,V001613071
ROCHDALE BOROUGH COUNCIL,19/11/2020,PROPERTY AND HIGHWAYS,WATERMAN INFASTRUCTURE AND ENVIRONMENT LTD,19/11/2020,8315,ENGINEERS FEES,V001613082
ROCHDALE BOROUGH COUNCIL,23/11/2020,ADULT CARE LCO FUNCTIONS,SPIN PRINT SOLUTIONS,23/11/2020,78,IT EQUIPMENT,V001613083
ROCHDALE BOROUGH COUNCIL,23/11/2020,ADULT CARE LCO FUNCTIONS,SPIN PRINT SOLUTIONS,23/11/2020,9,IT EQUIPMENT,V001613083
ROCHDALE BOROUGH COUNCIL,20/11/2020,ECONOMY DIRECTORATE,ABC INDUSTRIAL DOORS LTD,20/11/2020,95.5,ELECTRICAL,V001613201
ROCHDALE BOROUGH COUNCIL,27/11/2020,CHILDREN�S SOCIAL CARE,MILLENNIUM TRANSLATIONS LTD,27/11/2020,53.3,TRANSLATION & INTERPRETATION,V001613203
ROCHDALE BOROUGH COUNCIL,23/11/2020,EARLY HELP AND SCHOOLS,POSITIVE STEPS,23/11/2020,33600,EXTERNALLY MANAGED FUNDS,V001613259
ROCHDALE BOROUGH COUNCIL,03/11/2020,ECONOMY DIRECTORATE,BLOOM PROCUREMENT SERVICES LTD,03/11/2020,1050,CONSULTANTS FEES,V001613310
ROCHDALE BOROUGH COUNCIL,16/11/2020,CHILDREN�S SOCIAL CARE,ACCESS TO CARE LTD,16/11/2020,802.29,YOUNG PEOPLES RENTS,V001613364
ROCHDALE BOROUGH COUNCIL,16/11/2020,CHILDREN�S SOCIAL CARE,ACCESS TO CARE LTD,16/11/2020,140.61,YOUNGE PERSONS ALLOWANCE,V001613364
ROCHDALE BOROUGH COUNCIL,03/11/2020,PROPERTY AND HIGHWAYS,ASHTEAD PLANT HIRE,03/11/2020,205,PROPERTY - WORKS ELEMENT,V001613446
ROCHDALE BOROUGH COUNCIL,03/11/2020,PROPERTY AND HIGHWAYS,ASHTEAD PLANT HIRE,03/11/2020,21,PROPERTY - WORKS ELEMENT,V001613446
ROCHDALE BOROUGH COUNCIL,26/11/2020,NEIGHBOURHOODS AND ENVIRONMENT,PATTERSONS BRISTOL LTD,26/11/2020,3.6,CLEANING EQUIPMENT,V001614950
ROCHDALE BOROUGH COUNCIL,26/11/2020,NEIGHBOURHOODS AND ENVIRONMENT,PATTERSONS BRISTOL LTD,26/11/2020,1.01,CLEANING MATERIALS,V001614950
ROCHDALE BOROUGH COUNCIL,26/11/2020,NEIGHBOURHOODS AND ENVIRONMENT,PATTERSONS BRISTOL LTD,26/11/2020,4.54,CLEANING MATERIALS,V001614950
ROCHDALE BOROUGH COUNCIL,26/11/2020,NEIGHBOURHOODS AND ENVIRONMENT,PATTERSONS BRISTOL LTD,26/11/2020,3.62,CLEANING MATERIALS,V001614950
ROCHDALE BOROUGH COUNCIL,26/11/2020,NEIGHBOURHOODS AND ENVIRONMENT,PATTERSONS BRISTOL LTD,26/11/2020,14.9,CLEANING MATERIALS,V001614950
ROCHDALE BOROUGH COUNCIL,26/11/2020,NEIGHBOURHOODS AND ENVIRONMENT,PATTERSONS BRISTOL LTD,26/11/2020,4.31,CLEANING MATERIALS,V001614950
ROCHDALE BOROUGH COUNCIL,26/11/2020,NEIGHBOURHOODS AND ENVIRONMENT,PATTERSONS BRISTOL LTD,26/11/2020,13.3,CLEANING EQUIPMENT,V001614950
ROCHDALE BOROUGH COUNCIL,26/11/2020,NEIGHBOURHOODS AND ENVIRONMENT,PATTERSONS BRISTOL LTD,26/11/2020,11.94,CLEANING MATERIALS,V001614950
ROCHDALE BOROUGH COUNCIL,16/11/2020,CHILDREN�S SOCIAL CARE,COMPASS CHILDRENS HOMES LTD,16/11/2020,22371.3,EBD (EMOT & BEHAV DIFF) PLACEMENTS,V001615031
ROCHDALE BOROUGH COUNCIL,16/11/2020,CHILDREN�S SOCIAL CARE,BALTIMORE CONSULTING LTD,16/11/2020,1084.34,AGENCY STAFF,V001615050
ROCHDALE BOROUGH COUNCIL,09/11/2020,CHILDREN�S SOCIAL CARE,COMPASS FOSTERING NORTH LTD,09/11/2020,3580.2,FOSTER PARENTS BASIC ALLOWANCE,V001615110
ROCHDALE BOROUGH COUNCIL,23/11/2020,NEIGHBOURHOODS AND ENVIRONMENT,SECURITY PLUS LIMITED,23/11/2020,12.21,SECURITY,V001616150
ROCHDALE BOROUGH COUNCIL,09/11/2020,CHILDREN�S SOCIAL CARE,NORTHERN COMMUNITY PATHWAYS LTD,09/11/2020,3067.14,YOUNG PEOPLES RENTS,V001616501
ROCHDALE BOROUGH COUNCIL,23/11/2020,RESOURCES,ROSSENDALES,23/11/2020,0,INPUT VAT -  ADJUSTMENTS,V001616513
ROCHDALE BOROUGH COUNCIL,11/11/2020,NEIGHBOURHOODS AND ENVIRONMENT,ALLIANCE DISPOSABLES LIMITED,11/11/2020,0.75,CONSUMABLES,V001616550
ROCHDALE BOROUGH COUNCIL,11/11/2020,NEIGHBOURHOODS AND ENVIRONMENT,ALLIANCE DISPOSABLES LIMITED,11/11/2020,21.7,CONSUMABLES,V001616551
ROCHDALE BOROUGH COUNCIL,23/11/2020,EARLY HELP AND SCHOOLS,POSTURITE UK LTD,23/11/2020,95,PROJECTS,V001616554
ROCHDALE BOROUGH COUNCIL,26/11/2020,EARLY HELP AND SCHOOLS,NORMANS BURTON UPON TRENT LTD,26/11/2020,115,EQUIPMENT - GENERAL,V001616556
ROCHDALE BOROUGH COUNCIL,16/11/2020,CHILDREN�S SOCIAL CARE,ROC NORTHWEST LTD,16/11/2020,14463.77,EBD (EMOT & BEHAV DIFF) PLACEMENTS,V001616904
ROCHDALE BOROUGH COUNCIL,26/11/2020,PROPERTY AND HIGHWAYS,F NEEDHAM,26/11/2020,121.78,REPAIRS & ALTS OF BUILDINGS,V001616909
ROCHDALE BOROUGH COUNCIL,09/11/2020,CHILDREN�S SOCIAL CARE,NORTHERN COMMUNITY PATHWAYS LTD,09/11/2020,100,BIRTHDAY ALLOWANCE,V001616963
ROCHDALE BOROUGH COUNCIL,11/11/2020,NEIGHBOURHOODS AND ENVIRONMENT,ALLIANCE DISPOSABLES LIMITED,11/11/2020,13.2,CONSUMABLES,V001616996
ROCHDALE BOROUGH COUNCIL,23/11/2020,PUBLIC HEALTH,STOCKPORT METROPOLITAN BOROUGH COUNCIL,23/11/2020,225,PH OTHER CONTRACTS,V001617005
ROCHDALE BOROUGH COUNCIL,23/11/2020,PUBLIC HEALTH,STOCKPORT METROPOLITAN BOROUGH COUNCIL,23/11/2020,225,PH OTHER CONTRACTS,V001617005
ROCHDALE BOROUGH COUNCIL,11/11/2020,PROPERTY AND HIGHWAYS,REACH PUBLISHING SERVICES LTD,11/11/2020,60.8,ADVERTISING,V001617028
ROCHDALE BOROUGH COUNCIL,05/11/2020,NEIGHBOURHOODS AND ENVIRONMENT,ZEN INTERNET LIMITED,05/11/2020,4243.66,COMMUNICATION AND COMPUTING - GENERAL,V001617037
ROCHDALE BOROUGH COUNCIL,06/11/2020,EARLY HELP AND SCHOOLS,TEACHING PERSONNEL LTD,06/11/2020,226.44,OTHER LA`S - SEN PROVISION,V001617092
ROCHDALE BOROUGH COUNCIL,20/11/2020,NEIGHBOURHOODS AND ENVIRONMENT,ALLIANCE DISPOSABLES LIMITED,20/11/2020,67.5,CLEANING EQUIPMENT,V001617416
ROCHDALE BOROUGH COUNCIL,05/11/2020,CHILDREN�S SOCIAL CARE,XMA LIMITED,05/11/2020,220.26,IT EQUIPMENT,V001617421
ROCHDALE BOROUGH COUNCIL,10/11/2020,CHILDREN�S SOCIAL CARE,MILLENNIUM TRANSLATIONS LTD,10/11/2020,55.1,TRANSLATION & INTERPRETATION,V001617606
ROCHDALE BOROUGH COUNCIL,13/11/2020,NEIGHBOURHOODS AND ENVIRONMENT,LS SYSTEMS LTD,13/11/2020,41.22,"TREES, SHRUBS, PLANTS",V001617612
ROCHDALE BOROUGH COUNCIL,18/11/2020,PROPERTY AND HIGHWAYS,LINK4LIFE CHARITY,18/11/2020,4642,MINOR BUILDING WORKS,V001617793
ROCHDALE BOROUGH COUNCIL,05/11/2020,NEIGHBOURHOODS AND ENVIRONMENT,CDW LTD,05/11/2020,62748,ACTIVITIES,V001617799
ROCHDALE BOROUGH COUNCIL,16/11/2020,CHILDREN�S SOCIAL CARE,ROCHDALE SELF STORAGE LIMITED,16/11/2020,108.33,YOUNG PEOPLES RENTS,V001617841
ROCHDALE BOROUGH COUNCIL,09/11/2020,EARLY HELP AND SCHOOLS,MILLENNIUM TRANSLATIONS LTD,09/11/2020,48,TRANSLATION & INTERPRETATION,V001617845
ROCHDALE BOROUGH COUNCIL,23/11/2020,PROPERTY AND HIGHWAYS,LINK4LIFE CHARITY,23/11/2020,1212,MINOR BUILDING WORKS,V001617879
ROCHDALE BOROUGH COUNCIL,23/11/2020,PROPERTY AND HIGHWAYS,LINK4LIFE CHARITY,23/11/2020,2746.12,MINOR BUILDING WORKS,V001617881
ROCHDALE BOROUGH COUNCIL,19/11/2020,PUBLIC HEALTH,TURNING POINT,19/11/2020,1885,CONTRACTED SERVICES,V001617887
ROCHDALE BOROUGH COUNCIL,18/11/2020,NEIGHBOURHOODS AND ENVIRONMENT,TEACRATE RENTALS LTD,18/11/2020,32,EQUIPMENT - GENERAL,V001617888
ROCHDALE BOROUGH COUNCIL,16/11/2020,CHILDREN�S SOCIAL CARE,ACORN HOUSE FOSTERING SERVICES LIMITED,16/11/2020,4143.77,FOSTER PARENTS BASIC ALLOWANCE,V001617911
ROCHDALE BOROUGH COUNCIL,16/11/2020,CHILDREN�S SOCIAL CARE,ACORN HOUSE FOSTERING SERVICES LIMITED,16/11/2020,4010.1,FOSTER PARENTS BASIC ALLOWANCE,V001617913
ROCHDALE BOROUGH COUNCIL,20/11/2020,NEIGHBOURHOODS AND ENVIRONMENT,ALLIANCE DISPOSABLES LIMITED,20/11/2020,27,CLEANING EQUIPMENT,V001619681
ROCHDALE BOROUGH COUNCIL,16/11/2020,CHILDREN�S SOCIAL CARE,ACORN HOUSE FOSTERING SERVICES LIMITED,16/11/2020,4143.77,FOSTER PARENTS BASIC ALLOWANCE,V001620482
ROCHDALE BOROUGH COUNCIL,16/11/2020,CHILDREN�S SOCIAL CARE,SAFEHOUSES FOSTERING,16/11/2020,3660.21,FOSTER PARENTS BASIC ALLOWANCE,V001620499
ROCHDALE BOROUGH COUNCIL,23/11/2020,ADULT CARE LCO FUNCTIONS,ROUTES HEALTHCARE NORTH LTD,23/11/2020,384.4,HOME CARE - ADULT SERVICES,V001620502
ROCHDALE BOROUGH COUNCIL,17/11/2020,ADULT CARE LCO FUNCTIONS,CORONA ENERGY RETAIL 4 LIMITED,17/11/2020,-90,GAS,V001621289
ROCHDALE BOROUGH COUNCIL,17/11/2020,ADULT CARE LCO FUNCTIONS,CORONA ENERGY RETAIL 4 LIMITED,17/11/2020,-93,GAS,V001621290
ROCHDALE BOROUGH COUNCIL,17/11/2020,ADULT CARE LCO FUNCTIONS,CORONA ENERGY RETAIL 4 LIMITED,17/11/2020,-90,GAS,V001621291
ROCHDALE BOROUGH COUNCIL,17/11/2020,ADULT CARE LCO FUNCTIONS,CORONA ENERGY RETAIL 4 LIMITED,17/11/2020,-93,GAS,V001621292
ROCHDALE BOROUGH COUNCIL,05/11/2020,CHILDREN�S SOCIAL CARE,XMA LIMITED,05/11/2020,20,IT EQUIPMENT,V001621296
ROCHDALE BOROUGH COUNCIL,05/11/2020,CHILDREN�S SOCIAL CARE,XMA LIMITED,05/11/2020,75,IT EQUIPMENT,V001621296
ROCHDALE BOROUGH COUNCIL,05/11/2020,CHILDREN�S SOCIAL CARE,XMA LIMITED,05/11/2020,107.55,IT EQUIPMENT,V001621296
ROCHDALE BOROUGH COUNCIL,05/11/2020,NEIGHBOURHOODS AND ENVIRONMENT,XMA LIMITED,05/11/2020,20,IT EQUIPMENT,V001621297
ROCHDALE BOROUGH COUNCIL,05/11/2020,NEIGHBOURHOODS AND ENVIRONMENT,XMA LIMITED,05/11/2020,75,IT EQUIPMENT,V001621297
ROCHDALE BOROUGH COUNCIL,05/11/2020,NEIGHBOURHOODS AND ENVIRONMENT,XMA LIMITED,05/11/2020,100.25,IT EQUIPMENT,V001621297
ROCHDALE BOROUGH COUNCIL,16/11/2020,CHILDREN�S SOCIAL CARE,SAFEHOUSES FOSTERING,16/11/2020,3660.21,FOSTER PARENTS BASIC ALLOWANCE,V001622655
ROCHDALE BOROUGH COUNCIL,02/11/2020,CHILDREN�S SOCIAL CARE,CAPSTONE FOSTER CARE,02/11/2020,3724.2,FOSTER PARENTS BASIC ALLOWANCE,V001622658
ROCHDALE BOROUGH COUNCIL,02/11/2020,CHILDREN�S SOCIAL CARE,CAPSTONE FOSTER CARE,02/11/2020,496.56,FOSTER PARENTS BASIC ALLOWANCE,V001622659
ROCHDALE BOROUGH COUNCIL,23/11/2020,ADULT CARE LCO FUNCTIONS,ROUTES HEALTHCARE NORTH LTD,23/11/2020,538.16,HOME CARE - ADULT SERVICES,V001622662
ROCHDALE BOROUGH COUNCIL,27/11/2020,CHILDREN�S SOCIAL CARE,MILLENNIUM TRANSLATIONS LTD,27/11/2020,48,TRANSLATION & INTERPRETATION,V001622676
ROCHDALE BOROUGH COUNCIL,27/11/2020,CHILDREN�S SOCIAL CARE,MILLENNIUM TRANSLATIONS LTD,27/11/2020,93.9,TRANSLATION & INTERPRETATION,V001622677
ROCHDALE BOROUGH COUNCIL,27/11/2020,CHILDREN�S SOCIAL CARE,MILLENNIUM TRANSLATIONS LTD,27/11/2020,48,TRANSLATION & INTERPRETATION,V001622680
ROCHDALE BOROUGH COUNCIL,27/11/2020,CHILDREN�S SOCIAL CARE,MILLENNIUM TRANSLATIONS LTD,27/11/2020,28.8,TRANSLATION & INTERPRETATION,V001622681
ROCHDALE BOROUGH COUNCIL,20/11/2020,NEIGHBOURHOODS AND ENVIRONMENT,ALLIANCE DISPOSABLES LIMITED,20/11/2020,108,CLEANING EQUIPMENT,V001622729
ROCHDALE BOROUGH COUNCIL,27/11/2020,NEIGHBOURHOODS AND ENVIRONMENT,WILKES VENDING SERVICES LIMITED,27/11/2020,179.57,VENDING MACHINES,V001622837
ROCHDALE BOROUGH COUNCIL,27/11/2020,NEIGHBOURHOODS AND ENVIRONMENT,WILKES VENDING SERVICES LIMITED,27/11/2020,179.57,VENDING MACHINES,V001622837
ROCHDALE BOROUGH COUNCIL,16/11/2020,CHILDREN�S SOCIAL CARE,MILLENNIUM TRANSLATIONS LTD,16/11/2020,76,TRANSLATION & INTERPRETATION,V001622842
ROCHDALE BOROUGH COUNCIL,11/11/2020,ECONOMY DIRECTORATE,CLOVER SECURITY SERVICES LIMITED,11/11/2020,270,SECURITY,V001622844
ROCHDALE BOROUGH COUNCIL,20/11/2020,EARLY HELP AND SCHOOLS,WHITEGATE NW LTD,20/11/2020,130.4,EQUIPMENT - GENERAL,V001622846
ROCHDALE BOROUGH COUNCIL,20/11/2020,EARLY HELP AND SCHOOLS,WHITEGATE NW LTD,20/11/2020,130.4,EQUIPMENT - GENERAL,V001622846
ROCHDALE BOROUGH COUNCIL,13/11/2020,PROPERTY AND HIGHWAYS,CALEDONIAN LIFTS MANCHESTER LTD,13/11/2020,150,PROPERTY - WORKS ELEMENT,V001623133
ROCHDALE BOROUGH COUNCIL,23/11/2020,PROPERTY AND HIGHWAYS,SYNTAX CONTROLS LIMITED,23/11/2020,86,CENTRAL HEATING,V001623148
ROCHDALE BOROUGH COUNCIL,24/11/2020,NEIGHBOURHOODS AND ENVIRONMENT,KING SCIENTIFIC,24/11/2020,399.5,"CLOTHES, UNIFORM AND LAUNDRY",V001623210
ROCHDALE BOROUGH COUNCIL,26/11/2020,NEIGHBOURHOODS AND ENVIRONMENT,PATTERSONS BRISTOL LTD,26/11/2020,7.2,CLEANING EQUIPMENT,V001623216
ROCHDALE BOROUGH COUNCIL,26/11/2020,NEIGHBOURHOODS AND ENVIRONMENT,PATTERSONS BRISTOL LTD,26/11/2020,3.6,CLEANING EQUIPMENT,V001623216
ROCHDALE BOROUGH COUNCIL,26/11/2020,NEIGHBOURHOODS AND ENVIRONMENT,PATTERSONS BRISTOL LTD,26/11/2020,2.51,CLEANING EQUIPMENT,V001623216
ROCHDALE BOROUGH COUNCIL,26/11/2020,NEIGHBOURHOODS AND ENVIRONMENT,PATTERSONS BRISTOL LTD,26/11/2020,14.76,CLEANING MATERIALS,V001623216
ROCHDALE BOROUGH COUNCIL,26/11/2020,NEIGHBOURHOODS AND ENVIRONMENT,PATTERSONS BRISTOL LTD,26/11/2020,48.35,CONSUMABLES,V001623216
ROCHDALE BOROUGH COUNCIL,26/11/2020,NEIGHBOURHOODS AND ENVIRONMENT,PATTERSONS BRISTOL LTD,26/11/2020,8.62,CLEANING MATERIALS,V001623216
ROCHDALE BOROUGH COUNCIL,26/11/2020,NEIGHBOURHOODS AND ENVIRONMENT,PATTERSONS BRISTOL LTD,26/11/2020,8.62,CLEANING MATERIALS,V001623216
ROCHDALE BOROUGH COUNCIL,26/11/2020,NEIGHBOURHOODS AND ENVIRONMENT,PATTERSONS BRISTOL LTD,26/11/2020,8.62,CLEANING MATERIALS,V001623216
ROCHDALE BOROUGH COUNCIL,26/11/2020,NEIGHBOURHOODS AND ENVIRONMENT,PATTERSONS BRISTOL LTD,26/11/2020,16.8,CLEANING EQUIPMENT,V001623216
ROCHDALE BOROUGH COUNCIL,26/11/2020,NEIGHBOURHOODS AND ENVIRONMENT,PATTERSONS BRISTOL LTD,26/11/2020,34.65,CONSUMABLES,V001623216
ROCHDALE BOROUGH COUNCIL,26/11/2020,NEIGHBOURHOODS AND ENVIRONMENT,PATTERSONS BRISTOL LTD,26/11/2020,20.48,CONSUMABLES,V001623216
ROCHDALE BOROUGH COUNCIL,26/11/2020,NEIGHBOURHOODS AND ENVIRONMENT,PATTERSONS BRISTOL LTD,26/11/2020,15.68,CONSUMABLES,V001623216
ROCHDALE BOROUGH COUNCIL,26/11/2020,NEIGHBOURHOODS AND ENVIRONMENT,PATTERSONS BRISTOL LTD,26/11/2020,9,CLEANING EQUIPMENT,V001623216
ROCHDALE BOROUGH COUNCIL,26/11/2020,NEIGHBOURHOODS AND ENVIRONMENT,PATTERSONS BRISTOL LTD,26/11/2020,183.6,CONSUMABLES,V001623216
ROCHDALE BOROUGH COUNCIL,26/11/2020,NEIGHBOURHOODS AND ENVIRONMENT,PATTERSONS BRISTOL LTD,26/11/2020,13.84,CLEANING EQUIPMENT,V001623216
ROCHDALE BOROUGH COUNCIL,04/11/2020,CHILDREN�S SOCIAL CARE,MONTROSE LIVING,04/11/2020,4178.57,YOUNG PEOPLES RENTS,V001623234
ROCHDALE BOROUGH COUNCIL,04/11/2020,CHILDREN�S SOCIAL CARE,MONTROSE LIVING,04/11/2020,252.43,YOUNGE PERSONS ALLOWANCE,V001623234
ROCHDALE BOROUGH COUNCIL,27/11/2020,CHILDREN�S SOCIAL CARE,MILLENNIUM TRANSLATIONS LTD,27/11/2020,24,TRANSLATION & INTERPRETATION,V001623239
ROCHDALE BOROUGH COUNCIL,27/11/2020,CHILDREN�S SOCIAL CARE,MILLENNIUM TRANSLATIONS LTD,27/11/2020,48,TRANSLATION & INTERPRETATION,V001623252
ROCHDALE BOROUGH COUNCIL,27/11/2020,CHILDREN�S SOCIAL CARE,MILLENNIUM TRANSLATIONS LTD,27/11/2020,42.8,TRANSLATION & INTERPRETATION,V001623253
ROCHDALE BOROUGH COUNCIL,27/11/2020,CHILDREN�S SOCIAL CARE,MILLENNIUM TRANSLATIONS LTD,27/11/2020,48,TRANSLATION & INTERPRETATION,V001623255
ROCHDALE BOROUGH COUNCIL,27/11/2020,CHILDREN�S SOCIAL CARE,MILLENNIUM TRANSLATIONS LTD,27/11/2020,72.2,TRANSLATION & INTERPRETATION,V001623256
ROCHDALE BOROUGH COUNCIL,27/11/2020,CHILDREN�S SOCIAL CARE,MILLENNIUM TRANSLATIONS LTD,27/11/2020,42.8,TRANSLATION & INTERPRETATION,V001623257
ROCHDALE BOROUGH COUNCIL,27/11/2020,CHILDREN�S SOCIAL CARE,MILLENNIUM TRANSLATIONS LTD,27/11/2020,48,TRANSLATION & INTERPRETATION,V001623259
ROCHDALE BOROUGH COUNCIL,27/11/2020,CHILDREN�S SOCIAL CARE,MILLENNIUM TRANSLATIONS LTD,27/11/2020,48,TRANSLATION & INTERPRETATION,V001623260
ROCHDALE BOROUGH COUNCIL,27/11/2020,CHILDREN�S SOCIAL CARE,MILLENNIUM TRANSLATIONS LTD,27/11/2020,55.1,TRANSLATION & INTERPRETATION,V001623261
ROCHDALE BOROUGH COUNCIL,27/11/2020,CHILDREN�S SOCIAL CARE,MILLENNIUM TRANSLATIONS LTD,27/11/2020,55.1,TRANSLATION & INTERPRETATION,V001623262
ROCHDALE BOROUGH COUNCIL,27/11/2020,CHILDREN�S SOCIAL CARE,MILLENNIUM TRANSLATIONS LTD,27/11/2020,48,TRANSLATION & INTERPRETATION,V001623263
ROCHDALE BOROUGH COUNCIL,04/11/2020,PROPERTY AND HIGHWAYS,NORTHGATE VEHICLE HIRE LIMITED,04/11/2020,4394.41,EXTERNAL HIRE,V001623265
ROCHDALE BOROUGH COUNCIL,16/11/2020,CHILDREN�S SOCIAL CARE,HEXAGON CARE SERVICES LTD,16/11/2020,12214.29,EBD (EMOT & BEHAV DIFF) PLACEMENTS,V001623280
ROCHDALE BOROUGH COUNCIL,24/11/2020,NEIGHBOURHOODS AND ENVIRONMENT,TREE HEROES LTD,24/11/2020,500,EQUIPMENT - GENERAL,V001623292
ROCHDALE BOROUGH COUNCIL,04/11/2020,NEIGHBOURHOODS AND ENVIRONMENT,SAICA NATUR UK LTD,04/11/2020,45,ACTIVITIES,V001623564
ROCHDALE BOROUGH COUNCIL,23/11/2020,PROPERTY AND HIGHWAYS,WOLSELEY UK LIMITED,23/11/2020,29.99,BUILDING MATERIALS,V001623587
ROCHDALE BOROUGH COUNCIL,25/11/2020,PROPERTY AND HIGHWAYS,J C MILLS & SON LIMITED,25/11/2020,221,CENTRAL HEATING,V001624131
ROCHDALE BOROUGH COUNCIL,16/11/2020,CHILDREN�S SOCIAL CARE,STEPPING STONE PROJECTS,16/11/2020,61.4,YOUNGE PERSONS ALLOWANCE,V001624398
ROCHDALE BOROUGH COUNCIL,02/11/2020,PUBLIC HEALTH,NHS HEYWOOD MIDDLETON AND ROCHDALE CCG,02/11/2020,19547.88,BASIC SALARIES,V001624404
ROCHDALE BOROUGH COUNCIL,02/11/2020,PUBLIC HEALTH,NHS HEYWOOD MIDDLETON AND ROCHDALE CCG,02/11/2020,2394.57,NAT INS SALARIES,V001624404
ROCHDALE BOROUGH COUNCIL,02/11/2020,PUBLIC HEALTH,NHS HEYWOOD MIDDLETON AND ROCHDALE CCG,02/11/2020,2811,SUPERANN - SALARIES,V001624404
ROCHDALE BOROUGH COUNCIL,02/11/2020,NEIGHBOURHOODS AND ENVIRONMENT,SSI SCHAEFER LIMITED,02/11/2020,4284,PURCHASE OF FURNITURE AND EQUIPMENT,V001624408
ROCHDALE BOROUGH COUNCIL,25/11/2020,NEIGHBOURHOODS AND ENVIRONMENT,TLC GARDEN SERVICES,25/11/2020,165,ENVIRONMENTAL WORKS LANDSCAPE,V001624415
ROCHDALE BOROUGH COUNCIL,25/11/2020,NEIGHBOURHOODS AND ENVIRONMENT,TLC GARDEN SERVICES,25/11/2020,95,ENVIRONMENTAL WORKS LANDSCAPE,V001624423
ROCHDALE BOROUGH COUNCIL,09/11/2020,CHILDREN�S SOCIAL CARE,CARITAS CARE LTD,09/11/2020,7016,ADOPTION PAYMENTS,V001624432
ROCHDALE BOROUGH COUNCIL,09/11/2020,CHILDREN�S SOCIAL CARE,CARITAS CARE LTD,09/11/2020,7016,ADOPTION PAYMENTS,V001624432
ROCHDALE BOROUGH COUNCIL,09/11/2020,CHILDREN�S SOCIAL CARE,SWIIS FOSTER CARE LIMITED,09/11/2020,796.11,FOSTER PARENTS BASIC ALLOWANCE,V001624433
ROCHDALE BOROUGH COUNCIL,25/11/2020,EARLY HELP AND SCHOOLS,CRITIQOM LIMITED,25/11/2020,301.48,PRINTING,V001624443
ROCHDALE BOROUGH COUNCIL,25/11/2020,EARLY HELP AND SCHOOLS,CRITIQOM LIMITED,25/11/2020,65.03,PRINTING,V001624445
ROCHDALE BOROUGH COUNCIL,16/11/2020,CHILDREN�S SOCIAL CARE,INSPIRE COMMUNITY SERVICES LTD,16/11/2020,2522.7,YOUNG PEOPLES RENTS,V001624461
ROCHDALE BOROUGH COUNCIL,16/11/2020,CHILDREN�S SOCIAL CARE,INSPIRE COMMUNITY SERVICES LTD,16/11/2020,252.3,YOUNGE PERSONS ALLOWANCE,V001624462
ROCHDALE BOROUGH COUNCIL,02/11/2020,CHILDREN�S SOCIAL CARE,PARADIGM PROFESSIONAL CONSULTANCY LTD,02/11/2020,1403.7,AGENCY STAFF,V001624484
ROCHDALE BOROUGH COUNCIL,02/11/2020,CHILDREN�S SOCIAL CARE,PARADIGM PROFESSIONAL CONSULTANCY LTD,02/11/2020,1125,AGENCY STAFF,V001624485
ROCHDALE BOROUGH COUNCIL,02/11/2020,CHILDREN�S SOCIAL CARE,PARADIGM PROFESSIONAL CONSULTANCY LTD,02/11/2020,1387.5,AGENCY STAFF,V001624486
ROCHDALE BOROUGH COUNCIL,02/11/2020,CHILDREN�S SOCIAL CARE,PARADIGM PROFESSIONAL CONSULTANCY LTD,02/11/2020,1397.85,AGENCY STAFF,V001624488
ROCHDALE BOROUGH COUNCIL,09/11/2020,CHILDREN�S SOCIAL CARE,NORTHERN COMMUNITY PATHWAYS LTD,09/11/2020,252.43,YOUNG PEOPLES RENTS,V001624497
ROCHDALE BOROUGH COUNCIL,09/11/2020,ADULT CARE LCO FUNCTIONS,ABBEY ARCHITECTURAL IRONMONGERY CO LTD,09/11/2020,11.8,EQUIPMENT - GENERAL,V001624498
ROCHDALE BOROUGH COUNCIL,20/11/2020,RESOURCES,CRITIQOM LIMITED,20/11/2020,292.76,PRINTING,V001624520
ROCHDALE BOROUGH COUNCIL,18/11/2020,CHILDREN�S SOCIAL CARE,MILLENNIUM TRANSLATIONS LTD,18/11/2020,48,TRANSLATION & INTERPRETATION,V001624521
ROCHDALE BOROUGH COUNCIL,09/11/2020,CHILDREN�S SOCIAL CARE,HALLIWELL HOMES LTD,09/11/2020,21235,EBD (EMOT & BEHAV DIFF) PLACEMENTS,V001624526
ROCHDALE BOROUGH COUNCIL,12/11/2020,CHILDREN�S SOCIAL CARE,COMPASS CHILDRENS HOMES LTD,12/11/2020,23117.01,EBD (EMOT & BEHAV DIFF) PLACEMENTS,V001624817
ROCHDALE BOROUGH COUNCIL,24/11/2020,CHILDREN�S SOCIAL CARE,MILLENNIUM TRANSLATIONS LTD,24/11/2020,48,TRANSLATION & INTERPRETATION,V001624823
ROCHDALE BOROUGH COUNCIL,25/11/2020,PROPERTY AND HIGHWAYS,WOLSELEY UK LIMITED,25/11/2020,53.3,BUILDING MATERIALS,V001624857
ROCHDALE BOROUGH COUNCIL,25/11/2020,PROPERTY AND HIGHWAYS,CHRISTMAS PLUS LTD,25/11/2020,825,CHRISTMAS DECORATIONS,V001624859
ROCHDALE BOROUGH COUNCIL,25/11/2020,PROPERTY AND HIGHWAYS,CHRISTMAS PLUS LTD,25/11/2020,825,CHRISTMAS DECORATIONS,V001624859
ROCHDALE BOROUGH COUNCIL,09/11/2020,CHILDREN�S SOCIAL CARE,STEPPING STONE PROJECTS,09/11/2020,335.75,YOUNG PEOPLES RENTS,V001624896
ROCHDALE BOROUGH COUNCIL,02/11/2020,PROPERTY AND HIGHWAYS,J C MILLS & SON LIMITED,02/11/2020,56,CENTRAL HEATING,V001624925
ROCHDALE BOROUGH COUNCIL,24/11/2020,CHILDREN�S SOCIAL CARE,MILLENNIUM TRANSLATIONS LTD,24/11/2020,56,TRANSLATION & INTERPRETATION,V001626297
ROCHDALE BOROUGH COUNCIL,16/11/2020,CHILDREN�S SOCIAL CARE,FIRST AFFINITY FOSTERING SERVICES LTD,16/11/2020,3471.3,FOSTER PARENTS BASIC ALLOWANCE,V001626307
ROCHDALE BOROUGH COUNCIL,16/11/2020,CHILDREN�S SOCIAL CARE,FIRST AFFINITY FOSTERING SERVICES LTD,16/11/2020,3600,FOSTER PARENTS BASIC ALLOWANCE,V001626308
ROCHDALE BOROUGH COUNCIL,16/11/2020,CHILDREN�S SOCIAL CARE,FIRST AFFINITY FOSTERING SERVICES LTD,16/11/2020,3600,FOSTER PARENTS BASIC ALLOWANCE,V001626309
ROCHDALE BOROUGH COUNCIL,12/11/2020,CHILDREN�S SOCIAL CARE,COMPASS FOSTERING NORTH LTD,12/11/2020,3647.68,FOSTER PARENTS BASIC ALLOWANCE,V001626330
ROCHDALE BOROUGH COUNCIL,16/11/2020,CHILDREN�S SOCIAL CARE,COMPASS FOSTERING NORTH LTD,16/11/2020,3699.54,FOSTER PARENTS BASIC ALLOWANCE,V001626331
ROCHDALE BOROUGH COUNCIL,26/11/2020,NEIGHBOURHOODS AND ENVIRONMENT,ALLIANCE DISPOSABLES LIMITED,26/11/2020,1161,CONSUMABLES,V001626347
ROCHDALE BOROUGH COUNCIL,25/11/2020,RESOURCES,VALTECH LTD,25/11/2020,465.45,EXTERNAL CONTRACTED PRINTING,V001626402
ROCHDALE BOROUGH COUNCIL,03/11/2020,CHILDREN�S SOCIAL CARE,LORIMER FOSTER SERVICES,03/11/2020,3214.5,FOSTER PARENTS BASIC ALLOWANCE,V001626408
ROCHDALE BOROUGH COUNCIL,09/11/2020,CHILDREN�S SOCIAL CARE,NORTHERN COMMUNITY PATHWAYS LTD,09/11/2020,2164.37,YOUNG PEOPLES RENTS,V001626411
ROCHDALE BOROUGH COUNCIL,09/11/2020,CHILDREN�S SOCIAL CARE,NORTHERN COMMUNITY PATHWAYS LTD,09/11/2020,252.43,YOUNGE PERSONS ALLOWANCE,V001626411
ROCHDALE BOROUGH COUNCIL,23/11/2020,EARLY HELP AND SCHOOLS,CARTWHEEL ARTS,23/11/2020,1500,ACTIVITIES,V001626415
ROCHDALE BOROUGH COUNCIL,16/11/2020,CHILDREN�S SOCIAL CARE,DEPAUL UK,16/11/2020,25508.57,YOUNG PEOPLES RENTS,V001626420
ROCHDALE BOROUGH COUNCIL,16/11/2020,CHILDREN�S SOCIAL CARE,CARITAS CARE LTD,16/11/2020,1754,FEES / COMMISSION,V001626424
ROCHDALE BOROUGH COUNCIL,16/11/2020,CHILDREN�S SOCIAL CARE,CARITAS CARE LTD,16/11/2020,1754,FEES / COMMISSION,V001626424
ROCHDALE BOROUGH COUNCIL,09/11/2020,CHILDREN�S SOCIAL CARE,NORTHERN COMMUNITY PATHWAYS LTD,09/11/2020,84.14,YOUNG PEOPLES RENTS,V001626429
ROCHDALE BOROUGH COUNCIL,16/11/2020,CHILDREN�S SOCIAL CARE,ACORN HOUSE FOSTERING SERVICES LIMITED,16/11/2020,3706.67,FOSTER PARENTS BASIC ALLOWANCE,V001626430
ROCHDALE BOROUGH COUNCIL,27/11/2020,PROPERTY AND HIGHWAYS,PARR ROCHDALE LIMITED,27/11/2020,107.08,PROPERTY - WORKS ELEMENT,V001626435
ROCHDALE BOROUGH COUNCIL,27/11/2020,PROPERTY AND HIGHWAYS,PARR ROCHDALE LIMITED,27/11/2020,18.95,PROPERTY - WORKS ELEMENT,V001626436
ROCHDALE BOROUGH COUNCIL,27/11/2020,PROPERTY AND HIGHWAYS,PARR ROCHDALE LIMITED,27/11/2020,9.59,PROPERTY - WORKS ELEMENT,V001626437
ROCHDALE BOROUGH COUNCIL,27/11/2020,PROPERTY AND HIGHWAYS,PARR ROCHDALE LIMITED,27/11/2020,47.92,PROPERTY - WORKS ELEMENT,V001626438
ROCHDALE BOROUGH COUNCIL,27/11/2020,PROPERTY AND HIGHWAYS,PARR ROCHDALE LIMITED,27/11/2020,13.56,PROPERTY - WORKS ELEMENT,V001626439
ROCHDALE BOROUGH COUNCIL,27/11/2020,PROPERTY AND HIGHWAYS,PARR ROCHDALE LIMITED,27/11/2020,5.89,PROPERTY - WORKS ELEMENT,V001626440
ROCHDALE BOROUGH COUNCIL,27/11/2020,PROPERTY AND HIGHWAYS,PARR ROCHDALE LIMITED,27/11/2020,12.07,PROPERTY - WORKS ELEMENT,V001626441
ROCHDALE BOROUGH COUNCIL,12/11/2020,EARLY HELP AND SCHOOLS,SKILLS AND EDUCATION GROUP AWARDS,12/11/2020,250,TRAINING,V001626470
ROCHDALE BOROUGH COUNCIL,09/11/2020,ECONOMY DIRECTORATE,IRWELL STREET METALS,09/11/2020,191.85,REFUSE DISPOSAL,V001626475
ROCHDALE BOROUGH COUNCIL,20/11/2020,PROPERTY AND HIGHWAYS,UNITY PARTNERSHIP LTD,20/11/2020,6525.81,MINOR BUILDING WORKS,V001626477
ROCHDALE BOROUGH COUNCIL,27/11/2020,NEIGHBOURHOODS AND ENVIRONMENT,ACS BUSINESS SUPPLIES,27/11/2020,85.12,"TREES, SHRUBS, PLANTS",V001626478
ROCHDALE BOROUGH COUNCIL,25/11/2020,ECONOMY DIRECTORATE,F S MOULT AND SON,25/11/2020,81,REPAIRS & ALTS OF BUILDINGS,V001626487
ROCHDALE BOROUGH COUNCIL,25/11/2020,ECONOMY DIRECTORATE,F S MOULT AND SON,25/11/2020,19.35,REPAIRS & ALTS OF BUILDINGS,V001626487
ROCHDALE BOROUGH COUNCIL,25/11/2020,NEIGHBOURHOODS AND ENVIRONMENT,BANNER GROUP LIMITED,25/11/2020,11.07,PRINTING & STATIONERY,V001626492
ROCHDALE BOROUGH COUNCIL,25/11/2020,ECONOMY DIRECTORATE,BANNER GROUP LIMITED,25/11/2020,25.05,PRINTING & STATIONERY,V001626501
ROCHDALE BOROUGH COUNCIL,19/11/2020,PROPERTY AND HIGHWAYS,WATERMAN INFASTRUCTURE AND ENVIRONMENT LTD,19/11/2020,9386.6,ENGINEERS FEES,V001626522
ROCHDALE BOROUGH COUNCIL,16/11/2020,CHILDREN�S SOCIAL CARE,THREE CIRCLES FOSTERING,16/11/2020,4050,FOSTER PARENTS BASIC ALLOWANCE,V001626526
ROCHDALE BOROUGH COUNCIL,25/11/2020,RESOURCES,GALLAGHER BASSETT INTERNATIONAL LTD,25/11/2020,110.7,TRANSACTIONS-EXPENDITURE,V001626555
ROCHDALE BOROUGH COUNCIL,25/11/2020,PROPERTY AND HIGHWAYS,PARR ROCHDALE LIMITED,25/11/2020,13.97,PROPERTY - WORKS ELEMENT,V001626803
ROCHDALE BOROUGH COUNCIL,10/11/2020,EARLY HELP AND SCHOOLS,YORKSHIRE PURCHASING ORGANISATION,10/11/2020,7.74,ARTS & CRAFTS,V001626808
ROCHDALE BOROUGH COUNCIL,03/11/2020,CHILDREN�S SOCIAL CARE,INSPIRE CHILDRENS SERVICES LTD,03/11/2020,12552.6,EBD (EMOT & BEHAV DIFF) PLACEMENTS,V001626809
ROCHDALE BOROUGH COUNCIL,12/11/2020,ECONOMY DIRECTORATE,REACH PUBLISHING SERVICES LTD,12/11/2020,40.54,PROFESSIONAL FEES,V001626816
ROCHDALE BOROUGH COUNCIL,04/11/2020,NEIGHBOURHOODS AND ENVIRONMENT,SPECIALIST COMPUTER CENTRES PLC,04/11/2020,800,IT EQUIPMENT,V001626864
ROCHDALE BOROUGH COUNCIL,27/11/2020,CHILDREN�S SOCIAL CARE,CRESTA WORLD TRAVEL LIMITED,27/11/2020,63.1,STAFF TRAVELLING EXPENSES,V001626937
ROCHDALE BOROUGH COUNCIL,27/11/2020,CHILDREN�S SOCIAL CARE,MILLENNIUM TRANSLATIONS LTD,27/11/2020,48,TRANSLATION & INTERPRETATION,V001626940
ROCHDALE BOROUGH COUNCIL,11/11/2020,EARLY HELP AND SCHOOLS,P N S LANDSCAPES,11/11/2020,153.13,GROUNDS MAINTENANCE GENERAL,V001627095
ROCHDALE BOROUGH COUNCIL,11/11/2020,PROPERTY AND HIGHWAYS,REACH PUBLISHING SERVICES LTD,11/11/2020,61.74,ADVERTISING,V001627266
ROCHDALE BOROUGH COUNCIL,05/11/2020,PROPERTY AND HIGHWAYS,BACK CARE SOLUTIONS LIMITED,05/11/2020,613.44,HEALTH AND SAFETY,V001627365
ROCHDALE BOROUGH COUNCIL,27/11/2020,CHILDREN�S SOCIAL CARE,MILLENNIUM TRANSLATIONS LTD,27/11/2020,72.6,TRANSLATION & INTERPRETATION,V001627366
ROCHDALE BOROUGH COUNCIL,27/11/2020,CHILDREN�S SOCIAL CARE,MILLENNIUM TRANSLATIONS LTD,27/11/2020,76.4,TRANSLATION & INTERPRETATION,V001627370
ROCHDALE BOROUGH COUNCIL,16/11/2020,CHILDREN�S SOCIAL CARE,INSPIRE COMMUNITY SERVICES LTD,16/11/2020,-142.97,YOUNGE PERSONS ALLOWANCE,V001627394
ROCHDALE BOROUGH COUNCIL,16/11/2020,CHILDREN�S SOCIAL CARE,INSPIRE COMMUNITY SERVICES LTD,16/11/2020,-1429.53,YOUNG PEOPLES RENTS,V001627395
ROCHDALE BOROUGH COUNCIL,09/11/2020,CHILDREN�S SOCIAL CARE,SHIELD SUPPORT HUB LTD,09/11/2020,5535.71,YOUNG PEOPLES RENTS,V001627412
ROCHDALE BOROUGH COUNCIL,09/11/2020,CHILDREN�S SOCIAL CARE,SHIELD SUPPORT HUB LTD,09/11/2020,235.6,YOUNGE PERSONS ALLOWANCE,V001627412
ROCHDALE BOROUGH COUNCIL,23/11/2020,PROPERTY AND HIGHWAYS,W J LEWIS BUILDERS MERCHANTS LIMITED,23/11/2020,19.94,PROPERTY - WORKS ELEMENT,V001627477
ROCHDALE BOROUGH COUNCIL,24/11/2020,CHILDREN�S SOCIAL CARE,MILLENNIUM TRANSLATIONS LTD,24/11/2020,56.1,TRANSLATION & INTERPRETATION,V001627486
ROCHDALE BOROUGH COUNCIL,04/11/2020,CHILDREN�S SOCIAL CARE,PARADIGM PROFESSIONAL CONSULTANCY LTD,04/11/2020,1387.5,AGENCY STAFF,V001627489
ROCHDALE BOROUGH COUNCIL,03/11/2020,CHILDREN�S SOCIAL CARE,PARADIGM PROFESSIONAL CONSULTANCY LTD,03/11/2020,1453.65,AGENCY STAFF,V001627490
ROCHDALE BOROUGH COUNCIL,13/11/2020,RESOURCES,LAVAT CONSULTING LIMITED,13/11/2020,1345,PROVISIONS UTILISED IN YEAR,V001627491
ROCHDALE BOROUGH COUNCIL,13/11/2020,RESOURCES,LAVAT CONSULTING LIMITED,13/11/2020,50,PROVISIONS UTILISED IN YEAR,V001627491
ROCHDALE BOROUGH COUNCIL,12/11/2020,ECONOMY DIRECTORATE,GENR8 ROCHDALE LTD,12/11/2020,1488,CONSULTANTS FEES,V001627492
ROCHDALE BOROUGH COUNCIL,20/11/2020,ADULT CARE LCO FUNCTIONS,CREATIVE SUPPORT LTD,20/11/2020,1223.9,PERSONAL BUDGETS - MANAGED,V001627671
ROCHDALE BOROUGH COUNCIL,20/11/2020,ADULT CARE LCO FUNCTIONS,CREATIVE SUPPORT LTD,20/11/2020,-3724,PERSONAL BUDGETS - MANAGED,V001627918
ROCHDALE BOROUGH COUNCIL,20/11/2020,ADULT CARE LCO FUNCTIONS,CREATIVE SUPPORT LTD,20/11/2020,-2352,PERSONAL BUDGETS - MANAGED,V001627919
ROCHDALE BOROUGH COUNCIL,20/11/2020,ADULT CARE LCO FUNCTIONS,CREATIVE SUPPORT LTD,20/11/2020,928.42,PERSONAL BUDGETS - MANAGED,V001627920
ROCHDALE BOROUGH COUNCIL,06/11/2020,CHILDREN�S SOCIAL CARE,YOUNG FOUNDATIONS LTD,06/11/2020,41141.43,EBD (EMOT & BEHAV DIFF) PLACEMENTS,V001628611
ROCHDALE BOROUGH COUNCIL,30/11/2020,NEIGHBOURHOODS AND ENVIRONMENT,AQUACOOL LTD,30/11/2020,40,EQUIPMENT - GENERAL,V001628612
ROCHDALE BOROUGH COUNCIL,30/11/2020,NEIGHBOURHOODS AND ENVIRONMENT,AQUACOOL LTD,30/11/2020,40,EQUIPMENT - GENERAL,V001628612
ROCHDALE BOROUGH COUNCIL,06/11/2020,CHILDREN�S SOCIAL CARE,FOSTERING SOLUTIONS LTD,06/11/2020,3491.89,FOSTER PARENTS BASIC ALLOWANCE,V001628613
ROCHDALE BOROUGH COUNCIL,27/11/2020,PROPERTY AND HIGHWAYS,ELECTRIC CENTER,27/11/2020,9.93,PROPERTY - WORKS ELEMENT,V001628614
ROCHDALE BOROUGH COUNCIL,02/11/2020,CHILDREN�S SOCIAL CARE,CAPSTONE FOSTER CARE,02/11/2020,3797.44,FOSTER PARENTS BASIC ALLOWANCE,V001628623
ROCHDALE BOROUGH COUNCIL,02/11/2020,CHILDREN�S SOCIAL CARE,CAPSTONE FOSTER CARE,02/11/2020,496.56,FOSTER PARENTS BASIC ALLOWANCE,V001628634
ROCHDALE BOROUGH COUNCIL,10/11/2020,CHILDREN�S SOCIAL CARE,FOSTERING SOLUTIONS LTD,10/11/2020,2218.67,FOSTER PARENTS BASIC ALLOWANCE,V001628638
ROCHDALE BOROUGH COUNCIL,12/11/2020,NEIGHBOURHOODS AND ENVIRONMENT,TELESHORE UK LTD,12/11/2020,1824.46,MATERIAL - GENERAL,V001628640
ROCHDALE BOROUGH COUNCIL,12/11/2020,NEIGHBOURHOODS AND ENVIRONMENT,TELESHORE UK LTD,12/11/2020,63.54,MATERIAL - GENERAL,V001628640
ROCHDALE BOROUGH COUNCIL,25/11/2020,EARLY HELP AND SCHOOLS,BANNER GROUP LIMITED,25/11/2020,44.28,PRINTING & STATIONERY,V001628644
ROCHDALE BOROUGH COUNCIL,25/11/2020,EARLY HELP AND SCHOOLS,BANNER GROUP LIMITED,25/11/2020,5.4,EQUIPMENT - GENERAL,V001628644
ROCHDALE BOROUGH COUNCIL,02/11/2020,PROPERTY AND HIGHWAYS,J C MILLS & SON LIMITED,02/11/2020,56,CENTRAL HEATING,V001628649
ROCHDALE BOROUGH COUNCIL,06/11/2020,PROPERTY AND HIGHWAYS,J C MILLS & SON LIMITED,06/11/2020,56,CENTRAL HEATING,V001628650
ROCHDALE BOROUGH COUNCIL,02/11/2020,PROPERTY AND HIGHWAYS,J C MILLS & SON LIMITED,02/11/2020,56,CENTRAL HEATING,V001628652
ROCHDALE BOROUGH COUNCIL,02/11/2020,ECONOMY DIRECTORATE,J C MILLS & SON LIMITED,02/11/2020,56,CENTRAL HEATING,V001628653
ROCHDALE BOROUGH COUNCIL,06/11/2020,CHILDREN�S SOCIAL CARE,FOSTERING SOLUTIONS LTD,06/11/2020,3303.03,FOSTER PARENTS BASIC ALLOWANCE,V001628662
ROCHDALE BOROUGH COUNCIL,06/11/2020,CHILDREN�S SOCIAL CARE,FOSTERING SOLUTIONS LTD,06/11/2020,3403.11,FOSTER PARENTS BASIC ALLOWANCE,V001628663
ROCHDALE BOROUGH COUNCIL,06/11/2020,CHILDREN�S SOCIAL CARE,FOSTERING SOLUTIONS LTD,06/11/2020,3491.89,FOSTER PARENTS BASIC ALLOWANCE,V001628664
ROCHDALE BOROUGH COUNCIL,24/11/2020,NEIGHBOURHOODS AND ENVIRONMENT,GAMMA BUSINESS COMMUNICATIONS,24/11/2020,4259.87,TELEPHONE EXPENDITURE,V001628676
ROCHDALE BOROUGH COUNCIL,12/11/2020,ECONOMY DIRECTORATE,REACH PUBLISHING SERVICES LTD,12/11/2020,120.6,PROFESSIONAL FEES,V001628692
ROCHDALE BOROUGH COUNCIL,02/11/2020,CHILDREN�S SOCIAL CARE,CAPSTONE FOSTER CARE,02/11/2020,3724.2,FOSTER PARENTS BASIC ALLOWANCE,V001628710
ROCHDALE BOROUGH COUNCIL,16/11/2020,CHILDREN�S SOCIAL CARE,LIFETIME OPPORTUNITIES,16/11/2020,10600,EBD (EMOT & BEHAV DIFF) PLACEMENTS,V001628712
ROCHDALE BOROUGH COUNCIL,16/11/2020,CHILDREN�S SOCIAL CARE,LIFETIME OPPORTUNITIES,16/11/2020,12000,EBD (EMOT & BEHAV DIFF) PLACEMENTS,V001628713
ROCHDALE BOROUGH COUNCIL,25/11/2020,EARLY HELP AND SCHOOLS,NEWBOLD CHILDRENS CENTRE NURSERY,25/11/2020,132,ACTIVITIES,V001628735
ROCHDALE BOROUGH COUNCIL,25/11/2020,EARLY HELP AND SCHOOLS,NEWBOLD CHILDRENS CENTRE NURSERY,25/11/2020,132,ACTIVITIES,V001628735
ROCHDALE BOROUGH COUNCIL,26/11/2020,NEIGHBOURHOODS AND ENVIRONMENT,INNOVATIVE SAFETY SYSTEMS LTD,26/11/2020,220,EQUIPMENT - GENERAL,V001628809
ROCHDALE BOROUGH COUNCIL,27/11/2020,CHILDREN�S SOCIAL CARE,MILLENNIUM TRANSLATIONS LTD,27/11/2020,90.6,TRANSLATION & INTERPRETATION,V001628813
ROCHDALE BOROUGH COUNCIL,16/11/2020,EARLY HELP AND SCHOOLS,REDACTED - PERSONAL DATA,16/11/2020,250,EVENTS,V001628816
ROCHDALE BOROUGH COUNCIL,20/11/2020,ADULT CARE LCO FUNCTIONS,THE BIG WORD,20/11/2020,42,TRANSLATION & INTERPRETATION,V001628857
ROCHDALE BOROUGH COUNCIL,20/11/2020,ADULT CARE LCO FUNCTIONS,THE BIG WORD,20/11/2020,36,TRANSLATION & INTERPRETATION,V001628857
ROCHDALE BOROUGH COUNCIL,20/11/2020,CHILDREN�S SOCIAL CARE,THE BIG WORD,20/11/2020,42,TRANSLATION & INTERPRETATION,V001628857
ROCHDALE BOROUGH COUNCIL,20/11/2020,CHILDREN�S SOCIAL CARE,THE BIG WORD,20/11/2020,2,TRANSLATION & INTERPRETATION,V001628857
ROCHDALE BOROUGH COUNCIL,20/11/2020,CHILDREN�S SOCIAL CARE,THE BIG WORD,20/11/2020,28.5,TRANSLATION & INTERPRETATION,V001628857
ROCHDALE BOROUGH COUNCIL,20/11/2020,CHILDREN�S SOCIAL CARE,THE BIG WORD,20/11/2020,16,TRANSLATION & INTERPRETATION,V001628857
ROCHDALE BOROUGH COUNCIL,20/11/2020,CHILDREN�S SOCIAL CARE,THE BIG WORD,20/11/2020,5,TRANSLATION & INTERPRETATION,V001628857
ROCHDALE BOROUGH COUNCIL,20/11/2020,CHILDREN�S SOCIAL CARE,THE BIG WORD,20/11/2020,30.5,TRANSLATION & INTERPRETATION,V001628857
ROCHDALE BOROUGH COUNCIL,20/11/2020,CHILDREN�S SOCIAL CARE,THE BIG WORD,20/11/2020,28.5,TRANSLATION & INTERPRETATION,V001628857
ROCHDALE BOROUGH COUNCIL,20/11/2020,CHILDREN�S SOCIAL CARE,THE BIG WORD,20/11/2020,36,TRANSLATION & INTERPRETATION,V001628857
ROCHDALE BOROUGH COUNCIL,20/11/2020,ADULT CARE LCO FUNCTIONS,THE BIG WORD,20/11/2020,131.5,TRANSLATION & INTERPRETATION,V001628857
ROCHDALE BOROUGH COUNCIL,20/11/2020,ADULT CARE LCO FUNCTIONS,THE BIG WORD,20/11/2020,36,TRANSLATION & INTERPRETATION,V001628857
ROCHDALE BOROUGH COUNCIL,20/11/2020,EARLY HELP AND SCHOOLS,THE BIG WORD,20/11/2020,28.5,TRANSLATION & INTERPRETATION,V001628857
ROCHDALE BOROUGH COUNCIL,20/11/2020,EARLY HELP AND SCHOOLS,THE BIG WORD,20/11/2020,2,TRANSLATION & INTERPRETATION,V001628857
ROCHDALE BOROUGH COUNCIL,20/11/2020,CHILDREN�S SOCIAL CARE,THE BIG WORD,20/11/2020,42,TRANSLATION & INTERPRETATION,V001628857
ROCHDALE BOROUGH COUNCIL,20/11/2020,CHILDREN�S SOCIAL CARE,THE BIG WORD,20/11/2020,35.25,TRANSLATION & INTERPRETATION,V001628857
ROCHDALE BOROUGH COUNCIL,20/11/2020,CHILDREN�S SOCIAL CARE,THE BIG WORD,20/11/2020,2,TRANSLATION & INTERPRETATION,V001628857
ROCHDALE BOROUGH COUNCIL,20/11/2020,CHILDREN�S SOCIAL CARE,THE BIG WORD,20/11/2020,35.25,TRANSLATION & INTERPRETATION,V001628857
ROCHDALE BOROUGH COUNCIL,20/11/2020,CHILDREN�S SOCIAL CARE,THE BIG WORD,20/11/2020,16,TRANSLATION & INTERPRETATION,V001628857
ROCHDALE BOROUGH COUNCIL,20/11/2020,CHILDREN�S SOCIAL CARE,THE BIG WORD,20/11/2020,2,TRANSLATION & INTERPRETATION,V001628857
ROCHDALE BOROUGH COUNCIL,20/11/2020,CHILDREN�S SOCIAL CARE,THE BIG WORD,20/11/2020,35.25,TRANSLATION & INTERPRETATION,V001628857
ROCHDALE BOROUGH COUNCIL,20/11/2020,CHILDREN�S SOCIAL CARE,THE BIG WORD,20/11/2020,2,TRANSLATION & INTERPRETATION,V001628857
ROCHDALE BOROUGH COUNCIL,20/11/2020,CHILDREN�S SOCIAL CARE,THE BIG WORD,20/11/2020,35.25,TRANSLATION & INTERPRETATION,V001628857
ROCHDALE BOROUGH COUNCIL,20/11/2020,CHILDREN�S SOCIAL CARE,THE BIG WORD,20/11/2020,2,TRANSLATION & INTERPRETATION,V001628857
ROCHDALE BOROUGH COUNCIL,20/11/2020,CHILDREN�S SOCIAL CARE,THE BIG WORD,20/11/2020,35.25,TRANSLATION & INTERPRETATION,V001628857
ROCHDALE BOROUGH COUNCIL,20/11/2020,CHILDREN�S SOCIAL CARE,THE BIG WORD,20/11/2020,2,TRANSLATION & INTERPRETATION,V001628857
ROCHDALE BOROUGH COUNCIL,20/11/2020,CHILDREN�S SOCIAL CARE,THE BIG WORD,20/11/2020,35.25,TRANSLATION & INTERPRETATION,V001628857
ROCHDALE BOROUGH COUNCIL,20/11/2020,CHILDREN�S SOCIAL CARE,THE BIG WORD,20/11/2020,2,TRANSLATION & INTERPRETATION,V001628857
ROCHDALE BOROUGH COUNCIL,20/11/2020,CHILDREN�S SOCIAL CARE,THE BIG WORD,20/11/2020,35.25,TRANSLATION & INTERPRETATION,V001628857
ROCHDALE BOROUGH COUNCIL,20/11/2020,CHILDREN�S SOCIAL CARE,THE BIG WORD,20/11/2020,2,TRANSLATION & INTERPRETATION,V001628857
ROCHDALE BOROUGH COUNCIL,20/11/2020,CHILDREN�S SOCIAL CARE,THE BIG WORD,20/11/2020,35.25,TRANSLATION & INTERPRETATION,V001628857
ROCHDALE BOROUGH COUNCIL,20/11/2020,CHILDREN�S SOCIAL CARE,THE BIG WORD,20/11/2020,16,TRANSLATION & INTERPRETATION,V001628857
ROCHDALE BOROUGH COUNCIL,20/11/2020,CHILDREN�S SOCIAL CARE,THE BIG WORD,20/11/2020,2,TRANSLATION & INTERPRETATION,V001628857
ROCHDALE BOROUGH COUNCIL,20/11/2020,CHILDREN�S SOCIAL CARE,THE BIG WORD,20/11/2020,28.5,TRANSLATION & INTERPRETATION,V001628857
ROCHDALE BOROUGH COUNCIL,20/11/2020,CHILDREN�S SOCIAL CARE,THE BIG WORD,20/11/2020,16,TRANSLATION & INTERPRETATION,V001628857
ROCHDALE BOROUGH COUNCIL,20/11/2020,CHILDREN�S SOCIAL CARE,THE BIG WORD,20/11/2020,2,TRANSLATION & INTERPRETATION,V001628857
ROCHDALE BOROUGH COUNCIL,20/11/2020,CHILDREN�S SOCIAL CARE,THE BIG WORD,20/11/2020,28.5,TRANSLATION & INTERPRETATION,V001628857
ROCHDALE BOROUGH COUNCIL,20/11/2020,CHILDREN�S SOCIAL CARE,THE BIG WORD,20/11/2020,2,TRANSLATION & INTERPRETATION,V001628857
ROCHDALE BOROUGH COUNCIL,20/11/2020,CHILDREN�S SOCIAL CARE,THE BIG WORD,20/11/2020,28.5,TRANSLATION & INTERPRETATION,V001628857
ROCHDALE BOROUGH COUNCIL,20/11/2020,CHILDREN�S SOCIAL CARE,THE BIG WORD,20/11/2020,36,TRANSLATION & INTERPRETATION,V001628857
ROCHDALE BOROUGH COUNCIL,20/11/2020,CHILDREN�S SOCIAL CARE,THE BIG WORD,20/11/2020,28.5,TRANSLATION & INTERPRETATION,V001628857
ROCHDALE BOROUGH COUNCIL,20/11/2020,CHILDREN�S SOCIAL CARE,THE BIG WORD,20/11/2020,36,TRANSLATION & INTERPRETATION,V001628857
ROCHDALE BOROUGH COUNCIL,20/11/2020,CHILDREN�S SOCIAL CARE,THE BIG WORD,20/11/2020,28.5,TRANSLATION & INTERPRETATION,V001628857
ROCHDALE BOROUGH COUNCIL,20/11/2020,EARLY HELP AND SCHOOLS,THE BIG WORD,20/11/2020,35.25,TRANSLATION & INTERPRETATION,V001628857
ROCHDALE BOROUGH COUNCIL,20/11/2020,EARLY HELP AND SCHOOLS,THE BIG WORD,20/11/2020,36,TRANSLATION & INTERPRETATION,V001628857
ROCHDALE BOROUGH COUNCIL,20/11/2020,CHILDREN�S SOCIAL CARE,THE BIG WORD,20/11/2020,28.5,TRANSLATION & INTERPRETATION,V001628857
ROCHDALE BOROUGH COUNCIL,20/11/2020,ADULT CARE LCO FUNCTIONS,THE BIG WORD,20/11/2020,42,TRANSLATION & INTERPRETATION,V001628857
ROCHDALE BOROUGH COUNCIL,20/11/2020,ADULT CARE LCO FUNCTIONS,THE BIG WORD,20/11/2020,36,TRANSLATION & INTERPRETATION,V001628857
ROCHDALE BOROUGH COUNCIL,20/11/2020,CHILDREN�S SOCIAL CARE,THE BIG WORD,20/11/2020,42,TRANSLATION & INTERPRETATION,V001628857
ROCHDALE BOROUGH COUNCIL,20/11/2020,CHILDREN�S SOCIAL CARE,THE BIG WORD,20/11/2020,28.5,TRANSLATION & INTERPRETATION,V001628857
ROCHDALE BOROUGH COUNCIL,20/11/2020,ADULT CARE LCO FUNCTIONS,THE BIG WORD,20/11/2020,28.5,TRANSLATION & INTERPRETATION,V001628857
ROCHDALE BOROUGH COUNCIL,20/11/2020,ADULT CARE LCO FUNCTIONS,THE BIG WORD,20/11/2020,36,TRANSLATION & INTERPRETATION,V001628857
ROCHDALE BOROUGH COUNCIL,20/11/2020,CHILDREN�S SOCIAL CARE,THE BIG WORD,20/11/2020,42,TRANSLATION & INTERPRETATION,V001628857
ROCHDALE BOROUGH COUNCIL,20/11/2020,CHILDREN�S SOCIAL CARE,THE BIG WORD,20/11/2020,42,TRANSLATION & INTERPRETATION,V001628857
ROCHDALE BOROUGH COUNCIL,20/11/2020,EARLY HELP AND SCHOOLS,THE BIG WORD,20/11/2020,48.75,TRANSLATION & INTERPRETATION,V001628857
ROCHDALE BOROUGH COUNCIL,20/11/2020,EARLY HELP AND SCHOOLS,THE BIG WORD,20/11/2020,2,TRANSLATION & INTERPRETATION,V001628857
ROCHDALE BOROUGH COUNCIL,20/11/2020,EARLY HELP AND SCHOOLS,THE BIG WORD,20/11/2020,37.25,TRANSLATION & INTERPRETATION,V001628857
ROCHDALE BOROUGH COUNCIL,20/11/2020,CHILDREN�S SOCIAL CARE,THE BIG WORD,20/11/2020,28.5,TRANSLATION & INTERPRETATION,V001628857
ROCHDALE BOROUGH COUNCIL,20/11/2020,ADULT CARE LCO FUNCTIONS,THE BIG WORD,20/11/2020,35.25,TRANSLATION & INTERPRETATION,V001628857
ROCHDALE BOROUGH COUNCIL,20/11/2020,ADULT CARE LCO FUNCTIONS,THE BIG WORD,20/11/2020,36,TRANSLATION & INTERPRETATION,V001628857
ROCHDALE BOROUGH COUNCIL,20/11/2020,ADULT CARE LCO FUNCTIONS,THE BIG WORD,20/11/2020,2,TRANSLATION & INTERPRETATION,V001628857
ROCHDALE BOROUGH COUNCIL,20/11/2020,EARLY HELP AND SCHOOLS,THE BIG WORD,20/11/2020,28.5,TRANSLATION & INTERPRETATION,V001628857
ROCHDALE BOROUGH COUNCIL,20/11/2020,EARLY HELP AND SCHOOLS,THE BIG WORD,20/11/2020,2,TRANSLATION & INTERPRETATION,V001628857
ROCHDALE BOROUGH COUNCIL,20/11/2020,EARLY HELP AND SCHOOLS,THE BIG WORD,20/11/2020,28.5,TRANSLATION & INTERPRETATION,V001628857
ROCHDALE BOROUGH COUNCIL,20/11/2020,EARLY HELP AND SCHOOLS,THE BIG WORD,20/11/2020,2,TRANSLATION & INTERPRETATION,V001628857
ROCHDALE BOROUGH COUNCIL,20/11/2020,CHILDREN�S SOCIAL CARE,THE BIG WORD,20/11/2020,28.5,TRANSLATION & INTERPRETATION,V001628857
ROCHDALE BOROUGH COUNCIL,20/11/2020,CHILDREN�S SOCIAL CARE,THE BIG WORD,20/11/2020,36,TRANSLATION & INTERPRETATION,V001628857
ROCHDALE BOROUGH COUNCIL,20/11/2020,EARLY HELP AND SCHOOLS,THE BIG WORD,20/11/2020,50.75,TRANSLATION & INTERPRETATION,V001628857
ROCHDALE BOROUGH COUNCIL,20/11/2020,EARLY HELP AND SCHOOLS,THE BIG WORD,20/11/2020,2,TRANSLATION & INTERPRETATION,V001628857
ROCHDALE BOROUGH COUNCIL,20/11/2020,CHILDREN�S SOCIAL CARE,THE BIG WORD,20/11/2020,42,TRANSLATION & INTERPRETATION,V001628857
ROCHDALE BOROUGH COUNCIL,20/11/2020,ADULT CARE LCO FUNCTIONS,THE BIG WORD,20/11/2020,42,TRANSLATION & INTERPRETATION,V001628857
ROCHDALE BOROUGH COUNCIL,20/11/2020,ADULT CARE LCO FUNCTIONS,THE BIG WORD,20/11/2020,36,TRANSLATION & INTERPRETATION,V001628857
ROCHDALE BOROUGH COUNCIL,20/11/2020,CHILDREN�S SOCIAL CARE,THE BIG WORD,20/11/2020,57.5,TRANSLATION & INTERPRETATION,V001628857
ROCHDALE BOROUGH COUNCIL,20/11/2020,CHILDREN�S SOCIAL CARE,THE BIG WORD,20/11/2020,36,TRANSLATION & INTERPRETATION,V001628857
ROCHDALE BOROUGH COUNCIL,20/11/2020,CHILDREN�S SOCIAL CARE,THE BIG WORD,20/11/2020,2,TRANSLATION & INTERPRETATION,V001628857
ROCHDALE BOROUGH COUNCIL,20/11/2020,CHILDREN�S SOCIAL CARE,THE BIG WORD,20/11/2020,28.5,TRANSLATION & INTERPRETATION,V001628857
ROCHDALE BOROUGH COUNCIL,20/11/2020,CHILDREN�S SOCIAL CARE,THE BIG WORD,20/11/2020,2,TRANSLATION & INTERPRETATION,V001628857
ROCHDALE BOROUGH COUNCIL,20/11/2020,CHILDREN�S SOCIAL CARE,THE BIG WORD,20/11/2020,28.5,TRANSLATION & INTERPRETATION,V001628857
ROCHDALE BOROUGH COUNCIL,20/11/2020,CHILDREN�S SOCIAL CARE,THE BIG WORD,20/11/2020,36,TRANSLATION & INTERPRETATION,V001628857
ROCHDALE BOROUGH COUNCIL,20/11/2020,ADULT CARE LCO FUNCTIONS,THE BIG WORD,20/11/2020,28.5,TRANSLATION & INTERPRETATION,V001628857
ROCHDALE BOROUGH COUNCIL,20/11/2020,CHILDREN�S SOCIAL CARE,THE BIG WORD,20/11/2020,30.5,TRANSLATION & INTERPRETATION,V001628857
ROCHDALE BOROUGH COUNCIL,20/11/2020,EARLY HELP AND SCHOOLS,THE BIG WORD,20/11/2020,28.5,TRANSLATION & INTERPRETATION,V001628857
ROCHDALE BOROUGH COUNCIL,20/11/2020,EARLY HELP AND SCHOOLS,THE BIG WORD,20/11/2020,36,TRANSLATION & INTERPRETATION,V001628857
ROCHDALE BOROUGH COUNCIL,20/11/2020,CHILDREN�S SOCIAL CARE,THE BIG WORD,20/11/2020,55.5,TRANSLATION & INTERPRETATION,V001628857
ROCHDALE BOROUGH COUNCIL,20/11/2020,CHILDREN�S SOCIAL CARE,THE BIG WORD,20/11/2020,48.75,TRANSLATION & INTERPRETATION,V001628857
ROCHDALE BOROUGH COUNCIL,20/11/2020,ADULT CARE LCO FUNCTIONS,THE BIG WORD,20/11/2020,28.5,TRANSLATION & INTERPRETATION,V001628857
ROCHDALE BOROUGH COUNCIL,20/11/2020,ADULT CARE LCO FUNCTIONS,THE BIG WORD,20/11/2020,36,TRANSLATION & INTERPRETATION,V001628857
ROCHDALE BOROUGH COUNCIL,20/11/2020,COMMISSIONING AND STATUTORY,THE BIG WORD,20/11/2020,28.5,TRANSLATION & INTERPRETATION,V001628857
ROCHDALE BOROUGH COUNCIL,20/11/2020,COMMISSIONING AND STATUTORY,THE BIG WORD,20/11/2020,16,TRANSLATION & INTERPRETATION,V001628857
ROCHDALE BOROUGH COUNCIL,20/11/2020,EARLY HELP AND SCHOOLS,THE BIG WORD,20/11/2020,28.5,TRANSLATION & INTERPRETATION,V001628857
ROCHDALE BOROUGH COUNCIL,20/11/2020,EARLY HELP AND SCHOOLS,THE BIG WORD,20/11/2020,36,TRANSLATION & INTERPRETATION,V001628857
ROCHDALE BOROUGH COUNCIL,20/11/2020,EARLY HELP AND SCHOOLS,THE BIG WORD,20/11/2020,35.25,TRANSLATION & INTERPRETATION,V001628857
ROCHDALE BOROUGH COUNCIL,20/11/2020,EARLY HELP AND SCHOOLS,THE BIG WORD,20/11/2020,2,TRANSLATION & INTERPRETATION,V001628857
ROCHDALE BOROUGH COUNCIL,20/11/2020,EARLY HELP AND SCHOOLS,THE BIG WORD,20/11/2020,44,TRANSLATION & INTERPRETATION,V001628857
ROCHDALE BOROUGH COUNCIL,20/11/2020,EARLY HELP AND SCHOOLS,THE BIG WORD,20/11/2020,2,TRANSLATION & INTERPRETATION,V001628857
ROCHDALE BOROUGH COUNCIL,20/11/2020,CHILDREN�S SOCIAL CARE,THE BIG WORD,20/11/2020,48.75,TRANSLATION & INTERPRETATION,V001628857
ROCHDALE BOROUGH COUNCIL,20/11/2020,CHILDREN�S SOCIAL CARE,THE BIG WORD,20/11/2020,2,TRANSLATION & INTERPRETATION,V001628857
ROCHDALE BOROUGH COUNCIL,20/11/2020,EARLY HELP AND SCHOOLS,THE BIG WORD,20/11/2020,28.5,TRANSLATION & INTERPRETATION,V001628857
ROCHDALE BOROUGH COUNCIL,20/11/2020,EARLY HELP AND SCHOOLS,THE BIG WORD,20/11/2020,36,TRANSLATION & INTERPRETATION,V001628857
ROCHDALE BOROUGH COUNCIL,20/11/2020,CHILDREN�S SOCIAL CARE,THE BIG WORD,20/11/2020,28.5,TRANSLATION & INTERPRETATION,V001628857
ROCHDALE BOROUGH COUNCIL,20/11/2020,CHILDREN�S SOCIAL CARE,THE BIG WORD,20/11/2020,2,TRANSLATION & INTERPRETATION,V001628857
ROCHDALE BOROUGH COUNCIL,20/11/2020,ADULT CARE LCO FUNCTIONS,THE BIG WORD,20/11/2020,62.25,TRANSLATION & INTERPRETATION,V001628857
ROCHDALE BOROUGH COUNCIL,20/11/2020,ADULT CARE LCO FUNCTIONS,THE BIG WORD,20/11/2020,36,TRANSLATION & INTERPRETATION,V001628857
ROCHDALE BOROUGH COUNCIL,20/11/2020,ADULT CARE LCO FUNCTIONS,THE BIG WORD,20/11/2020,42,TRANSLATION & INTERPRETATION,V001628857
ROCHDALE BOROUGH COUNCIL,20/11/2020,CHILDREN�S SOCIAL CARE,THE BIG WORD,20/11/2020,48.75,TRANSLATION & INTERPRETATION,V001628857
ROCHDALE BOROUGH COUNCIL,27/11/2020,CHILDREN�S SOCIAL CARE,MILLENNIUM TRANSLATIONS LTD,27/11/2020,96,TRANSLATION & INTERPRETATION,V001628859
ROCHDALE BOROUGH COUNCIL,16/11/2020,NEIGHBOURHOODS AND ENVIRONMENT,CARRICK SIGNS LTD,16/11/2020,675,PRINTING,V001628861
ROCHDALE BOROUGH COUNCIL,18/11/2020,ECONOMY DIRECTORATE,BURKE AND  EASTWOOD ELECTRICAL LIMITED,18/11/2020,440,ELECTRICAL,V001628865
ROCHDALE BOROUGH COUNCIL,25/11/2020,NEIGHBOURHOODS AND ENVIRONMENT,JONES AND BROOKS LTD,25/11/2020,48,PRINTING,V001628870
ROCHDALE BOROUGH COUNCIL,06/11/2020,PUBLIC HEALTH,ACORN RECOVERY PROJECTS,06/11/2020,1182.86,CONTRACTED SERVICES,V001628883
ROCHDALE BOROUGH COUNCIL,06/11/2020,PUBLIC HEALTH,ACORN RECOVERY PROJECTS,06/11/2020,2037.14,CONTRACTED SERVICES,V001628884
ROCHDALE BOROUGH COUNCIL,06/11/2020,PUBLIC HEALTH,ACORN RECOVERY PROJECTS,06/11/2020,1971.43,CONTRACTED SERVICES,V001628886
ROCHDALE BOROUGH COUNCIL,06/11/2020,PUBLIC HEALTH,ACORN RECOVERY PROJECTS,06/11/2020,1971.43,CONTRACTED SERVICES,V001628887
ROCHDALE BOROUGH COUNCIL,06/11/2020,PUBLIC HEALTH,ACORN RECOVERY PROJECTS,06/11/2020,920,CONTRACTED SERVICES,V001628888
ROCHDALE BOROUGH COUNCIL,25/11/2020,PUBLIC HEALTH,ACTION TOGETHER,25/11/2020,22916.66,PH OTHER CONTRACTS,V001628892
ROCHDALE BOROUGH COUNCIL,17/11/2020,EARLY HELP AND SCHOOLS,F S MOULT AND SON,17/11/2020,3260,MINOR BUILDING WORKS,V001628895
ROCHDALE BOROUGH COUNCIL,17/11/2020,EARLY HELP AND SCHOOLS,F S MOULT AND SON,17/11/2020,1000,MINOR BUILDING WORKS,V001628895
ROCHDALE BOROUGH COUNCIL,16/11/2020,CHILDREN�S SOCIAL CARE,NEXT STAGE A WAY FORWARD YOUTH DEVELOPMENT LTD,16/11/2020,4650,YOUNG PEOPLES RENTS,V001628902
ROCHDALE BOROUGH COUNCIL,16/11/2020,CHILDREN�S SOCIAL CARE,NEXT STAGE A WAY FORWARD YOUTH DEVELOPMENT LTD,16/11/2020,248.14,YOUNGE PERSONS ALLOWANCE,V001628903
ROCHDALE BOROUGH COUNCIL,13/11/2020,CHILDREN�S SOCIAL CARE,NEXT STAGE A WAY FORWARD YOUTH DEVELOPMENT LTD,13/11/2020,4650,YOUNG PEOPLES RENTS,V001628904
ROCHDALE BOROUGH COUNCIL,11/11/2020,EARLY HELP AND SCHOOLS,P N S LANDSCAPES,11/11/2020,61.25,GROUNDS MAINTENANCE GENERAL,V001628905
ROCHDALE BOROUGH COUNCIL,16/11/2020,CHILDREN�S SOCIAL CARE,NEXT STAGE A WAY FORWARD YOUTH DEVELOPMENT LTD,16/11/2020,256.41,YOUNGE PERSONS ALLOWANCE,V001628909
ROCHDALE BOROUGH COUNCIL,16/11/2020,CHILDREN�S SOCIAL CARE,NEXT STAGE A WAY FORWARD YOUTH DEVELOPMENT LTD,16/11/2020,4805,YOUNG PEOPLES RENTS,V001628911
ROCHDALE BOROUGH COUNCIL,11/11/2020,CHILDREN�S SOCIAL CARE,CAMBIAN CHILDCARE LIMITED,11/11/2020,664.29,EBD (EMOT & BEHAV DIFF) PLACEMENTS,V001628916
ROCHDALE BOROUGH COUNCIL,18/11/2020,EARLY HELP AND SCHOOLS,F S MOULT AND SON,18/11/2020,3900,REPAIRS & ALTS OF BUILDINGS,V001628926
ROCHDALE BOROUGH COUNCIL,18/11/2020,EARLY HELP AND SCHOOLS,F S MOULT AND SON,18/11/2020,950,REPAIRS & ALTS OF BUILDINGS,V001628926
ROCHDALE BOROUGH COUNCIL,12/11/2020,ECONOMY DIRECTORATE,POOLE DICK ASSOCIATES,12/11/2020,1350,PROFESSIONAL FEES,V001628935
ROCHDALE BOROUGH COUNCIL,12/11/2020,ECONOMY DIRECTORATE,POOLE DICK ASSOCIATES,12/11/2020,800,CONSULTANTS FEES,V001628936
ROCHDALE BOROUGH COUNCIL,11/11/2020,EARLY HELP AND SCHOOLS,P N S LANDSCAPES,11/11/2020,61.25,GROUNDS MAINTENANCE GENERAL,V001628938
ROCHDALE BOROUGH COUNCIL,06/11/2020,EARLY HELP AND SCHOOLS,P N S LANDSCAPES,06/11/2020,61.25,GROUNDS MAINTENANCE GENERAL,V001628941
ROCHDALE BOROUGH COUNCIL,11/11/2020,EARLY HELP AND SCHOOLS,P N S LANDSCAPES,11/11/2020,61.25,GROUNDS MAINTENANCE GENERAL,V001628943
ROCHDALE BOROUGH COUNCIL,16/11/2020,CHILDREN�S SOCIAL CARE,INDEPENDENT TOGETHER LTD,16/11/2020,214.29,YOUNG PEOPLES RENTS,V001629304
ROCHDALE BOROUGH COUNCIL,09/11/2020,NEIGHBOURHOODS AND ENVIRONMENT,ALLIANCE DISPOSABLES LIMITED,09/11/2020,270,CONSUMABLES,V001629312
ROCHDALE BOROUGH COUNCIL,17/11/2020,EARLY HELP AND SCHOOLS,MONARCH EDUCATION LTD,17/11/2020,720,OTHER LA`S - SEN PROVISION,V001629326
ROCHDALE BOROUGH COUNCIL,10/11/2020,EARLY HELP AND SCHOOLS,SHRED STATION,10/11/2020,-2,DISPOSAL OF CONFIDENTIAL EQUIPMENT AND W,V001629328
ROCHDALE BOROUGH COUNCIL,13/11/2020,PROPERTY AND HIGHWAYS,HOWARTH TIMBER AND BUILDING SUPPLIES LTD,13/11/2020,-32.4,PROPERTY - WORKS ELEMENT,V001629329
ROCHDALE BOROUGH COUNCIL,16/11/2020,CHILDREN�S SOCIAL CARE,SHIELD SUPPORT HUB LTD,16/11/2020,5535.71,YOUNG PEOPLES RENTS,V001629331
ROCHDALE BOROUGH COUNCIL,16/11/2020,CHILDREN�S SOCIAL CARE,SHIELD SUPPORT HUB LTD,16/11/2020,235.6,YOUNGE PERSONS ALLOWANCE,V001629331
ROCHDALE BOROUGH COUNCIL,10/11/2020,PROPERTY AND HIGHWAYS,WINDOW DOCTOR SERVICES LTD,10/11/2020,160,REPAIRS & ALTS OF BUILDINGS,V001629342
ROCHDALE BOROUGH COUNCIL,04/11/2020,CHILDREN�S SOCIAL CARE,PARADIGM PROFESSIONAL CONSULTANCY LTD,04/11/2020,1186.5,AGENCY STAFF,V001629345
ROCHDALE BOROUGH COUNCIL,26/11/2020,PUBLIC HEALTH,TURNING POINT,26/11/2020,1950,CONTRACTED SERVICES,V001629350
ROCHDALE BOROUGH COUNCIL,26/11/2020,NEIGHBOURHOODS AND ENVIRONMENT,THE PROTON GROUP LIMITED,26/11/2020,278.81,CLEANING MATERIALS,V001629356
ROCHDALE BOROUGH COUNCIL,13/11/2020,CHILDREN�S SOCIAL CARE,BALTIMORE CONSULTING LTD,13/11/2020,3281.25,AGENCY STAFF,V001629358
ROCHDALE BOROUGH COUNCIL,18/11/2020,ECONOMY DIRECTORATE,F S MOULT AND SON,18/11/2020,920,REPAIRS & ALTS OF BUILDINGS,V001629359
ROCHDALE BOROUGH COUNCIL,18/11/2020,ECONOMY DIRECTORATE,F S MOULT AND SON,18/11/2020,400,REPAIRS & ALTS OF BUILDINGS,V001629359
ROCHDALE BOROUGH COUNCIL,13/11/2020,RESOURCES,SOLOPROTECT LTD,13/11/2020,179.65,SECURITY,V001629360
ROCHDALE BOROUGH COUNCIL,13/11/2020,RESOURCES,CRITIQOM LIMITED,13/11/2020,294.55,PRINTING,V001629397
ROCHDALE BOROUGH COUNCIL,26/11/2020,CHILDREN�S SOCIAL CARE,G AND A TAYLOR HOTELS LTD,26/11/2020,151.04,ACCOMMODATION,V001629405
ROCHDALE BOROUGH COUNCIL,20/11/2020,RESOURCES,CIVICA UK LIMITED,20/11/2020,-95750,SOFTWARE,V001629431
ROCHDALE BOROUGH COUNCIL,10/11/2020,CHILDREN�S SOCIAL CARE,SWIIS FOSTER CARE LIMITED,10/11/2020,776.23,FOSTER PARENTS BASIC ALLOWANCE,V001629439
ROCHDALE BOROUGH COUNCIL,13/11/2020,PROPERTY AND HIGHWAYS,HOWARTH TIMBER AND BUILDING SUPPLIES LTD,13/11/2020,98.21,PROPERTY - WORKS ELEMENT,V001629442
ROCHDALE BOROUGH COUNCIL,10/11/2020,NEIGHBOURHOODS AND ENVIRONMENT,WHISTL UK LTD,10/11/2020,959.71,TRANSACTIONS-EXPENDITURE,V001629445
ROCHDALE BOROUGH COUNCIL,03/11/2020,PROPERTY AND HIGHWAYS,REACH PUBLISHING SERVICES LTD,03/11/2020,70.56,ADVERTISING,V001629472
ROCHDALE BOROUGH COUNCIL,16/11/2020,ECONOMY DIRECTORATE,REACH PUBLISHING SERVICES LTD,16/11/2020,60.8,PROFESSIONAL FEES,V001629473
ROCHDALE BOROUGH COUNCIL,09/11/2020,CHILDREN�S SOCIAL CARE,G AND A TAYLOR HOTELS LTD,09/11/2020,528.64,ACCOMMODATION,V001629484
ROCHDALE BOROUGH COUNCIL,12/11/2020,PROPERTY AND HIGHWAYS,ABBEY ARCHITECTURAL IRONMONGERY CO LTD,12/11/2020,6.92,PROPERTY - WORKS ELEMENT,V001629485
ROCHDALE BOROUGH COUNCIL,12/11/2020,PROPERTY AND HIGHWAYS,WOLSELEY UK LIMITED,12/11/2020,8.07,BUILDING MATERIALS,V001629500
ROCHDALE BOROUGH COUNCIL,12/11/2020,ECONOMY DIRECTORATE,HILL DICKINSON LLP,12/11/2020,821,CONSULTANTS FEES,V001629505
ROCHDALE BOROUGH COUNCIL,27/11/2020,CHILDREN�S SOCIAL CARE,MILLENNIUM TRANSLATIONS LTD,27/11/2020,76.4,TRANSLATION & INTERPRETATION,V001629511
ROCHDALE BOROUGH COUNCIL,04/11/2020,CHILDREN�S SOCIAL CARE,MILLENNIUM TRANSLATIONS LTD,04/11/2020,50.4,TRANSLATION & INTERPRETATION,V001629516
ROCHDALE BOROUGH COUNCIL,04/11/2020,CHILDREN�S SOCIAL CARE,MILLENNIUM TRANSLATIONS LTD,04/11/2020,12,TRANSLATION & INTERPRETATION,V001629517
ROCHDALE BOROUGH COUNCIL,04/11/2020,CHILDREN�S SOCIAL CARE,MILLENNIUM TRANSLATIONS LTD,04/11/2020,5,TRANSLATION & INTERPRETATION,V001629518
ROCHDALE BOROUGH COUNCIL,04/11/2020,CHILDREN�S SOCIAL CARE,MILLENNIUM TRANSLATIONS LTD,04/11/2020,20.8,TRANSLATION & INTERPRETATION,V001629519
ROCHDALE BOROUGH COUNCIL,04/11/2020,CHILDREN�S SOCIAL CARE,MILLENNIUM TRANSLATIONS LTD,04/11/2020,5,TRANSLATION & INTERPRETATION,V001629520
ROCHDALE BOROUGH COUNCIL,04/11/2020,CHILDREN�S SOCIAL CARE,MILLENNIUM TRANSLATIONS LTD,04/11/2020,48,TRANSLATION & INTERPRETATION,V001629522
ROCHDALE BOROUGH COUNCIL,27/11/2020,CHILDREN�S SOCIAL CARE,MILLENNIUM TRANSLATIONS LTD,27/11/2020,55.2,TRANSLATION & INTERPRETATION,V001629523
ROCHDALE BOROUGH COUNCIL,27/11/2020,CHILDREN�S SOCIAL CARE,MILLENNIUM TRANSLATIONS LTD,27/11/2020,35,TRANSLATION & INTERPRETATION,V001629524
ROCHDALE BOROUGH COUNCIL,25/11/2020,EARLY HELP AND SCHOOLS,J C MILLS & SON LIMITED,25/11/2020,165,REPAIRS & ALTS OF BUILDINGS,V001629639
ROCHDALE BOROUGH COUNCIL,13/11/2020,PROPERTY AND HIGHWAYS,WHEELDON BROTHERS WASTE LIMITED,13/11/2020,280.08,TIPPING CHARGES,V001629805
ROCHDALE BOROUGH COUNCIL,13/11/2020,PROPERTY AND HIGHWAYS,WHEELDON BROTHERS WASTE LIMITED,13/11/2020,280.08,TIPPING CHARGES,V001629805
ROCHDALE BOROUGH COUNCIL,12/11/2020,CHILDREN�S SOCIAL CARE,CAPSTONE FOSTER CARE,12/11/2020,3765.48,FOSTER PARENTS BASIC ALLOWANCE,V001629808
ROCHDALE BOROUGH COUNCIL,06/11/2020,RESOURCES,FORBES SOLICITORS,06/11/2020,150,INPUT VAT -  ADJUSTMENTS,V001629845
ROCHDALE BOROUGH COUNCIL,11/11/2020,PUBLIC HEALTH,BARDOC LTD,11/11/2020,54821.25,PROFESSIONAL FEES,V001631150
ROCHDALE BOROUGH COUNCIL,17/11/2020,ECONOMY DIRECTORATE,GTM ELECTRICAL SERVICES LIMITED,17/11/2020,670,SECURITY,V001631173
ROCHDALE BOROUGH COUNCIL,26/11/2020,NEIGHBOURHOODS AND ENVIRONMENT,PATTERSONS BRISTOL LTD,26/11/2020,9.08,CLEANING MATERIALS,V001631176
ROCHDALE BOROUGH COUNCIL,26/11/2020,NEIGHBOURHOODS AND ENVIRONMENT,PATTERSONS BRISTOL LTD,26/11/2020,3.64,CLEANING MATERIALS,V001631176
ROCHDALE BOROUGH COUNCIL,26/11/2020,NEIGHBOURHOODS AND ENVIRONMENT,PATTERSONS BRISTOL LTD,26/11/2020,3.69,CLEANING MATERIALS,V001631176
ROCHDALE BOROUGH COUNCIL,26/11/2020,NEIGHBOURHOODS AND ENVIRONMENT,PATTERSONS BRISTOL LTD,26/11/2020,4.49,CLEANING MATERIALS,V001631176
ROCHDALE BOROUGH COUNCIL,26/11/2020,NEIGHBOURHOODS AND ENVIRONMENT,PATTERSONS BRISTOL LTD,26/11/2020,2.42,CLEANING EQUIPMENT,V001631176
ROCHDALE BOROUGH COUNCIL,26/11/2020,NEIGHBOURHOODS AND ENVIRONMENT,PATTERSONS BRISTOL LTD,26/11/2020,3.64,CLEANING MATERIALS,V001631176
ROCHDALE BOROUGH COUNCIL,26/11/2020,NEIGHBOURHOODS AND ENVIRONMENT,PATTERSONS BRISTOL LTD,26/11/2020,17.44,CLEANING EQUIPMENT,V001631176
ROCHDALE BOROUGH COUNCIL,26/11/2020,NEIGHBOURHOODS AND ENVIRONMENT,PATTERSONS BRISTOL LTD,26/11/2020,13.26,CLEANING EQUIPMENT,V001631178
ROCHDALE BOROUGH COUNCIL,26/11/2020,NEIGHBOURHOODS AND ENVIRONMENT,PATTERSONS BRISTOL LTD,26/11/2020,12.08,CLEANING MATERIALS,V001631178
ROCHDALE BOROUGH COUNCIL,26/11/2020,NEIGHBOURHOODS AND ENVIRONMENT,PATTERSONS BRISTOL LTD,26/11/2020,7.28,CLEANING MATERIALS,V001631178
ROCHDALE BOROUGH COUNCIL,26/11/2020,NEIGHBOURHOODS AND ENVIRONMENT,PATTERSONS BRISTOL LTD,26/11/2020,22.35,CLEANING MATERIALS,V001631178
ROCHDALE BOROUGH COUNCIL,26/11/2020,NEIGHBOURHOODS AND ENVIRONMENT,PATTERSONS BRISTOL LTD,26/11/2020,4.29,CLEANING MATERIALS,V001631178
ROCHDALE BOROUGH COUNCIL,26/11/2020,NEIGHBOURHOODS AND ENVIRONMENT,PATTERSONS BRISTOL LTD,26/11/2020,13.5,CLEANING EQUIPMENT,V001631178
ROCHDALE BOROUGH COUNCIL,26/11/2020,NEIGHBOURHOODS AND ENVIRONMENT,PATTERSONS BRISTOL LTD,26/11/2020,7.32,CLEANING MATERIALS,V001631178
ROCHDALE BOROUGH COUNCIL,26/11/2020,NEIGHBOURHOODS AND ENVIRONMENT,PATTERSONS BRISTOL LTD,26/11/2020,7.32,CLEANING MATERIALS,V001631178
ROCHDALE BOROUGH COUNCIL,26/11/2020,NEIGHBOURHOODS AND ENVIRONMENT,PATTERSONS BRISTOL LTD,26/11/2020,14.1,CLEANING MATERIALS,V001631178
ROCHDALE BOROUGH COUNCIL,26/11/2020,NEIGHBOURHOODS AND ENVIRONMENT,PATTERSONS BRISTOL LTD,26/11/2020,26.4,CLEANING MATERIALS,V001631178
ROCHDALE BOROUGH COUNCIL,26/11/2020,NEIGHBOURHOODS AND ENVIRONMENT,PATTERSONS BRISTOL LTD,26/11/2020,32.16,CLEANING EQUIPMENT,V001631178
ROCHDALE BOROUGH COUNCIL,25/11/2020,NEIGHBOURHOODS AND ENVIRONMENT,ALLIANCE DISPOSABLES LIMITED,25/11/2020,62.7,CONSUMABLES,V001631203
ROCHDALE BOROUGH COUNCIL,25/11/2020,NEIGHBOURHOODS AND ENVIRONMENT,ALLIANCE DISPOSABLES LIMITED,25/11/2020,7.5,CONSUMABLES,V001631203
ROCHDALE BOROUGH COUNCIL,06/11/2020,EARLY HELP AND SCHOOLS,TEACHING PERSONNEL LTD,06/11/2020,148,OTHER LA`S - SEN PROVISION,V001631219
ROCHDALE BOROUGH COUNCIL,25/11/2020,EARLY HELP AND SCHOOLS,REDACTED - PERSONAL DATA,25/11/2020,4753.66,OTHER LA`S - SEN PROVISION,V001631257
ROCHDALE BOROUGH COUNCIL,10/11/2020,CHILDREN�S SOCIAL CARE,STEP AHEAD,10/11/2020,1200,YOUNG PEOPLES RENTS,V001631276
ROCHDALE BOROUGH COUNCIL,04/11/2020,NEIGHBOURHOODS AND ENVIRONMENT,GRAFFIC  DETAIL,04/11/2020,163,EQUIPMENT - GENERAL,V001631280
ROCHDALE BOROUGH COUNCIL,04/11/2020,NEIGHBOURHOODS AND ENVIRONMENT,GRAFFIC  DETAIL,04/11/2020,262,EQUIPMENT - GENERAL,V001631280
ROCHDALE BOROUGH COUNCIL,18/11/2020,NEIGHBOURHOODS AND ENVIRONMENT,SPIN PRINT SOLUTIONS,18/11/2020,475,PRINTING,V001631301
ROCHDALE BOROUGH COUNCIL,09/11/2020,ECONOMY DIRECTORATE,GTM ELECTRICAL SERVICES LIMITED,09/11/2020,18.05,SECURITY,V001631302
ROCHDALE BOROUGH COUNCIL,20/11/2020,ADULT CARE LCO FUNCTIONS,ALMOND VILLAS LIMITED,20/11/2020,1033.08,NURSING LONG TERM,V001631702
ROCHDALE BOROUGH COUNCIL,20/11/2020,ADULT CARE LCO FUNCTIONS,ALMOND VILLAS LIMITED,20/11/2020,1033.08,NURSING LONG TERM,V001631729
ROCHDALE BOROUGH COUNCIL,20/11/2020,ADULT CARE LCO FUNCTIONS,ALMOND VILLAS LIMITED,20/11/2020,1033.08,NURSING LONG TERM,V001631739
ROCHDALE BOROUGH COUNCIL,20/11/2020,ADULT CARE LCO FUNCTIONS,ALMOND VILLAS LIMITED,20/11/2020,-274.46,HOME CARE - ADULT SERVICES,V001632864
ROCHDALE BOROUGH COUNCIL,20/11/2020,ADULT CARE LCO FUNCTIONS,ALMOND VILLAS LIMITED,20/11/2020,-768.5,HOME CARE - ADULT SERVICES,V001632865
ROCHDALE BOROUGH COUNCIL,20/11/2020,ADULT CARE LCO FUNCTIONS,ALMOND VILLAS LIMITED,20/11/2020,-768.5,HOME CARE - ADULT SERVICES,V001632866
ROCHDALE BOROUGH COUNCIL,20/11/2020,ADULT CARE LCO FUNCTIONS,ALMOND VILLAS LIMITED,20/11/2020,-768.5,HOME CARE - ADULT SERVICES,V001632867
ROCHDALE BOROUGH COUNCIL,20/11/2020,ADULT CARE LCO FUNCTIONS,ALMOND VILLAS LIMITED,20/11/2020,-768.5,HOME CARE - ADULT SERVICES,V001632868
ROCHDALE BOROUGH COUNCIL,20/11/2020,ADULT CARE LCO FUNCTIONS,ALMOND VILLAS LIMITED,20/11/2020,-768.5,HOME CARE - ADULT SERVICES,V001632869
ROCHDALE BOROUGH COUNCIL,20/11/2020,ADULT CARE LCO FUNCTIONS,ALMOND VILLAS LIMITED,20/11/2020,-768.5,HOME CARE - ADULT SERVICES,V001632870
ROCHDALE BOROUGH COUNCIL,13/11/2020,ADULT CARE LCO FUNCTIONS,MAKING SPACE,13/11/2020,-299.4,HOME CARE - ADULT SERVICES,V001633204
ROCHDALE BOROUGH COUNCIL,13/11/2020,ADULT CARE LCO FUNCTIONS,MAKING SPACE,13/11/2020,-598.8,HOME CARE - ADULT SERVICES,V001633205
ROCHDALE BOROUGH COUNCIL,13/11/2020,ADULT CARE LCO FUNCTIONS,MAKING SPACE,13/11/2020,449.1,HOME CARE - ADULT SERVICES,V001633206
ROCHDALE BOROUGH COUNCIL,18/11/2020,PROPERTY AND HIGHWAYS,DDH FABRICATIONS LTD,18/11/2020,240,PROPERTY - WORKS ELEMENT,V001633488
ROCHDALE BOROUGH COUNCIL,09/11/2020,ECONOMY DIRECTORATE,BANNER GROUP LIMITED,09/11/2020,3.1,PRINTING & STATIONERY,V001633500
ROCHDALE BOROUGH COUNCIL,09/11/2020,ECONOMY DIRECTORATE,BANNER GROUP LIMITED,09/11/2020,12.5,PRINTING & STATIONERY,V001633500
ROCHDALE BOROUGH COUNCIL,09/11/2020,CHILDREN�S SOCIAL CARE,FOSTER CARE ASSOCIATES LIMITED,09/11/2020,3936.38,FOSTER PARENTS BASIC ALLOWANCE,V001633554
ROCHDALE BOROUGH COUNCIL,09/11/2020,CHILDREN�S SOCIAL CARE,FOSTER CARE ASSOCIATES LIMITED,09/11/2020,3936.38,FOSTER PARENTS BASIC ALLOWANCE,V001633554
ROCHDALE BOROUGH COUNCIL,09/11/2020,CHILDREN�S SOCIAL CARE,FOSTER CARE ASSOCIATES LIMITED,09/11/2020,5799.3,FOSTER PARENTS BASIC ALLOWANCE,V001633555
ROCHDALE BOROUGH COUNCIL,09/11/2020,CHILDREN�S SOCIAL CARE,FOSTER CARE ASSOCIATES LIMITED,09/11/2020,5799.3,FOSTER PARENTS BASIC ALLOWANCE,V001633555
ROCHDALE BOROUGH COUNCIL,27/11/2020,CHILDREN�S SOCIAL CARE,MILLENNIUM TRANSLATIONS LTD,27/11/2020,48,TRANSLATION & INTERPRETATION,V001633557
ROCHDALE BOROUGH COUNCIL,10/11/2020,CHILDREN�S SOCIAL CARE,STEP AHEAD,10/11/2020,58.9,YOUNGE PERSONS ALLOWANCE,V001633568
ROCHDALE BOROUGH COUNCIL,10/11/2020,PROPERTY AND HIGHWAYS,REACH PUBLISHING SERVICES LTD,10/11/2020,60.8,ADVERTISING,V001633569
ROCHDALE BOROUGH COUNCIL,05/11/2020,ECONOMY DIRECTORATE,GTM ELECTRICAL SERVICES LIMITED,05/11/2020,36.1,SECURITY,V001633570
ROCHDALE BOROUGH COUNCIL,12/11/2020,NEIGHBOURHOODS AND ENVIRONMENT,RYEDALE PRINTING WORKS LIMITED,12/11/2020,488.74,EQUIPMENT - GENERAL,V001633573
ROCHDALE BOROUGH COUNCIL,30/11/2020,EARLY HELP AND SCHOOLS,REDACTED - PERSONAL DATA,30/11/2020,981.67,TRAVELLING GENERAL EXPENSES,V001633603
ROCHDALE BOROUGH COUNCIL,02/11/2020,RESOURCES,BLOOM PROCUREMENT SERVICES LTD,02/11/2020,1955.63,AGENCY STAFF,V001633670
ROCHDALE BOROUGH COUNCIL,20/11/2020,PROPERTY AND HIGHWAYS,ELECTRIC CENTER,20/11/2020,66.75,PROPERTY - WORKS ELEMENT,V001633814
ROCHDALE BOROUGH COUNCIL,25/11/2020,NEIGHBOURHOODS AND ENVIRONMENT,JGM AGENCY,25/11/2020,450,PUBLICITY,V001634104
ROCHDALE BOROUGH COUNCIL,25/11/2020,NEIGHBOURHOODS AND ENVIRONMENT,JGM AGENCY,25/11/2020,3082.5,PUBLICITY,V001634131
ROCHDALE BOROUGH COUNCIL,25/11/2020,NEIGHBOURHOODS AND ENVIRONMENT,JGM AGENCY,25/11/2020,3600,PUBLICITY,V001634132
ROCHDALE BOROUGH COUNCIL,25/11/2020,NEIGHBOURHOODS AND ENVIRONMENT,JGM AGENCY,25/11/2020,1023.75,PUBLICITY,V001634133
ROCHDALE BOROUGH COUNCIL,10/11/2020,NEIGHBOURHOODS AND ENVIRONMENT,F S MOULT AND SON,10/11/2020,132,MINOR BUILDING WORKS,V001634145
ROCHDALE BOROUGH COUNCIL,06/11/2020,NEIGHBOURHOODS AND ENVIRONMENT,GBM DIGITAL TECHNOLOGIES LTD,06/11/2020,274.95,REFERENCE BOOKS/NEWSPAPERS/PERIODICALS,V001634146
ROCHDALE BOROUGH COUNCIL,02/11/2020,ECONOMY DIRECTORATE,ENVIRONMENTAL RENAISSANCE LTD,02/11/2020,40,SUPPLIES AND SERVICES PROVISION,V001634147
ROCHDALE BOROUGH COUNCIL,02/11/2020,ECONOMY DIRECTORATE,ENVIRONMENTAL RENAISSANCE LTD,02/11/2020,40,SUPPLIES AND SERVICES PROVISION,V001634147
ROCHDALE BOROUGH COUNCIL,02/11/2020,ECONOMY DIRECTORATE,ENVIRONMENTAL RENAISSANCE LTD,02/11/2020,40,SUPPLIES AND SERVICES PROVISION,V001634148
ROCHDALE BOROUGH COUNCIL,02/11/2020,ECONOMY DIRECTORATE,ENVIRONMENTAL RENAISSANCE LTD,02/11/2020,40,SUPPLIES AND SERVICES PROVISION,V001634148
ROCHDALE BOROUGH COUNCIL,02/11/2020,CHILDREN�S SOCIAL CARE,CAPSTONE FOSTER CARE,02/11/2020,-3724.2,FOSTER PARENTS BASIC ALLOWANCE,V001634149
ROCHDALE BOROUGH COUNCIL,12/11/2020,PROPERTY AND HIGHWAYS,REACH PUBLISHING SERVICES LTD,12/11/2020,-50.67,ADVERTISING,V001634152
ROCHDALE BOROUGH COUNCIL,26/11/2020,ECONOMY DIRECTORATE,ARCO GROUP LIMITED,26/11/2020,75.97,"CLOTHES, UNIFORM AND LAUNDRY",V001634165
ROCHDALE BOROUGH COUNCIL,26/11/2020,ECONOMY DIRECTORATE,ARCO GROUP LIMITED,26/11/2020,75.97,"CLOTHES, UNIFORM AND LAUNDRY",V001634165
ROCHDALE BOROUGH COUNCIL,26/11/2020,ECONOMY DIRECTORATE,ARCO GROUP LIMITED,26/11/2020,75.97,"CLOTHES, UNIFORM AND LAUNDRY",V001634165
ROCHDALE BOROUGH COUNCIL,20/11/2020,CHILDREN�S SOCIAL CARE,PATTERSONS BRISTOL LTD,20/11/2020,10,CLEANING MATERIALS,V001634172
ROCHDALE BOROUGH COUNCIL,26/11/2020,NEIGHBOURHOODS AND ENVIRONMENT,PATTERSONS BRISTOL LTD,26/11/2020,35.9,CONSUMABLES,V001634173
ROCHDALE BOROUGH COUNCIL,18/11/2020,CHILDREN�S SOCIAL CARE,RENTRUCK,18/11/2020,46,EXTERNAL HIRE,V001634183
ROCHDALE BOROUGH COUNCIL,10/11/2020,CHILDREN�S SOCIAL CARE,STEP AHEAD,10/11/2020,1200,YOUNG PEOPLES RENTS,V001634193
ROCHDALE BOROUGH COUNCIL,06/11/2020,RESOURCES,FORBES SOLICITORS,06/11/2020,49.2,INPUT VAT -  ADJUSTMENTS,V001634221
ROCHDALE BOROUGH COUNCIL,06/11/2020,EARLY HELP AND SCHOOLS,CRITIQOM LIMITED,06/11/2020,52.96,PRINTING,V001634226
ROCHDALE BOROUGH COUNCIL,18/11/2020,NEIGHBOURHOODS AND ENVIRONMENT,PATTERSONS BRISTOL LTD,18/11/2020,3.64,CLEANING MATERIALS,V001634227
ROCHDALE BOROUGH COUNCIL,18/11/2020,NEIGHBOURHOODS AND ENVIRONMENT,PATTERSONS BRISTOL LTD,18/11/2020,12.1,CLEANING EQUIPMENT,V001634227
ROCHDALE BOROUGH COUNCIL,18/11/2020,NEIGHBOURHOODS AND ENVIRONMENT,PATTERSONS BRISTOL LTD,18/11/2020,22.79,CLEANING MATERIALS,V001634227
ROCHDALE BOROUGH COUNCIL,18/11/2020,NEIGHBOURHOODS AND ENVIRONMENT,PATTERSONS BRISTOL LTD,18/11/2020,3.6,CLEANING EQUIPMENT,V001634227
ROCHDALE BOROUGH COUNCIL,18/11/2020,NEIGHBOURHOODS AND ENVIRONMENT,PATTERSONS BRISTOL LTD,18/11/2020,12.1,CLEANING EQUIPMENT,V001634227
ROCHDALE BOROUGH COUNCIL,18/11/2020,NEIGHBOURHOODS AND ENVIRONMENT,PATTERSONS BRISTOL LTD,18/11/2020,6.63,CLEANING EQUIPMENT,V001634227
ROCHDALE BOROUGH COUNCIL,18/11/2020,NEIGHBOURHOODS AND ENVIRONMENT,PATTERSONS BRISTOL LTD,18/11/2020,7.5,CLEANING MATERIALS,V001634227
ROCHDALE BOROUGH COUNCIL,18/11/2020,NEIGHBOURHOODS AND ENVIRONMENT,PATTERSONS BRISTOL LTD,18/11/2020,6.04,CLEANING MATERIALS,V001634227
ROCHDALE BOROUGH COUNCIL,18/11/2020,NEIGHBOURHOODS AND ENVIRONMENT,PATTERSONS BRISTOL LTD,18/11/2020,1.67,CLEANING MATERIALS,V001634227
ROCHDALE BOROUGH COUNCIL,18/11/2020,NEIGHBOURHOODS AND ENVIRONMENT,PATTERSONS BRISTOL LTD,18/11/2020,7.45,CLEANING MATERIALS,V001634227
ROCHDALE BOROUGH COUNCIL,18/11/2020,NEIGHBOURHOODS AND ENVIRONMENT,PATTERSONS BRISTOL LTD,18/11/2020,4.31,CLEANING MATERIALS,V001634227
ROCHDALE BOROUGH COUNCIL,18/11/2020,NEIGHBOURHOODS AND ENVIRONMENT,PATTERSONS BRISTOL LTD,18/11/2020,9.93,CLEANING MATERIALS,V001634227
ROCHDALE BOROUGH COUNCIL,09/11/2020,CHILDREN�S SOCIAL CARE,FOSTER CARE ASSOCIATES LIMITED,09/11/2020,3414.65,FOSTER PARENTS BASIC ALLOWANCE,V001634228
ROCHDALE BOROUGH COUNCIL,09/11/2020,CHILDREN�S SOCIAL CARE,FOSTER CARE ASSOCIATES LIMITED,09/11/2020,3414.65,FOSTER PARENTS BASIC ALLOWANCE,V001634228
ROCHDALE BOROUGH COUNCIL,27/11/2020,CHILDREN�S SOCIAL CARE,MILLENNIUM TRANSLATIONS LTD,27/11/2020,35,TRANSLATION & INTERPRETATION,V001634229
ROCHDALE BOROUGH COUNCIL,06/11/2020,NEIGHBOURHOODS AND ENVIRONMENT,KILLGERM CHEMICALS LIMITED,06/11/2020,10.41,EQUIPMENT - GENERAL,V001634233
ROCHDALE BOROUGH COUNCIL,05/11/2020,NEIGHBOURHOODS AND ENVIRONMENT,WHISTL UK LTD,05/11/2020,531.5,TRANSACTIONS-EXPENDITURE,V001634234
ROCHDALE BOROUGH COUNCIL,03/11/2020,PROPERTY AND HIGHWAYS,REACH PUBLISHING SERVICES LTD,03/11/2020,70.93,ADVERTISING,V001634235
ROCHDALE BOROUGH COUNCIL,12/11/2020,NEIGHBOURHOODS AND ENVIRONMENT,EARLEY ORNAMENTALS LTD,12/11/2020,573.85,"TREES, SHRUBS, PLANTS",V001634237
ROCHDALE BOROUGH COUNCIL,02/11/2020,CHILDREN�S SOCIAL CARE,CAPSTONE FOSTER CARE,02/11/2020,-496.56,FOSTER PARENTS BASIC ALLOWANCE,V001634243
ROCHDALE BOROUGH COUNCIL,27/11/2020,ECONOMY DIRECTORATE,GTM ELECTRICAL SERVICES LIMITED,27/11/2020,131.86,ELECTRICAL,V001634245
ROCHDALE BOROUGH COUNCIL,16/11/2020,CHILDREN�S SOCIAL CARE,MEADOWS CARE LIMITED,16/11/2020,18157.14,EBD (EMOT & BEHAV DIFF) PLACEMENTS,V001634357
ROCHDALE BOROUGH COUNCIL,16/11/2020,CHILDREN�S SOCIAL CARE,MEADOWS CARE LIMITED,16/11/2020,18157.14,EBD (EMOT & BEHAV DIFF) PLACEMENTS,V001634358
ROCHDALE BOROUGH COUNCIL,16/11/2020,CHILDREN�S SOCIAL CARE,MEADOWS CARE LIMITED,16/11/2020,17271.43,EBD (EMOT & BEHAV DIFF) PLACEMENTS,V001634359
ROCHDALE BOROUGH COUNCIL,16/11/2020,CHILDREN�S SOCIAL CARE,MEADOWS CARE LIMITED,16/11/2020,18157.14,EBD (EMOT & BEHAV DIFF) PLACEMENTS,V001634360
ROCHDALE BOROUGH COUNCIL,27/11/2020,PROPERTY AND HIGHWAYS,ELECTRIC CENTER,27/11/2020,60.22,PROPERTY - WORKS ELEMENT,V001634391
ROCHDALE BOROUGH COUNCIL,09/11/2020,CHILDREN�S SOCIAL CARE,NORTHERN COMMUNITY PATHWAYS LTD,09/11/2020,75,BIRTHDAY ALLOWANCE,V001634394
ROCHDALE BOROUGH COUNCIL,16/11/2020,CHILDREN�S SOCIAL CARE,ACTIVE CARE SOLUTIONS,16/11/2020,3917.47,FOSTER PARENTS BASIC ALLOWANCE,V001634400
ROCHDALE BOROUGH COUNCIL,16/11/2020,CHILDREN�S SOCIAL CARE,ACTIVE CARE SOLUTIONS,16/11/2020,3433.56,FOSTER PARENTS BASIC ALLOWANCE,V001634401
ROCHDALE BOROUGH COUNCIL,12/11/2020,ECONOMY DIRECTORATE,REACH PUBLISHING SERVICES LTD,12/11/2020,44.1,PROFESSIONAL FEES,V001634402
ROCHDALE BOROUGH COUNCIL,02/11/2020,CHILDREN�S SOCIAL CARE,CAPSTONE FOSTER CARE,02/11/2020,-353.28,FOSTER PARENTS BASIC ALLOWANCE,V001634404
ROCHDALE BOROUGH COUNCIL,17/11/2020,NEIGHBOURHOODS AND ENVIRONMENT,AUTO BATTERY SERVICE LTD,17/11/2020,12.99,VEHICLE MAINTENANCE,V001634407
ROCHDALE BOROUGH COUNCIL,17/11/2020,NEIGHBOURHOODS AND ENVIRONMENT,AUTO BATTERY SERVICE LTD,17/11/2020,5.96,VEHICLE MAINTENANCE,V001634407
ROCHDALE BOROUGH COUNCIL,17/11/2020,NEIGHBOURHOODS AND ENVIRONMENT,AUTO BATTERY SERVICE LTD,17/11/2020,12.6,VEHICLE MAINTENANCE,V001634407
ROCHDALE BOROUGH COUNCIL,17/11/2020,NEIGHBOURHOODS AND ENVIRONMENT,AUTO BATTERY SERVICE LTD,17/11/2020,61.52,VEHICLE MAINTENANCE,V001634407
ROCHDALE BOROUGH COUNCIL,17/11/2020,NEIGHBOURHOODS AND ENVIRONMENT,AUTO BATTERY SERVICE LTD,17/11/2020,-169.96,VEHICLE MAINTENANCE,V001634411
ROCHDALE BOROUGH COUNCIL,17/11/2020,NEIGHBOURHOODS AND ENVIRONMENT,AUTO BATTERY SERVICE LTD,17/11/2020,-340.29,VEHICLE MAINTENANCE,V001634411
ROCHDALE BOROUGH COUNCIL,17/11/2020,NEIGHBOURHOODS AND ENVIRONMENT,AUTO BATTERY SERVICE LTD,17/11/2020,-3.59,VEHICLE MAINTENANCE,V001634411
ROCHDALE BOROUGH COUNCIL,17/11/2020,NEIGHBOURHOODS AND ENVIRONMENT,AUTO BATTERY SERVICE LTD,17/11/2020,37.28,VEHICLE MAINTENANCE,V001634415
ROCHDALE BOROUGH COUNCIL,17/11/2020,NEIGHBOURHOODS AND ENVIRONMENT,AUTO BATTERY SERVICE LTD,17/11/2020,4.18,VEHICLE MAINTENANCE,V001634422
ROCHDALE BOROUGH COUNCIL,17/11/2020,NEIGHBOURHOODS AND ENVIRONMENT,AUTO BATTERY SERVICE LTD,17/11/2020,8.73,VEHICLE MAINTENANCE,V001634422
ROCHDALE BOROUGH COUNCIL,17/11/2020,NEIGHBOURHOODS AND ENVIRONMENT,AUTO BATTERY SERVICE LTD,17/11/2020,7.91,VEHICLE MAINTENANCE,V001634422
ROCHDALE BOROUGH COUNCIL,17/11/2020,NEIGHBOURHOODS AND ENVIRONMENT,AUTO BATTERY SERVICE LTD,17/11/2020,11.28,VEHICLE MAINTENANCE,V001634422
ROCHDALE BOROUGH COUNCIL,17/11/2020,NEIGHBOURHOODS AND ENVIRONMENT,AUTO BATTERY SERVICE LTD,17/11/2020,6.95,VEHICLE MAINTENANCE,V001634430
ROCHDALE BOROUGH COUNCIL,17/11/2020,NEIGHBOURHOODS AND ENVIRONMENT,AUTO BATTERY SERVICE LTD,17/11/2020,16.84,VEHICLE MAINTENANCE,V001634432
ROCHDALE BOROUGH COUNCIL,17/11/2020,NEIGHBOURHOODS AND ENVIRONMENT,AUTO BATTERY SERVICE LTD,17/11/2020,4.82,VEHICLE MAINTENANCE,V001634433
ROCHDALE BOROUGH COUNCIL,17/11/2020,NEIGHBOURHOODS AND ENVIRONMENT,AUTO BATTERY SERVICE LTD,17/11/2020,54.33,VEHICLE MAINTENANCE,V001634434
ROCHDALE BOROUGH COUNCIL,17/11/2020,NEIGHBOURHOODS AND ENVIRONMENT,AUTO BATTERY SERVICE LTD,17/11/2020,52.27,VEHICLE MAINTENANCE,V001634434
ROCHDALE BOROUGH COUNCIL,17/11/2020,NEIGHBOURHOODS AND ENVIRONMENT,AUTO BATTERY SERVICE LTD,17/11/2020,4.59,VEHICLE MAINTENANCE,V001634434
ROCHDALE BOROUGH COUNCIL,17/11/2020,NEIGHBOURHOODS AND ENVIRONMENT,AUTO BATTERY SERVICE LTD,17/11/2020,1.69,VEHICLE MAINTENANCE,V001634434
ROCHDALE BOROUGH COUNCIL,17/11/2020,NEIGHBOURHOODS AND ENVIRONMENT,AUTO BATTERY SERVICE LTD,17/11/2020,66.92,VEHICLE MAINTENANCE,V001634434
ROCHDALE BOROUGH COUNCIL,17/11/2020,NEIGHBOURHOODS AND ENVIRONMENT,AUTO BATTERY SERVICE LTD,17/11/2020,1.29,VEHICLE MAINTENANCE,V001634434
ROCHDALE BOROUGH COUNCIL,17/11/2020,NEIGHBOURHOODS AND ENVIRONMENT,AUTO BATTERY SERVICE LTD,17/11/2020,-6.95,VEHICLE MAINTENANCE,V001634442
ROCHDALE BOROUGH COUNCIL,17/11/2020,NEIGHBOURHOODS AND ENVIRONMENT,AUTO BATTERY SERVICE LTD,17/11/2020,128.99,VEHICLE MAINTENANCE,V001634445
ROCHDALE BOROUGH COUNCIL,06/11/2020,NEIGHBOURHOODS AND ENVIRONMENT,NETWORK CONNECT LTD,06/11/2020,150,COMMUNICATION AND COMPUTING - GENERAL,V001634473
ROCHDALE BOROUGH COUNCIL,17/11/2020,NEIGHBOURHOODS AND ENVIRONMENT,FORENSICS LTD,17/11/2020,491.63,TOXICOLOGY PAYMENTS,V001634474
ROCHDALE BOROUGH COUNCIL,18/11/2020,NEIGHBOURHOODS AND ENVIRONMENT,THE PROTON GROUP LIMITED,18/11/2020,494.84,CLEANING MATERIALS,V001634475
ROCHDALE BOROUGH COUNCIL,12/11/2020,CHILDREN�S SOCIAL CARE,HEXAGON CARE SERVICES LTD,12/11/2020,12621.43,EBD (EMOT & BEHAV DIFF) PLACEMENTS,V001634526
ROCHDALE BOROUGH COUNCIL,02/11/2020,NEIGHBOURHOODS AND ENVIRONMENT,G AND A TAYLOR HOTELS LTD,02/11/2020,3869.08,ACCOMMODATION,V001634527
ROCHDALE BOROUGH COUNCIL,02/11/2020,NEIGHBOURHOODS AND ENVIRONMENT,G AND A TAYLOR HOTELS LTD,02/11/2020,303.2,ACCOMMODATION,V001634527
ROCHDALE BOROUGH COUNCIL,02/11/2020,NEIGHBOURHOODS AND ENVIRONMENT,G AND A TAYLOR HOTELS LTD,02/11/2020,1212.86,ACCOMMODATION,V001634527
ROCHDALE BOROUGH COUNCIL,02/11/2020,CHILDREN�S SOCIAL CARE,CORAMBAAF ADOPTION AND FOSTERING ACADEMY,02/11/2020,3409.59,FEES / COMMISSION,V001634532
ROCHDALE BOROUGH COUNCIL,02/11/2020,CHILDREN�S SOCIAL CARE,CORAMBAAF ADOPTION AND FOSTERING ACADEMY,02/11/2020,550,FEES / COMMISSION,V001634532
ROCHDALE BOROUGH COUNCIL,03/11/2020,CHILDREN�S SOCIAL CARE,SWIIS FOSTER CARE LIMITED,03/11/2020,796.11,FOSTER PARENTS BASIC ALLOWANCE,V001634536
ROCHDALE BOROUGH COUNCIL,03/11/2020,CHILDREN�S SOCIAL CARE,SWIIS FOSTER CARE LIMITED,03/11/2020,776.23,FOSTER PARENTS BASIC ALLOWANCE,V001634537
ROCHDALE BOROUGH COUNCIL,02/11/2020,NEIGHBOURHOODS AND ENVIRONMENT,F S MOULT AND SON,02/11/2020,390.21,MINOR BUILDING WORKS,V001634538
ROCHDALE BOROUGH COUNCIL,02/11/2020,NEIGHBOURHOODS AND ENVIRONMENT,F S MOULT AND SON,02/11/2020,270,MINOR BUILDING WORKS,V001634538
ROCHDALE BOROUGH COUNCIL,09/11/2020,PROPERTY AND HIGHWAYS,W J LEWIS BUILDERS MERCHANTS LIMITED,09/11/2020,5.62,PROPERTY - WORKS ELEMENT,V001634540
ROCHDALE BOROUGH COUNCIL,09/11/2020,PROPERTY AND HIGHWAYS,PARR ROCHDALE LIMITED,09/11/2020,42.49,PROPERTY - WORKS ELEMENT,V001634541
ROCHDALE BOROUGH COUNCIL,02/11/2020,CHILDREN�S SOCIAL CARE,PANORAMIC ASSOCIATES LTD,02/11/2020,2375,SERVICE LEVEL AGREEMENTS,V001634543
ROCHDALE BOROUGH COUNCIL,12/11/2020,RESOURCES,CRITIQOM LIMITED,12/11/2020,1794.03,POSTAGE,V001634545
ROCHDALE BOROUGH COUNCIL,06/11/2020,CHILDREN�S SOCIAL CARE,SANDCASTLE CARE LTD,06/11/2020,15057.14,EBD (EMOT & BEHAV DIFF) PLACEMENTS,V001634551
ROCHDALE BOROUGH COUNCIL,06/11/2020,CHILDREN�S SOCIAL CARE,SANDCASTLE CARE LTD,06/11/2020,26350,EBD (EMOT & BEHAV DIFF) PLACEMENTS,V001634552
ROCHDALE BOROUGH COUNCIL,06/11/2020,CHILDREN�S SOCIAL CARE,SANDCASTLE CARE LTD,06/11/2020,14392.86,EBD (EMOT & BEHAV DIFF) PLACEMENTS,V001634553
ROCHDALE BOROUGH COUNCIL,17/11/2020,NEIGHBOURHOODS AND ENVIRONMENT,FORENSICS LTD,17/11/2020,783.76,TOXICOLOGY PAYMENTS,V001634556
ROCHDALE BOROUGH COUNCIL,26/11/2020,NEIGHBOURHOODS AND ENVIRONMENT,THE PROTON GROUP LIMITED,26/11/2020,224.15,CLEANING MATERIALS,V001634557
ROCHDALE BOROUGH COUNCIL,09/11/2020,PROPERTY AND HIGHWAYS,ROCHDALE GLASS AND GLAZING CO LTD,09/11/2020,205,PROPERTY - WORKS ELEMENT,V001634566
ROCHDALE BOROUGH COUNCIL,13/11/2020,NEIGHBOURHOODS AND ENVIRONMENT,H ROTHWELL AND CO LTD,13/11/2020,1.84,EQUIPMENT - GENERAL,V001634567
ROCHDALE BOROUGH COUNCIL,02/11/2020,ECONOMY DIRECTORATE,OMI ARCHITECTS,02/11/2020,3000,PROFESSIONAL FEES,V001634568
ROCHDALE BOROUGH COUNCIL,20/11/2020,ECONOMY DIRECTORATE,OMI ARCHITECTS,20/11/2020,1280.06,CONSULTANTS FEES,V001634570
ROCHDALE BOROUGH COUNCIL,20/11/2020,ECONOMY DIRECTORATE,OMI ARCHITECTS,20/11/2020,4184.94,CONSULTANTS FEES,V001634570
ROCHDALE BOROUGH COUNCIL,02/11/2020,ADULT CARE LCO FUNCTIONS,B AND M WASTE SERVICES,02/11/2020,38.56,REFUSE DISPOSAL,V001634571
ROCHDALE BOROUGH COUNCIL,02/11/2020,EARLY HELP AND SCHOOLS,YORKSHIRE PURCHASING ORGANISATION,02/11/2020,35.5,EVENTS,V001634572
ROCHDALE BOROUGH COUNCIL,27/11/2020,EARLY HELP AND SCHOOLS,BANNER GROUP LIMITED,27/11/2020,4.2,PRINTING & STATIONERY,V001634575
ROCHDALE BOROUGH COUNCIL,27/11/2020,EARLY HELP AND SCHOOLS,BANNER GROUP LIMITED,27/11/2020,3.68,PRINTING & STATIONERY,V001634575
ROCHDALE BOROUGH COUNCIL,27/11/2020,EARLY HELP AND SCHOOLS,BANNER GROUP LIMITED,27/11/2020,2.86,PRINTING & STATIONERY,V001634575
ROCHDALE BOROUGH COUNCIL,27/11/2020,EARLY HELP AND SCHOOLS,BANNER GROUP LIMITED,27/11/2020,7.96,PRINTING & STATIONERY,V001634575
ROCHDALE BOROUGH COUNCIL,27/11/2020,EARLY HELP AND SCHOOLS,BANNER GROUP LIMITED,27/11/2020,7.65,PRINTING & STATIONERY,V001634575
ROCHDALE BOROUGH COUNCIL,27/11/2020,EARLY HELP AND SCHOOLS,BANNER GROUP LIMITED,27/11/2020,2.08,PRINTING & STATIONERY,V001634575
ROCHDALE BOROUGH COUNCIL,27/11/2020,EARLY HELP AND SCHOOLS,BANNER GROUP LIMITED,27/11/2020,2.62,PRINTING & STATIONERY,V001634575
ROCHDALE BOROUGH COUNCIL,18/11/2020,NEIGHBOURHOODS AND ENVIRONMENT,AAA PEST CONTROL SERVICES,18/11/2020,60,EQUIPMENT - GENERAL,V001634579
ROCHDALE BOROUGH COUNCIL,16/11/2020,CHILDREN�S SOCIAL CARE,CARE 4 CHILDREN RESIDENTIAL SERVICES,16/11/2020,3290.34,FOSTER PARENTS BASIC ALLOWANCE,V001634582
ROCHDALE BOROUGH COUNCIL,16/11/2020,CHILDREN�S SOCIAL CARE,CARE 4 CHILDREN RESIDENTIAL SERVICES,16/11/2020,3498.66,FOSTER PARENTS BASIC ALLOWANCE,V001634583
ROCHDALE BOROUGH COUNCIL,03/11/2020,PROPERTY AND HIGHWAYS,ABBEY ARCHITECTURAL IRONMONGERY CO LTD,03/11/2020,25.98,PROPERTY - WORKS ELEMENT,V001634601
ROCHDALE BOROUGH COUNCIL,18/11/2020,ADULT CARE LCO FUNCTIONS,JUST CHECKING LTD,18/11/2020,80,PURCHASE OF FURNITURE AND EQUIPMENT,V001634602
ROCHDALE BOROUGH COUNCIL,18/11/2020,ADULT CARE LCO FUNCTIONS,JUST CHECKING LTD,18/11/2020,9,PURCHASE OF FURNITURE AND EQUIPMENT,V001634602
ROCHDALE BOROUGH COUNCIL,18/11/2020,ADULT CARE LCO FUNCTIONS,JUST CHECKING LTD,18/11/2020,80,PURCHASE OF FURNITURE AND EQUIPMENT,V001634602
ROCHDALE BOROUGH COUNCIL,18/11/2020,ADULT CARE LCO FUNCTIONS,JUST CHECKING LTD,18/11/2020,64,PURCHASE OF FURNITURE AND EQUIPMENT,V001634602
ROCHDALE BOROUGH COUNCIL,06/11/2020,CHILDREN�S SOCIAL CARE,CAPSTONE FOSTER CARE,06/11/2020,3105.58,FOSTER PARENTS BASIC ALLOWANCE,V001634603
ROCHDALE BOROUGH COUNCIL,06/11/2020,CHILDREN�S SOCIAL CARE,CAPSTONE FOSTER CARE,06/11/2020,3365.84,FOSTER PARENTS BASIC ALLOWANCE,V001634604
ROCHDALE BOROUGH COUNCIL,06/11/2020,CHILDREN�S SOCIAL CARE,CAPSTONE FOSTER CARE,06/11/2020,3727.83,FOSTER PARENTS BASIC ALLOWANCE,V001634605
ROCHDALE BOROUGH COUNCIL,06/11/2020,CHILDREN�S SOCIAL CARE,CAPSTONE FOSTER CARE,06/11/2020,3262.03,FOSTER PARENTS BASIC ALLOWANCE,V001634606
ROCHDALE BOROUGH COUNCIL,06/11/2020,CHILDREN�S SOCIAL CARE,CAPSTONE FOSTER CARE,06/11/2020,3288.13,FOSTER PARENTS BASIC ALLOWANCE,V001634607
ROCHDALE BOROUGH COUNCIL,06/11/2020,CHILDREN�S SOCIAL CARE,CAPSTONE FOSTER CARE,06/11/2020,3848.34,FOSTER PARENTS BASIC ALLOWANCE,V001634608
ROCHDALE BOROUGH COUNCIL,06/11/2020,CHILDREN�S SOCIAL CARE,CAPSTONE FOSTER CARE,06/11/2020,3809.86,FOSTER PARENTS BASIC ALLOWANCE,V001634609
ROCHDALE BOROUGH COUNCIL,06/11/2020,CHILDREN�S SOCIAL CARE,CAPSTONE FOSTER CARE,06/11/2020,6598.66,FOSTER PARENTS BASIC ALLOWANCE,V001634610
ROCHDALE BOROUGH COUNCIL,20/11/2020,CHILDREN�S SOCIAL CARE,CAPSTONE FOSTER CARE,20/11/2020,3765.48,FOSTER PARENTS BASIC ALLOWANCE,V001634611
ROCHDALE BOROUGH COUNCIL,06/11/2020,CHILDREN�S SOCIAL CARE,CAPSTONE FOSTER CARE,06/11/2020,3924.02,FOSTER PARENTS BASIC ALLOWANCE,V001634612
ROCHDALE BOROUGH COUNCIL,06/11/2020,CHILDREN�S SOCIAL CARE,CAPSTONE FOSTER CARE,06/11/2020,3283.83,FOSTER PARENTS BASIC ALLOWANCE,V001634613
ROCHDALE BOROUGH COUNCIL,06/11/2020,CHILDREN�S SOCIAL CARE,CAPSTONE FOSTER CARE,06/11/2020,3727.82,FOSTER PARENTS BASIC ALLOWANCE,V001634614
ROCHDALE BOROUGH COUNCIL,06/11/2020,CHILDREN�S SOCIAL CARE,CAPSTONE FOSTER CARE,06/11/2020,3727.82,FOSTER PARENTS BASIC ALLOWANCE,V001634615
ROCHDALE BOROUGH COUNCIL,06/11/2020,CHILDREN�S SOCIAL CARE,CAPSTONE FOSTER CARE,06/11/2020,3365.55,FOSTER PARENTS BASIC ALLOWANCE,V001634616
ROCHDALE BOROUGH COUNCIL,06/11/2020,CHILDREN�S SOCIAL CARE,CAPSTONE FOSTER CARE,06/11/2020,3765.48,FOSTER PARENTS BASIC ALLOWANCE,V001634617
ROCHDALE BOROUGH COUNCIL,06/11/2020,CHILDREN�S SOCIAL CARE,CAPSTONE FOSTER CARE,06/11/2020,6598.66,FOSTER PARENTS BASIC ALLOWANCE,V001634618
ROCHDALE BOROUGH COUNCIL,06/11/2020,CHILDREN�S SOCIAL CARE,PEOPLE WHO FOSTER,06/11/2020,3487.5,FOSTER PARENTS BASIC ALLOWANCE,V001634621
ROCHDALE BOROUGH COUNCIL,06/11/2020,NEIGHBOURHOODS AND ENVIRONMENT,WHEELDON BROTHERS WASTE LIMITED,06/11/2020,1179.48,REFUSE DISPOSAL,V001634623
ROCHDALE BOROUGH COUNCIL,06/11/2020,NEIGHBOURHOODS AND ENVIRONMENT,WHEELDON BROTHERS WASTE LIMITED,06/11/2020,1179.48,REFUSE DISPOSAL,V001634623
ROCHDALE BOROUGH COUNCIL,16/11/2020,CHILDREN�S SOCIAL CARE,CHANGES SUPPORT LTD,16/11/2020,3580,YOUNG PEOPLES RENTS,V001634625
ROCHDALE BOROUGH COUNCIL,16/11/2020,CHILDREN�S SOCIAL CARE,CHANGES SUPPORT LTD,16/11/2020,235.6,YOUNGE PERSONS ALLOWANCE,V001634625
ROCHDALE BOROUGH COUNCIL,02/11/2020,NEIGHBOURHOODS AND ENVIRONMENT,EXCLUSEC,02/11/2020,10011.38,SECURITY,V001634644
ROCHDALE BOROUGH COUNCIL,02/11/2020,NEIGHBOURHOODS AND ENVIRONMENT,EXCLUSEC,02/11/2020,1100,SECURITY,V001634645
ROCHDALE BOROUGH COUNCIL,02/11/2020,RESOURCES,CRITIQOM LIMITED,02/11/2020,566.44,PRINTING & STATIONERY,V001634650
ROCHDALE BOROUGH COUNCIL,02/11/2020,EARLY HELP AND SCHOOLS,FINDEL EDUCATION LIMITED,02/11/2020,27.96,EQUIPMENT - GENERAL,V001634652
ROCHDALE BOROUGH COUNCIL,02/11/2020,EARLY HELP AND SCHOOLS,FINDEL EDUCATION LIMITED,02/11/2020,13.98,EQUIPMENT - GENERAL,V001634652
ROCHDALE BOROUGH COUNCIL,02/11/2020,EARLY HELP AND SCHOOLS,FINDEL EDUCATION LIMITED,02/11/2020,6.99,EQUIPMENT - GENERAL,V001634652
ROCHDALE BOROUGH COUNCIL,02/11/2020,EARLY HELP AND SCHOOLS,FINDEL EDUCATION LIMITED,02/11/2020,6.29,EQUIPMENT - GENERAL,V001634652
ROCHDALE BOROUGH COUNCIL,02/11/2020,EARLY HELP AND SCHOOLS,FINDEL EDUCATION LIMITED,02/11/2020,17.98,EQUIPMENT - GENERAL,V001634652
ROCHDALE BOROUGH COUNCIL,02/11/2020,EARLY HELP AND SCHOOLS,FINDEL EDUCATION LIMITED,02/11/2020,8.94,EQUIPMENT - GENERAL,V001634652
ROCHDALE BOROUGH COUNCIL,02/11/2020,EARLY HELP AND SCHOOLS,FINDEL EDUCATION LIMITED,02/11/2020,16.14,EQUIPMENT - GENERAL,V001634652
ROCHDALE BOROUGH COUNCIL,02/11/2020,EARLY HELP AND SCHOOLS,FINDEL EDUCATION LIMITED,02/11/2020,12.76,EQUIPMENT - GENERAL,V001634652
ROCHDALE BOROUGH COUNCIL,02/11/2020,EARLY HELP AND SCHOOLS,FINDEL EDUCATION LIMITED,02/11/2020,119.96,EQUIPMENT - GENERAL,V001634652
ROCHDALE BOROUGH COUNCIL,02/11/2020,EARLY HELP AND SCHOOLS,FINDEL EDUCATION LIMITED,02/11/2020,41.96,EQUIPMENT - GENERAL,V001634652
ROCHDALE BOROUGH COUNCIL,02/11/2020,EARLY HELP AND SCHOOLS,FINDEL EDUCATION LIMITED,02/11/2020,34.32,EQUIPMENT - GENERAL,V001634652
ROCHDALE BOROUGH COUNCIL,02/11/2020,EARLY HELP AND SCHOOLS,FINDEL EDUCATION LIMITED,02/11/2020,25.79,EQUIPMENT - GENERAL,V001634652
ROCHDALE BOROUGH COUNCIL,09/11/2020,PROPERTY AND HIGHWAYS,ABBEY ARCHITECTURAL IRONMONGERY CO LTD,09/11/2020,27.72,PROPERTY - WORKS ELEMENT,V001634654
ROCHDALE BOROUGH COUNCIL,02/11/2020,RESOURCES,CIPFA,02/11/2020,220,TRAINING-QUALIFICATION,V001634655
ROCHDALE BOROUGH COUNCIL,09/11/2020,PROPERTY AND HIGHWAYS,DDH FABRICATIONS LTD,09/11/2020,680,PROPERTY - WORKS ELEMENT,V001634656
ROCHDALE BOROUGH COUNCIL,03/11/2020,PROPERTY AND HIGHWAYS,PATROL,03/11/2020,1438.5,FEES / COMMISSION,V001634657
ROCHDALE BOROUGH COUNCIL,16/11/2020,CHILDREN�S SOCIAL CARE,CARE 4 CHILDREN RESIDENTIAL SERVICES,16/11/2020,3123.87,FOSTER PARENTS BASIC ALLOWANCE,V001634672
ROCHDALE BOROUGH COUNCIL,20/11/2020,NEIGHBOURHOODS AND ENVIRONMENT,NORTH WEST PORTABLES,20/11/2020,368,FEES - PLANT MACHINERY EQUIPMENT,V001634674
ROCHDALE BOROUGH COUNCIL,18/11/2020,NEIGHBOURHOODS AND ENVIRONMENT,ALLSTAR BUSINESS SOLUTIONS LTD,18/11/2020,31.36,FUEL,V001634676
ROCHDALE BOROUGH COUNCIL,18/11/2020,NEIGHBOURHOODS AND ENVIRONMENT,ALLSTAR BUSINESS SOLUTIONS LTD,18/11/2020,23.86,FUEL,V001634676
ROCHDALE BOROUGH COUNCIL,18/11/2020,NEIGHBOURHOODS AND ENVIRONMENT,ALLSTAR BUSINESS SOLUTIONS LTD,18/11/2020,74.28,FUEL,V001634676
ROCHDALE BOROUGH COUNCIL,18/11/2020,NEIGHBOURHOODS AND ENVIRONMENT,ALLSTAR BUSINESS SOLUTIONS LTD,18/11/2020,732.03,FUEL,V001634676
ROCHDALE BOROUGH COUNCIL,18/11/2020,NEIGHBOURHOODS AND ENVIRONMENT,ALLSTAR BUSINESS SOLUTIONS LTD,18/11/2020,169.58,FUEL,V001634676
ROCHDALE BOROUGH COUNCIL,18/11/2020,PROPERTY AND HIGHWAYS,ALLSTAR BUSINESS SOLUTIONS LTD,18/11/2020,26.9,CAR PARKING CONTRACT,V001634676
ROCHDALE BOROUGH COUNCIL,18/11/2020,PROPERTY AND HIGHWAYS,ALLSTAR BUSINESS SOLUTIONS LTD,18/11/2020,99.53,FUEL,V001634676
ROCHDALE BOROUGH COUNCIL,18/11/2020,CHILDREN�S SOCIAL CARE,ALLSTAR BUSINESS SOLUTIONS LTD,18/11/2020,43.57,FUEL,V001634676
ROCHDALE BOROUGH COUNCIL,18/11/2020,NEIGHBOURHOODS AND ENVIRONMENT,ALLSTAR BUSINESS SOLUTIONS LTD,18/11/2020,31.07,FUEL,V001634676
ROCHDALE BOROUGH COUNCIL,27/11/2020,NEIGHBOURHOODS AND ENVIRONMENT,SSI SCHAEFER LIMITED,27/11/2020,6533.1,PURCHASE OF FURNITURE AND EQUIPMENT,V001634683
ROCHDALE BOROUGH COUNCIL,27/11/2020,NEIGHBOURHOODS AND ENVIRONMENT,SSI SCHAEFER LIMITED,27/11/2020,6533.1,PURCHASE OF FURNITURE AND EQUIPMENT,V001634683
ROCHDALE BOROUGH COUNCIL,25/11/2020,ECONOMY DIRECTORATE,D AND M WINDOWS AND DOORS LTD,25/11/2020,290,REPAIRS & ALTS OF BUILDINGS,V001634686
ROCHDALE BOROUGH COUNCIL,09/11/2020,EARLY HELP AND SCHOOLS,TEACHING PERSONNEL LTD,09/11/2020,381.1,OTHER LA`S - SEN PROVISION,V001634688
ROCHDALE BOROUGH COUNCIL,06/11/2020,EARLY HELP AND SCHOOLS,TEACHING PERSONNEL LTD,06/11/2020,222,OTHER LA`S - SEN PROVISION,V001634689
ROCHDALE BOROUGH COUNCIL,18/11/2020,EARLY HELP AND SCHOOLS,TEACHING PERSONNEL LTD,18/11/2020,526.88,OTHER LA`S - SEN PROVISION,V001634690
ROCHDALE BOROUGH COUNCIL,02/11/2020,NEIGHBOURHOODS AND ENVIRONMENT,NO GRAFFITI LTD,02/11/2020,950,CONTRACTED SERVICES,V001634696
ROCHDALE BOROUGH COUNCIL,30/11/2020,EARLY HELP AND SCHOOLS,THE UNIVERSITY OF SHEFFIELD,30/11/2020,17200,AGENCY STAFF,V001634710
ROCHDALE BOROUGH COUNCIL,03/11/2020,EARLY HELP AND SCHOOLS,AXIOM EDUCATION ROCHDALE LIMITED,03/11/2020,34000.05,PFI SCHEMES RPIX,V001635101
ROCHDALE BOROUGH COUNCIL,02/11/2020,PUBLIC HEALTH,THE PENNINE ACUTE HOSPITALS NHS TRUST,02/11/2020,1640,PH OTHER CONTRACTS,V001635102
ROCHDALE BOROUGH COUNCIL,02/11/2020,PROPERTY AND HIGHWAYS,ABBEY ARCHITECTURAL IRONMONGERY CO LTD,02/11/2020,110.87,PROPERTY - WORKS ELEMENT,V001635103
ROCHDALE BOROUGH COUNCIL,05/11/2020,RESOURCES,INFORM CPI LTD,05/11/2020,3055,FEES / COMMISSION,V001635111
ROCHDALE BOROUGH COUNCIL,05/11/2020,RESOURCES,INFORM CPI LTD,05/11/2020,3660,FEES / COMMISSION,V001635112
ROCHDALE BOROUGH COUNCIL,13/11/2020,ECONOMY DIRECTORATE,J C MILLS & SON LIMITED,13/11/2020,65,CENTRAL HEATING,V001635118
ROCHDALE BOROUGH COUNCIL,12/11/2020,NEIGHBOURHOODS AND ENVIRONMENT,RYEDALE PRINTING WORKS LIMITED,12/11/2020,10361.26,EQUIPMENT - GENERAL,V001635119
ROCHDALE BOROUGH COUNCIL,02/11/2020,CHILDREN�S SOCIAL CARE,PANORAMIC ASSOCIATES LTD,02/11/2020,2375,SERVICE LEVEL AGREEMENTS,V001635134
ROCHDALE BOROUGH COUNCIL,02/11/2020,NEIGHBOURHOODS AND ENVIRONMENT,F S MOULT AND SON,02/11/2020,48.61,MINOR BUILDING WORKS,V001635135
ROCHDALE BOROUGH COUNCIL,02/11/2020,NEIGHBOURHOODS AND ENVIRONMENT,F S MOULT AND SON,02/11/2020,216,MINOR BUILDING WORKS,V001635135
ROCHDALE BOROUGH COUNCIL,02/11/2020,CHILDREN�S SOCIAL CARE,G AND A TAYLOR HOTELS LTD,02/11/2020,105.8,ACCOMMODATION,V001635136
ROCHDALE BOROUGH COUNCIL,02/11/2020,CHILDREN�S SOCIAL CARE,G AND A TAYLOR HOTELS LTD,02/11/2020,422.84,ACCOMMODATION,V001635136
ROCHDALE BOROUGH COUNCIL,02/11/2020,PUBLIC HEALTH,THE PENNINE ACUTE HOSPITALS NHS TRUST,02/11/2020,2263,PH OTHER CONTRACTS,V001635137
ROCHDALE BOROUGH COUNCIL,02/11/2020,PROPERTY AND HIGHWAYS,ABBEY ARCHITECTURAL IRONMONGERY CO LTD,02/11/2020,34.41,PROPERTY - WORKS ELEMENT,V001635138
ROCHDALE BOROUGH COUNCIL,12/11/2020,RESOURCES,REDACTED - PERSONAL DATA,12/11/2020,26.11,TRANSACTIONS-EXPENDITURE,V001635140
ROCHDALE BOROUGH COUNCIL,02/11/2020,NEIGHBOURHOODS AND ENVIRONMENT,SSI SCHAEFER LIMITED,02/11/2020,8103.9,PURCHASE OF FURNITURE AND EQUIPMENT,V001635141
ROCHDALE BOROUGH COUNCIL,02/11/2020,NEIGHBOURHOODS AND ENVIRONMENT,SSI SCHAEFER LIMITED,02/11/2020,2249.1,PURCHASE OF FURNITURE AND EQUIPMENT,V001635141
ROCHDALE BOROUGH COUNCIL,02/11/2020,NEIGHBOURHOODS AND ENVIRONMENT,SSI SCHAEFER LIMITED,02/11/2020,2713.2,PURCHASE OF FURNITURE AND EQUIPMENT,V001635141
ROCHDALE BOROUGH COUNCIL,02/11/2020,CHILDREN�S SOCIAL CARE,SANDCASTLE CARE LTD,02/11/2020,9771.43,EBD (EMOT & BEHAV DIFF) PLACEMENTS,V001635142
ROCHDALE BOROUGH COUNCIL,02/11/2020,CHILDREN�S SOCIAL CARE,FOSTER CARES LTD,02/11/2020,870,FOSTER PARENTS BASIC ALLOWANCE,V001635143
ROCHDALE BOROUGH COUNCIL,02/11/2020,ADULT CARE LCO FUNCTIONS,PREPAID FINANCIAL SERVICES,02/11/2020,250,CONTRACTED SERVICES,V001635144
ROCHDALE BOROUGH COUNCIL,16/11/2020,CHILDREN�S SOCIAL CARE,PATHWAYS,16/11/2020,4353.57,YOUNG PEOPLES RENTS,V001635145
ROCHDALE BOROUGH COUNCIL,02/11/2020,NEIGHBOURHOODS AND ENVIRONMENT,ROCHDALE TOWN TAXIS LTD,02/11/2020,275,TAXI HIRE,V001635146
ROCHDALE BOROUGH COUNCIL,02/11/2020,NEIGHBOURHOODS AND ENVIRONMENT,ROCHDALE TOWN TAXIS LTD,02/11/2020,275,TAXI HIRE,V001635146
ROCHDALE BOROUGH COUNCIL,02/11/2020,NEIGHBOURHOODS AND ENVIRONMENT,ROCHDALE TOWN TAXIS LTD,02/11/2020,275,TAXI HIRE,V001635146
ROCHDALE BOROUGH COUNCIL,02/11/2020,NEIGHBOURHOODS AND ENVIRONMENT,ROCHDALE TOWN TAXIS LTD,02/11/2020,210,TAXI HIRE,V001635147
ROCHDALE BOROUGH COUNCIL,02/11/2020,NEIGHBOURHOODS AND ENVIRONMENT,ROCHDALE TOWN TAXIS LTD,02/11/2020,210,TAXI HIRE,V001635147
ROCHDALE BOROUGH COUNCIL,02/11/2020,NEIGHBOURHOODS AND ENVIRONMENT,ROCHDALE TOWN TAXIS LTD,02/11/2020,210,TAXI HIRE,V001635147
ROCHDALE BOROUGH COUNCIL,02/11/2020,NEIGHBOURHOODS AND ENVIRONMENT,ROCHDALE TOWN TAXIS LTD,02/11/2020,248,TAXI HIRE,V001635148
ROCHDALE BOROUGH COUNCIL,02/11/2020,NEIGHBOURHOODS AND ENVIRONMENT,ROCHDALE TOWN TAXIS LTD,02/11/2020,248,TAXI HIRE,V001635148
ROCHDALE BOROUGH COUNCIL,02/11/2020,NEIGHBOURHOODS AND ENVIRONMENT,ROCHDALE TOWN TAXIS LTD,02/11/2020,248,TAXI HIRE,V001635148
ROCHDALE BOROUGH COUNCIL,02/11/2020,NEIGHBOURHOODS AND ENVIRONMENT,ROCHDALE TOWN TAXIS LTD,02/11/2020,72,TAXI HIRE,V001635149
ROCHDALE BOROUGH COUNCIL,02/11/2020,NEIGHBOURHOODS AND ENVIRONMENT,ROCHDALE TOWN TAXIS LTD,02/11/2020,72,TAXI HIRE,V001635149
ROCHDALE BOROUGH COUNCIL,02/11/2020,NEIGHBOURHOODS AND ENVIRONMENT,ROCHDALE TOWN TAXIS LTD,02/11/2020,72,TAXI HIRE,V001635149
ROCHDALE BOROUGH COUNCIL,02/11/2020,NEIGHBOURHOODS AND ENVIRONMENT,ROCHDALE TOWN TAXIS LTD,02/11/2020,78,TAXI HIRE,V001635150
ROCHDALE BOROUGH COUNCIL,02/11/2020,NEIGHBOURHOODS AND ENVIRONMENT,ROCHDALE TOWN TAXIS LTD,02/11/2020,78,TAXI HIRE,V001635150
ROCHDALE BOROUGH COUNCIL,02/11/2020,NEIGHBOURHOODS AND ENVIRONMENT,ROCHDALE TOWN TAXIS LTD,02/11/2020,78,TAXI HIRE,V001635150
ROCHDALE BOROUGH COUNCIL,02/11/2020,NEIGHBOURHOODS AND ENVIRONMENT,ROCHDALE TOWN TAXIS LTD,02/11/2020,240,TAXI HIRE,V001635151
ROCHDALE BOROUGH COUNCIL,02/11/2020,NEIGHBOURHOODS AND ENVIRONMENT,ROCHDALE TOWN TAXIS LTD,02/11/2020,240,TAXI HIRE,V001635151
ROCHDALE BOROUGH COUNCIL,02/11/2020,NEIGHBOURHOODS AND ENVIRONMENT,ROCHDALE TOWN TAXIS LTD,02/11/2020,240,TAXI HIRE,V001635151
ROCHDALE BOROUGH COUNCIL,02/11/2020,NEIGHBOURHOODS AND ENVIRONMENT,ROCHDALE TOWN TAXIS LTD,02/11/2020,72,TAXI HIRE,V001635152
ROCHDALE BOROUGH COUNCIL,02/11/2020,NEIGHBOURHOODS AND ENVIRONMENT,ROCHDALE TOWN TAXIS LTD,02/11/2020,72,TAXI HIRE,V001635152
ROCHDALE BOROUGH COUNCIL,02/11/2020,NEIGHBOURHOODS AND ENVIRONMENT,ROCHDALE TOWN TAXIS LTD,02/11/2020,72,TAXI HIRE,V001635152
ROCHDALE BOROUGH COUNCIL,02/11/2020,NEIGHBOURHOODS AND ENVIRONMENT,ROCHDALE TOWN TAXIS LTD,02/11/2020,350,TAXI HIRE,V001635153
ROCHDALE BOROUGH COUNCIL,02/11/2020,NEIGHBOURHOODS AND ENVIRONMENT,ROCHDALE TOWN TAXIS LTD,02/11/2020,350,TAXI HIRE,V001635153
ROCHDALE BOROUGH COUNCIL,02/11/2020,NEIGHBOURHOODS AND ENVIRONMENT,ROCHDALE TOWN TAXIS LTD,02/11/2020,350,TAXI HIRE,V001635153
ROCHDALE BOROUGH COUNCIL,02/11/2020,NEIGHBOURHOODS AND ENVIRONMENT,CLOVER SECURITY SERVICES LIMITED,02/11/2020,4464,SECURITY,V001635154
ROCHDALE BOROUGH COUNCIL,02/11/2020,NEIGHBOURHOODS AND ENVIRONMENT,SOCIETY OF CHIEF LIBRARIANS,02/11/2020,445.88,SUBSCRIPTIONS,V001635155
ROCHDALE BOROUGH COUNCIL,03/11/2020,NEIGHBOURHOODS AND ENVIRONMENT,F S MOULT AND SON,03/11/2020,1214.33,MINOR BUILDING WORKS,V001635157
ROCHDALE BOROUGH COUNCIL,02/11/2020,CHILDREN�S SOCIAL CARE,PARADIGM PROFESSIONAL CONSULTANCY LTD,02/11/2020,1419,AGENCY STAFF,V001635158
ROCHDALE BOROUGH COUNCIL,02/11/2020,CHILDREN�S SOCIAL CARE,PARADIGM PROFESSIONAL CONSULTANCY LTD,02/11/2020,1401,AGENCY STAFF,V001635159
ROCHDALE BOROUGH COUNCIL,02/11/2020,CHILDREN�S SOCIAL CARE,PARADIGM PROFESSIONAL CONSULTANCY LTD,02/11/2020,1392.9,AGENCY STAFF,V001635160
ROCHDALE BOROUGH COUNCIL,02/11/2020,CHILDREN�S SOCIAL CARE,PARADIGM PROFESSIONAL CONSULTANCY LTD,02/11/2020,1397.4,AGENCY STAFF,V001635162
ROCHDALE BOROUGH COUNCIL,02/11/2020,CHILDREN�S SOCIAL CARE,ROCHDALE TOWN TAXIS LTD,02/11/2020,20.4,TAXI HIRE,V001635163
ROCHDALE BOROUGH COUNCIL,02/11/2020,CHILDREN�S SOCIAL CARE,ROCHDALE TOWN TAXIS LTD,02/11/2020,20.4,TAXI HIRE,V001635163
ROCHDALE BOROUGH COUNCIL,02/11/2020,CHILDREN�S SOCIAL CARE,ROCHDALE TOWN TAXIS LTD,02/11/2020,20.4,TAXI HIRE,V001635163
ROCHDALE BOROUGH COUNCIL,02/11/2020,CHILDREN�S SOCIAL CARE,PARADIGM PROFESSIONAL CONSULTANCY LTD,02/11/2020,1157.6,AGENCY STAFF,V001635164
ROCHDALE BOROUGH COUNCIL,02/11/2020,CHILDREN�S SOCIAL CARE,PARADIGM PROFESSIONAL CONSULTANCY LTD,02/11/2020,337,AGENCY STAFF,V001635164
ROCHDALE BOROUGH COUNCIL,09/11/2020,ECONOMY DIRECTORATE,EAST LANCASHIRE SERVICES LIMITED,09/11/2020,896.4,CLEANING AND DOMESTIC SUPPLIES,V001635166
ROCHDALE BOROUGH COUNCIL,02/11/2020,NEIGHBOURHOODS AND ENVIRONMENT,DK MINIBUSES LTD,02/11/2020,2006,TAXI HIRE,V001635167
ROCHDALE BOROUGH COUNCIL,02/11/2020,NEIGHBOURHOODS AND ENVIRONMENT,REDACTED - PERSONAL DATA,02/11/2020,333.5,TAXI HIRE,V001635168
ROCHDALE BOROUGH COUNCIL,02/11/2020,NEIGHBOURHOODS AND ENVIRONMENT,GPD TRAVEL,02/11/2020,2592.16,TAXI HIRE,V001635169
ROCHDALE BOROUGH COUNCIL,02/11/2020,NEIGHBOURHOODS AND ENVIRONMENT,GPD TRAVEL,02/11/2020,1848.92,TAXI HIRE,V001635169
ROCHDALE BOROUGH COUNCIL,02/11/2020,NEIGHBOURHOODS AND ENVIRONMENT,GPD TRAVEL,02/11/2020,1870,TAXI HIRE,V001635169
ROCHDALE BOROUGH COUNCIL,02/11/2020,NEIGHBOURHOODS AND ENVIRONMENT,GPD TRAVEL,02/11/2020,1848.92,TAXI HIRE,V001635169
ROCHDALE BOROUGH COUNCIL,02/11/2020,NEIGHBOURHOODS AND ENVIRONMENT,GPD TRAVEL,02/11/2020,1870,TAXI HIRE,V001635169
ROCHDALE BOROUGH COUNCIL,02/11/2020,NEIGHBOURHOODS AND ENVIRONMENT,GPD TRAVEL,02/11/2020,1870,TAXI HIRE,V001635169
ROCHDALE BOROUGH COUNCIL,02/11/2020,NEIGHBOURHOODS AND ENVIRONMENT,OLYMPIC EXECUTIVE TRAVEL,02/11/2020,2380,TAXI HIRE,V001635170
ROCHDALE BOROUGH COUNCIL,02/11/2020,NEIGHBOURHOODS AND ENVIRONMENT,OLYMPIC EXECUTIVE TRAVEL,02/11/2020,2251,TAXI HIRE,V001635171
ROCHDALE BOROUGH COUNCIL,02/11/2020,NEIGHBOURHOODS AND ENVIRONMENT,OLYMPIC EXECUTIVE TRAVEL,02/11/2020,1938,TAXI HIRE,V001635172
ROCHDALE BOROUGH COUNCIL,02/11/2020,NEIGHBOURHOODS AND ENVIRONMENT,OLYMPIC EXECUTIVE TRAVEL,02/11/2020,2550,TAXI HIRE,V001635173
ROCHDALE BOROUGH COUNCIL,02/11/2020,NEIGHBOURHOODS AND ENVIRONMENT,OLYMPIC EXECUTIVE TRAVEL,02/11/2020,2125,TAXI HIRE,V001635174
ROCHDALE BOROUGH COUNCIL,02/11/2020,NEIGHBOURHOODS AND ENVIRONMENT,COACH OPTIONS LIMITED,02/11/2020,2176,TAXI HIRE,V001635175
ROCHDALE BOROUGH COUNCIL,02/11/2020,NEIGHBOURHOODS AND ENVIRONMENT,COACH OPTIONS LIMITED,02/11/2020,2299,TAXI HIRE,V001635175
ROCHDALE BOROUGH COUNCIL,02/11/2020,NEIGHBOURHOODS AND ENVIRONMENT,COACH OPTIONS LIMITED,02/11/2020,2210,TAXI HIRE,V001635175
ROCHDALE BOROUGH COUNCIL,02/11/2020,NEIGHBOURHOODS AND ENVIRONMENT,COACH OPTIONS LIMITED,02/11/2020,2312,TAXI HIRE,V001635175
ROCHDALE BOROUGH COUNCIL,02/11/2020,NEIGHBOURHOODS AND ENVIRONMENT,STREAMLINE TAXIS,02/11/2020,1680,TAXI HIRE,V001635176
ROCHDALE BOROUGH COUNCIL,02/11/2020,NEIGHBOURHOODS AND ENVIRONMENT,ROCHDALE TOWN TAXIS LTD,02/11/2020,44,TAXI HIRE,V001635177
ROCHDALE BOROUGH COUNCIL,02/11/2020,NEIGHBOURHOODS AND ENVIRONMENT,ROCHDALE TOWN TAXIS LTD,02/11/2020,44,TAXI HIRE,V001635177
ROCHDALE BOROUGH COUNCIL,02/11/2020,NEIGHBOURHOODS AND ENVIRONMENT,ROCHDALE TOWN TAXIS LTD,02/11/2020,44,TAXI HIRE,V001635177
ROCHDALE BOROUGH COUNCIL,02/11/2020,NEIGHBOURHOODS AND ENVIRONMENT,ROCHDALE TOWN TAXIS LTD,02/11/2020,400,TAXI HIRE,V001635178
ROCHDALE BOROUGH COUNCIL,02/11/2020,NEIGHBOURHOODS AND ENVIRONMENT,ROCHDALE TOWN TAXIS LTD,02/11/2020,400,TAXI HIRE,V001635178
ROCHDALE BOROUGH COUNCIL,02/11/2020,NEIGHBOURHOODS AND ENVIRONMENT,ROCHDALE TOWN TAXIS LTD,02/11/2020,400,TAXI HIRE,V001635178
ROCHDALE BOROUGH COUNCIL,02/11/2020,NEIGHBOURHOODS AND ENVIRONMENT,NETWORK CONNECT LTD,02/11/2020,63.3,COMMUNICATION AND COMPUTING - GENERAL,V001635179
ROCHDALE BOROUGH COUNCIL,02/11/2020,NEIGHBOURHOODS AND ENVIRONMENT,ROCHDALE TOWN TAXIS LTD,02/11/2020,171,TAXI HIRE,V001635180
ROCHDALE BOROUGH COUNCIL,02/11/2020,NEIGHBOURHOODS AND ENVIRONMENT,ROCHDALE TOWN TAXIS LTD,02/11/2020,171,TAXI HIRE,V001635180
ROCHDALE BOROUGH COUNCIL,02/11/2020,NEIGHBOURHOODS AND ENVIRONMENT,ROCHDALE TOWN TAXIS LTD,02/11/2020,171,TAXI HIRE,V001635180
ROCHDALE BOROUGH COUNCIL,02/11/2020,NEIGHBOURHOODS AND ENVIRONMENT,ROCHDALE TOWN TAXIS LTD,02/11/2020,110,TAXI HIRE,V001635181
ROCHDALE BOROUGH COUNCIL,02/11/2020,NEIGHBOURHOODS AND ENVIRONMENT,ROCHDALE TOWN TAXIS LTD,02/11/2020,110,TAXI HIRE,V001635181
ROCHDALE BOROUGH COUNCIL,02/11/2020,NEIGHBOURHOODS AND ENVIRONMENT,ROCHDALE TOWN TAXIS LTD,02/11/2020,110,TAXI HIRE,V001635181
ROCHDALE BOROUGH COUNCIL,02/11/2020,EARLY HELP AND SCHOOLS,FERNHILL B AND B,02/11/2020,770,ACCOMMODATION,V001635183
ROCHDALE BOROUGH COUNCIL,02/11/2020,NEIGHBOURHOODS AND ENVIRONMENT,ROCHDALE SIGNS LIMITED,02/11/2020,410,ENVIRONMENTAL WORKS LANDSCAPE,V001635184
ROCHDALE BOROUGH COUNCIL,02/11/2020,CHILDREN�S SOCIAL CARE,PARADIGM PROFESSIONAL CONSULTANCY LTD,02/11/2020,1387.5,AGENCY STAFF,V001635187
ROCHDALE BOROUGH COUNCIL,04/11/2020,CHILDREN�S SOCIAL CARE,PARADIGM PROFESSIONAL CONSULTANCY LTD,04/11/2020,1455.75,AGENCY STAFF,V001635188
ROCHDALE BOROUGH COUNCIL,04/11/2020,CHILDREN�S SOCIAL CARE,PARADIGM PROFESSIONAL CONSULTANCY LTD,04/11/2020,913.35,AGENCY STAFF,V001635189
ROCHDALE BOROUGH COUNCIL,02/11/2020,EARLY HELP AND SCHOOLS,REDACTED - PERSONAL DATA,02/11/2020,70,PUBLIC TRANSPORT,V001635190
ROCHDALE BOROUGH COUNCIL,02/11/2020,CHILDREN�S SOCIAL CARE,FOSTER CARES LTD,02/11/2020,870,FOSTER PARENTS BASIC ALLOWANCE,V001635191
ROCHDALE BOROUGH COUNCIL,12/11/2020,ECONOMY DIRECTORATE,OMI ARCHITECTS,12/11/2020,3250,CONSULTANTS FEES,V001635192
ROCHDALE BOROUGH COUNCIL,02/11/2020,ECONOMY DIRECTORATE,COMPLIANCE365,02/11/2020,100,SUPPLIES AND SERVICES PROVISION,V001635193
ROCHDALE BOROUGH COUNCIL,02/11/2020,ECONOMY DIRECTORATE,COMPLIANCE365,02/11/2020,200,SUPPLIES AND SERVICES PROVISION,V001635194
ROCHDALE BOROUGH COUNCIL,02/11/2020,ECONOMY DIRECTORATE,COMPLIANCE365,02/11/2020,200,SUPPLIES AND SERVICES PROVISION,V001635194
ROCHDALE BOROUGH COUNCIL,02/11/2020,ECONOMY DIRECTORATE,COMPLIANCE365,02/11/2020,300,SUPPLIES AND SERVICES PROVISION,V001635195
ROCHDALE BOROUGH COUNCIL,02/11/2020,ECONOMY DIRECTORATE,COMPLIANCE365,02/11/2020,100,SUPPLIES AND SERVICES PROVISION,V001635196
ROCHDALE BOROUGH COUNCIL,02/11/2020,ECONOMY DIRECTORATE,FISHERS CLEANING SERVICES LIMITED,02/11/2020,59.95,CLEANING AND DOMESTIC SUPPLIES,V001635197
ROCHDALE BOROUGH COUNCIL,02/11/2020,PROPERTY AND HIGHWAYS,DDH FABRICATIONS LTD,02/11/2020,160,PROPERTY - WORKS ELEMENT,V001635198
ROCHDALE BOROUGH COUNCIL,16/11/2020,EARLY HELP AND SCHOOLS,TEACHING PERSONNEL LTD,16/11/2020,450.66,OTHER LA`S - SEN PROVISION,V001635199
ROCHDALE BOROUGH COUNCIL,09/11/2020,ECONOMY DIRECTORATE,B AND M WASTE SERVICES,09/11/2020,94.6,ONGOING DISBURSEMENTS,V001635200
ROCHDALE BOROUGH COUNCIL,02/11/2020,NEIGHBOURHOODS AND ENVIRONMENT,AGM TELECOMMUNICATIONS LIMITED,02/11/2020,10,TELEPHONE EXPENDITURE,V001635201
ROCHDALE BOROUGH COUNCIL,02/11/2020,NEIGHBOURHOODS AND ENVIRONMENT,AGM TELECOMMUNICATIONS LIMITED,02/11/2020,10,TELEPHONE EXPENDITURE,V001635201
ROCHDALE BOROUGH COUNCIL,02/11/2020,RESOURCES,MANCHESTER STRESS INSTITUTE,02/11/2020,450,TRAINING,V001635202
ROCHDALE BOROUGH COUNCIL,02/11/2020,ECONOMY DIRECTORATE,CF CORPORATE FINANCE LTD,02/11/2020,531.18,IT EQUIPMENT,V001635203
ROCHDALE BOROUGH COUNCIL,02/11/2020,ADULT CARE LCO FUNCTIONS,ASTOR BANNERMAN MEDICAL LTD,02/11/2020,69.95,MINOR BUILDING WORKS,V001635205
ROCHDALE BOROUGH COUNCIL,02/11/2020,NEIGHBOURHOODS AND ENVIRONMENT,ROLAND BARNES MAINTENANCE,02/11/2020,39.8,EQUIPMENT - GENERAL,V001635206
ROCHDALE BOROUGH COUNCIL,02/11/2020,CHILDREN�S SOCIAL CARE,WENDYS,02/11/2020,76.7,CHILDRENS SUBSISTENCE,V001635207
ROCHDALE BOROUGH COUNCIL,02/11/2020,NEIGHBOURHOODS AND ENVIRONMENT,REACH PUBLISHING SERVICES LTD,02/11/2020,131.74,ADVERTISING,V001635208
ROCHDALE BOROUGH COUNCIL,02/11/2020,EARLY HELP AND SCHOOLS,BANNER GROUP LIMITED,02/11/2020,37.38,PRINTING & STATIONERY,V001635210
ROCHDALE BOROUGH COUNCIL,02/11/2020,EARLY HELP AND SCHOOLS,BANNER GROUP LIMITED,02/11/2020,7.65,PRINTING & STATIONERY,V001635211
ROCHDALE BOROUGH COUNCIL,02/11/2020,EARLY HELP AND SCHOOLS,BANNER GROUP LIMITED,02/11/2020,2.08,PRINTING & STATIONERY,V001635211
ROCHDALE BOROUGH COUNCIL,12/11/2020,CHILDREN�S SOCIAL CARE,PARADIGM PROFESSIONAL CONSULTANCY LTD,12/11/2020,1481.55,AGENCY STAFF,V001635212
ROCHDALE BOROUGH COUNCIL,02/11/2020,NEIGHBOURHOODS AND ENVIRONMENT,ASH TIMBER LIMITED,02/11/2020,670,"TREES, SHRUBS, PLANTS",V001635213
ROCHDALE BOROUGH COUNCIL,02/11/2020,ECONOMY DIRECTORATE,TRANSPORT FOR GREATER MANCHESTER,02/11/2020,5134.5,MINOR BUILDING WORKS,V001635214
ROCHDALE BOROUGH COUNCIL,02/11/2020,ECONOMY DIRECTORATE,TRANSPORT FOR GREATER MANCHESTER,02/11/2020,4228,MINOR BUILDING WORKS,V001635215
ROCHDALE BOROUGH COUNCIL,02/11/2020,ECONOMY DIRECTORATE,TRANSPORT FOR GREATER MANCHESTER,02/11/2020,8506.75,MINOR BUILDING WORKS,V001635216
ROCHDALE BOROUGH COUNCIL,02/11/2020,ADULT CARE LCO FUNCTIONS,UPS BUILDING AND MAINTENANCE LTD,02/11/2020,2297.4,MINOR BUILDING WORKS,V001635219
ROCHDALE BOROUGH COUNCIL,02/11/2020,ADULT CARE LCO FUNCTIONS,UPS BUILDING AND MAINTENANCE LTD,02/11/2020,3446.09,MINOR BUILDING WORKS,V001635219
ROCHDALE BOROUGH COUNCIL,02/11/2020,CHILDREN�S SOCIAL CARE,REDACTED - PERSONAL DATA,02/11/2020,57.9,ALLOWANCES,V001635220
ROCHDALE BOROUGH COUNCIL,02/11/2020,CHILDREN�S SOCIAL CARE,REDACTED - PERSONAL DATA,02/11/2020,57.9,ALLOWANCES,V001635221
ROCHDALE BOROUGH COUNCIL,02/11/2020,NEIGHBOURHOODS AND ENVIRONMENT,CAR 2000 HEYWOOD LLP,02/11/2020,4119,TAXI HIRE,V001635222
ROCHDALE BOROUGH COUNCIL,02/11/2020,NEIGHBOURHOODS AND ENVIRONMENT,CAR 2000 HEYWOOD LLP,02/11/2020,145,TAXI HIRE,V001635223
ROCHDALE BOROUGH COUNCIL,02/11/2020,NEIGHBOURHOODS AND ENVIRONMENT,CAR 2000 HEYWOOD LLP,02/11/2020,144,TAXI HIRE,V001635224
ROCHDALE BOROUGH COUNCIL,02/11/2020,NEIGHBOURHOODS AND ENVIRONMENT,CAR 2000 HEYWOOD LLP,02/11/2020,45,TAXI HIRE,V001635225
ROCHDALE BOROUGH COUNCIL,03/11/2020,NEIGHBOURHOODS AND ENVIRONMENT,ROCHDALE TOWN TAXIS LTD,03/11/2020,240,TAXI HIRE,V001635226
ROCHDALE BOROUGH COUNCIL,03/11/2020,NEIGHBOURHOODS AND ENVIRONMENT,ROCHDALE TOWN TAXIS LTD,03/11/2020,240,TAXI HIRE,V001635226
ROCHDALE BOROUGH COUNCIL,03/11/2020,NEIGHBOURHOODS AND ENVIRONMENT,ROCHDALE TOWN TAXIS LTD,03/11/2020,240,TAXI HIRE,V001635226
ROCHDALE BOROUGH COUNCIL,03/11/2020,NEIGHBOURHOODS AND ENVIRONMENT,ROCHDALE TOWN TAXIS LTD,03/11/2020,44,TAXI HIRE,V001635227
ROCHDALE BOROUGH COUNCIL,03/11/2020,NEIGHBOURHOODS AND ENVIRONMENT,ROCHDALE TOWN TAXIS LTD,03/11/2020,44,TAXI HIRE,V001635227
ROCHDALE BOROUGH COUNCIL,03/11/2020,NEIGHBOURHOODS AND ENVIRONMENT,ROCHDALE TOWN TAXIS LTD,03/11/2020,44,TAXI HIRE,V001635227
ROCHDALE BOROUGH COUNCIL,03/11/2020,NEIGHBOURHOODS AND ENVIRONMENT,TLC GARDEN SERVICES,03/11/2020,250,ENVIRONMENTAL WORKS LANDSCAPE,V001635228
ROCHDALE BOROUGH COUNCIL,03/11/2020,NEIGHBOURHOODS AND ENVIRONMENT,THE SANCTUARY TRUST,03/11/2020,17000,GRANTS TO THE VOLUNTARY SECTOR,V001635229
ROCHDALE BOROUGH COUNCIL,03/11/2020,NEIGHBOURHOODS AND ENVIRONMENT,THE SANCTUARY TRUST,03/11/2020,250,REPAIRS & ALTS OF BUILDINGS,V001635229
ROCHDALE BOROUGH COUNCIL,03/11/2020,NEIGHBOURHOODS AND ENVIRONMENT,THE SANCTUARY TRUST,03/11/2020,387,CATERING - GENERAL,V001635229
ROCHDALE BOROUGH COUNCIL,03/11/2020,RESOURCES,ROYAL MAIL GROUP LTD,03/11/2020,1679.78,PRINTING & STATIONERY,V001635230
ROCHDALE BOROUGH COUNCIL,03/11/2020,ECONOMY DIRECTORATE,PARK AVENUE RECRUITMENT,03/11/2020,848.54,AGENCY STAFF,V001635231
ROCHDALE BOROUGH COUNCIL,03/11/2020,EARLY HELP AND SCHOOLS,G A ELECTRICAL DISTRIBUTORS LIMITED,03/11/2020,5.92,CONSUMABLES,V001635232
ROCHDALE BOROUGH COUNCIL,04/11/2020,NEIGHBOURHOODS AND ENVIRONMENT,GRAHAM POOLE LTD,04/11/2020,1625,REPAIRS & ALTS OF BUILDINGS,V001635233
ROCHDALE BOROUGH COUNCIL,03/11/2020,NEIGHBOURHOODS AND ENVIRONMENT,ROCHDALE TOWN TAXIS LTD,03/11/2020,268,TAXI HIRE,V001635234
ROCHDALE BOROUGH COUNCIL,03/11/2020,NEIGHBOURHOODS AND ENVIRONMENT,ROCHDALE TOWN TAXIS LTD,03/11/2020,268,TAXI HIRE,V001635234
ROCHDALE BOROUGH COUNCIL,03/11/2020,NEIGHBOURHOODS AND ENVIRONMENT,ROCHDALE TOWN TAXIS LTD,03/11/2020,268,TAXI HIRE,V001635234
ROCHDALE BOROUGH COUNCIL,03/11/2020,NEIGHBOURHOODS AND ENVIRONMENT,ROCHDALE TOWN TAXIS LTD,03/11/2020,65,TAXI HIRE,V001635235
ROCHDALE BOROUGH COUNCIL,03/11/2020,NEIGHBOURHOODS AND ENVIRONMENT,ROCHDALE TOWN TAXIS LTD,03/11/2020,65,TAXI HIRE,V001635235
ROCHDALE BOROUGH COUNCIL,03/11/2020,NEIGHBOURHOODS AND ENVIRONMENT,ROCHDALE TOWN TAXIS LTD,03/11/2020,65,TAXI HIRE,V001635235
ROCHDALE BOROUGH COUNCIL,03/11/2020,NEIGHBOURHOODS AND ENVIRONMENT,ROCHDALE TOWN TAXIS LTD,03/11/2020,190,TAXI HIRE,V001635236
ROCHDALE BOROUGH COUNCIL,03/11/2020,NEIGHBOURHOODS AND ENVIRONMENT,ROCHDALE TOWN TAXIS LTD,03/11/2020,190,TAXI HIRE,V001635236
ROCHDALE BOROUGH COUNCIL,03/11/2020,NEIGHBOURHOODS AND ENVIRONMENT,ROCHDALE TOWN TAXIS LTD,03/11/2020,190,TAXI HIRE,V001635236
ROCHDALE BOROUGH COUNCIL,03/11/2020,NEIGHBOURHOODS AND ENVIRONMENT,ROCHDALE TOWN TAXIS LTD,03/11/2020,57,TAXI HIRE,V001635237
ROCHDALE BOROUGH COUNCIL,03/11/2020,NEIGHBOURHOODS AND ENVIRONMENT,ROCHDALE TOWN TAXIS LTD,03/11/2020,57,TAXI HIRE,V001635237
ROCHDALE BOROUGH COUNCIL,03/11/2020,NEIGHBOURHOODS AND ENVIRONMENT,ROCHDALE TOWN TAXIS LTD,03/11/2020,57,TAXI HIRE,V001635237
ROCHDALE BOROUGH COUNCIL,03/11/2020,NEIGHBOURHOODS AND ENVIRONMENT,ROCHDALE TOWN TAXIS LTD,03/11/2020,72,TAXI HIRE,V001635238
ROCHDALE BOROUGH COUNCIL,03/11/2020,NEIGHBOURHOODS AND ENVIRONMENT,ROCHDALE TOWN TAXIS LTD,03/11/2020,72,TAXI HIRE,V001635238
ROCHDALE BOROUGH COUNCIL,03/11/2020,NEIGHBOURHOODS AND ENVIRONMENT,ROCHDALE TOWN TAXIS LTD,03/11/2020,72,TAXI HIRE,V001635238
ROCHDALE BOROUGH COUNCIL,03/11/2020,NEIGHBOURHOODS AND ENVIRONMENT,ROCHDALE TOWN TAXIS LTD,03/11/2020,78,TAXI HIRE,V001635239
ROCHDALE BOROUGH COUNCIL,03/11/2020,NEIGHBOURHOODS AND ENVIRONMENT,ROCHDALE TOWN TAXIS LTD,03/11/2020,78,TAXI HIRE,V001635239
ROCHDALE BOROUGH COUNCIL,03/11/2020,NEIGHBOURHOODS AND ENVIRONMENT,ROCHDALE TOWN TAXIS LTD,03/11/2020,78,TAXI HIRE,V001635239
ROCHDALE BOROUGH COUNCIL,03/11/2020,NEIGHBOURHOODS AND ENVIRONMENT,ROCHDALE TOWN TAXIS LTD,03/11/2020,48,TAXI HIRE,V001635240
ROCHDALE BOROUGH COUNCIL,03/11/2020,NEIGHBOURHOODS AND ENVIRONMENT,ROCHDALE TOWN TAXIS LTD,03/11/2020,48,TAXI HIRE,V001635240
ROCHDALE BOROUGH COUNCIL,03/11/2020,NEIGHBOURHOODS AND ENVIRONMENT,ROCHDALE TOWN TAXIS LTD,03/11/2020,48,TAXI HIRE,V001635240
ROCHDALE BOROUGH COUNCIL,03/11/2020,NEIGHBOURHOODS AND ENVIRONMENT,ROCHDALE TOWN TAXIS LTD,03/11/2020,400,TAXI HIRE,V001635241
ROCHDALE BOROUGH COUNCIL,03/11/2020,NEIGHBOURHOODS AND ENVIRONMENT,ROCHDALE TOWN TAXIS LTD,03/11/2020,400,TAXI HIRE,V001635241
ROCHDALE BOROUGH COUNCIL,03/11/2020,NEIGHBOURHOODS AND ENVIRONMENT,ROCHDALE TOWN TAXIS LTD,03/11/2020,400,TAXI HIRE,V001635241
ROCHDALE BOROUGH COUNCIL,03/11/2020,ADULT CARE LCO FUNCTIONS,UPS BUILDING AND MAINTENANCE LTD,03/11/2020,67.4,MINOR BUILDING WORKS,V001635242
ROCHDALE BOROUGH COUNCIL,03/11/2020,ADULT CARE LCO FUNCTIONS,UPS BUILDING AND MAINTENANCE LTD,03/11/2020,101.08,MINOR BUILDING WORKS,V001635242
ROCHDALE BOROUGH COUNCIL,03/11/2020,ECONOMY DIRECTORATE,COMPLIANCE365,03/11/2020,160,ONGOING DISBURSEMENTS,V001635243
ROCHDALE BOROUGH COUNCIL,03/11/2020,ECONOMY DIRECTORATE,COMPLIANCE365,03/11/2020,160,ONGOING DISBURSEMENTS,V001635244
ROCHDALE BOROUGH COUNCIL,03/11/2020,PROPERTY AND HIGHWAYS,REACH PUBLISHING SERVICES LTD,03/11/2020,111.47,ADVERTISING,V001635245
ROCHDALE BOROUGH COUNCIL,03/11/2020,PROPERTY AND HIGHWAYS,REACH PUBLISHING SERVICES LTD,03/11/2020,70.93,ADVERTISING,V001635247
ROCHDALE BOROUGH COUNCIL,03/11/2020,EARLY HELP AND SCHOOLS,YORKSHIRE PURCHASING ORGANISATION,03/11/2020,7.47,EQUIPMENT - GENERAL,V001635248
ROCHDALE BOROUGH COUNCIL,03/11/2020,CHILDREN�S SOCIAL CARE,WITHERSLACK INTEGRATED PROVISION,03/11/2020,16294.66,EBD (EMOT & BEHAV DIFF) PLACEMENTS,V001635249
ROCHDALE BOROUGH COUNCIL,03/11/2020,PROPERTY AND HIGHWAYS,FW SHERRATT LTD,03/11/2020,2966.09,ROADWORKS,V001635252
ROCHDALE BOROUGH COUNCIL,03/11/2020,PROPERTY AND HIGHWAYS,FW SHERRATT LTD,03/11/2020,2750,MINOR BUILDING WORKS,V001635253
ROCHDALE BOROUGH COUNCIL,03/11/2020,NEIGHBOURHOODS AND ENVIRONMENT,FW SHERRATT LTD,03/11/2020,2098.08,MINOR BUILDING WORKS,V001635254
ROCHDALE BOROUGH COUNCIL,03/11/2020,CHILDREN�S SOCIAL CARE,REDACTED - PERSONAL DATA,03/11/2020,175,CHILDRENS SUBSISTENCE,V001635255
ROCHDALE BOROUGH COUNCIL,03/11/2020,CHILDREN�S SOCIAL CARE,REDACTED - PERSONAL DATA,03/11/2020,481,CHILDRENS SUBSISTENCE,V001635256
ROCHDALE BOROUGH COUNCIL,03/11/2020,CHILDREN�S SOCIAL CARE,REDACTED - PERSONAL DATA,03/11/2020,481,CHILDRENS SUBSISTENCE,V001635256
ROCHDALE BOROUGH COUNCIL,10/11/2020,CHILDREN�S SOCIAL CARE,SWIIS FOSTER CARE LIMITED,10/11/2020,776.23,FOSTER PARENTS BASIC ALLOWANCE,V001635258
ROCHDALE BOROUGH COUNCIL,06/11/2020,EARLY HELP AND SCHOOLS,PATTERSONS BRISTOL LTD,06/11/2020,10.77,CONSUMABLES,V001635259
ROCHDALE BOROUGH COUNCIL,06/11/2020,EARLY HELP AND SCHOOLS,PATTERSONS BRISTOL LTD,06/11/2020,8.84,CONSUMABLES,V001635259
ROCHDALE BOROUGH COUNCIL,06/11/2020,EARLY HELP AND SCHOOLS,PATTERSONS BRISTOL LTD,06/11/2020,10.52,CONSUMABLES,V001635259
ROCHDALE BOROUGH COUNCIL,09/11/2020,NEIGHBOURHOODS AND ENVIRONMENT,REDACTED - PERSONAL DATA,09/11/2020,174,WITNESSES EXPENSES,V001635261
ROCHDALE BOROUGH COUNCIL,09/11/2020,NEIGHBOURHOODS AND ENVIRONMENT,FORENSICS LTD,09/11/2020,859.75,TOXICOLOGY PAYMENTS,V001635261
ROCHDALE BOROUGH COUNCIL,06/11/2020,PROPERTY AND HIGHWAYS,PARR ROCHDALE LIMITED,06/11/2020,14.69,PROPERTY - WORKS ELEMENT,V001635262
ROCHDALE BOROUGH COUNCIL,10/11/2020,CHILDREN�S SOCIAL CARE,STEP AHEAD,10/11/2020,58.9,YOUNGE PERSONS ALLOWANCE,V001635264
ROCHDALE BOROUGH COUNCIL,03/11/2020,RESOURCES,WESTMINSTER LEGAL POLICY FORUM,03/11/2020,190,CONFERENCE,V001635265
ROCHDALE BOROUGH COUNCIL,18/11/2020,EARLY HELP AND SCHOOLS,BANNER GROUP LIMITED,18/11/2020,18.36,PRINTING & STATIONERY,V001635266
ROCHDALE BOROUGH COUNCIL,05/11/2020,COMMISSIONING AND STATUTORY,ADVOCACY FOCUS,05/11/2020,198.45,ACTIVITIES,V001635268
ROCHDALE BOROUGH COUNCIL,16/11/2020,CHILDREN�S SOCIAL CARE,NORTHERN COMMUNITY PATHWAYS LTD,16/11/2020,260.84,YOUNGE PERSONS ALLOWANCE,V001635269
ROCHDALE BOROUGH COUNCIL,03/11/2020,COMMISSIONING AND STATUTORY,REDACTED - PERSONAL DATA,03/11/2020,173.37,EXPENSES - GENERAL,V001635270
ROCHDALE BOROUGH COUNCIL,03/11/2020,NEIGHBOURHOODS AND ENVIRONMENT,REDACTED - PERSONAL DATA,03/11/2020,333.5,TAXI HIRE,V001635272
ROCHDALE BOROUGH COUNCIL,03/11/2020,RESOURCES,ROYAL MAIL GROUP LTD,03/11/2020,1050.45,PRINTING & STATIONERY,V001635273
ROCHDALE BOROUGH COUNCIL,10/11/2020,NEIGHBOURHOODS AND ENVIRONMENT,LS SYSTEMS LTD,10/11/2020,1720.82,"TREES, SHRUBS, PLANTS",V001635274
ROCHDALE BOROUGH COUNCIL,03/11/2020,COMMISSIONING AND STATUTORY,REDACTED - PERSONAL DATA,03/11/2020,173.37,EXPENSES - GENERAL,V001635275
ROCHDALE BOROUGH COUNCIL,03/11/2020,NEIGHBOURHOODS AND ENVIRONMENT,SUPAWASH LAUNDERETTE,03/11/2020,40,EQUIPMENT - GENERAL,V001635276
ROCHDALE BOROUGH COUNCIL,03/11/2020,PROPERTY AND HIGHWAYS,WOLSELEY UK LIMITED,03/11/2020,74.92,BUILDING MATERIALS,V001635277
ROCHDALE BOROUGH COUNCIL,03/11/2020,ECONOMY DIRECTORATE,GTM ELECTRICAL SERVICES LIMITED,03/11/2020,19847,REPAIRS & ALTS OF BUILDINGS,V001635278
ROCHDALE BOROUGH COUNCIL,03/11/2020,NEIGHBOURHOODS AND ENVIRONMENT,GREENFINGERS LANDSCAPE LTD,03/11/2020,5850.84,CONTRACTS,V001635444
ROCHDALE BOROUGH COUNCIL,03/11/2020,NEIGHBOURHOODS AND ENVIRONMENT,REDACTED - PERSONAL DATA,03/11/2020,83.5,WITNESSES EXPENSES,V001635445
ROCHDALE BOROUGH COUNCIL,03/11/2020,NEIGHBOURHOODS AND ENVIRONMENT,REDACTED - PERSONAL DATA,03/11/2020,576.9,OTHER POST MORTEMS,V001635447
ROCHDALE BOROUGH COUNCIL,03/11/2020,NEIGHBOURHOODS AND ENVIRONMENT,MANCHESTER UNIVERSITY NHS FOUNDATION TRUST MFT,03/11/2020,1090,CHILDRENS POST MORTEMS,V001635448
ROCHDALE BOROUGH COUNCIL,03/11/2020,NEIGHBOURHOODS AND ENVIRONMENT,J A CRYER EXCAVATION & GROUNDWORK CONTRACTORS LTD,03/11/2020,990,ENVIRONMENTAL WORKS LANDSCAPE,V001635449
ROCHDALE BOROUGH COUNCIL,03/11/2020,NEIGHBOURHOODS AND ENVIRONMENT,J A CRYER EXCAVATION & GROUNDWORK CONTRACTORS LTD,03/11/2020,3850,ENVIRONMENTAL WORKS LANDSCAPE,V001635450
ROCHDALE BOROUGH COUNCIL,03/11/2020,NEIGHBOURHOODS AND ENVIRONMENT,J A CRYER EXCAVATION & GROUNDWORK CONTRACTORS LTD,03/11/2020,3284,ENVIRONMENTAL WORKS LANDSCAPE,V001635451
ROCHDALE BOROUGH COUNCIL,03/11/2020,NEIGHBOURHOODS AND ENVIRONMENT,GRAVITAS RECRUITMENT GROUP,03/11/2020,1150,AGENCY STAFF,V001635452
ROCHDALE BOROUGH COUNCIL,03/11/2020,EARLY HELP AND SCHOOLS,PATTERSONS BRISTOL LTD,03/11/2020,38,CLEANING MATERIALS,V001635453
ROCHDALE BOROUGH COUNCIL,03/11/2020,CHILDREN�S SOCIAL CARE,MILLENNIUM TRANSLATIONS LTD,03/11/2020,64.1,TRANSLATION & INTERPRETATION,V001635454
ROCHDALE BOROUGH COUNCIL,27/11/2020,CHILDREN�S SOCIAL CARE,MILLENNIUM TRANSLATIONS LTD,27/11/2020,76.4,TRANSLATION & INTERPRETATION,V001635455
ROCHDALE BOROUGH COUNCIL,03/11/2020,NEIGHBOURHOODS AND ENVIRONMENT,REDACTED - PERSONAL DATA,03/11/2020,100,PHOTOGRAPHY,V001635456
ROCHDALE BOROUGH COUNCIL,12/11/2020,ECONOMY DIRECTORATE,ABC INDUSTRIAL DOORS LTD,12/11/2020,990.5,ELECTRICAL,V001635457
ROCHDALE BOROUGH COUNCIL,06/11/2020,NEIGHBOURHOODS AND ENVIRONMENT,SECURITY PLUS LIMITED,06/11/2020,61.05,SECURITY,V001635458
ROCHDALE BOROUGH COUNCIL,06/11/2020,NEIGHBOURHOODS AND ENVIRONMENT,SECURITY PLUS LIMITED,06/11/2020,12.21,SECURITY,V001635458
ROCHDALE BOROUGH COUNCIL,06/11/2020,NEIGHBOURHOODS AND ENVIRONMENT,SECURITY PLUS LIMITED,06/11/2020,36.63,SECURITY,V001635458
ROCHDALE BOROUGH COUNCIL,06/11/2020,NEIGHBOURHOODS AND ENVIRONMENT,SECURITY PLUS LIMITED,06/11/2020,15.3,SECURITY,V001635458
ROCHDALE BOROUGH COUNCIL,06/11/2020,PROPERTY AND HIGHWAYS,SECURITY PLUS LIMITED,06/11/2020,76.5,SECURITY,V001635458
ROCHDALE BOROUGH COUNCIL,11/11/2020,PROPERTY AND HIGHWAYS,REACH PUBLISHING SERVICES LTD,11/11/2020,61.74,ADVERTISING,V001635459
ROCHDALE BOROUGH COUNCIL,27/11/2020,CHILDREN�S SOCIAL CARE,MILLENNIUM TRANSLATIONS LTD,27/11/2020,48,TRANSLATION & INTERPRETATION,V001635461
ROCHDALE BOROUGH COUNCIL,03/11/2020,RESOURCES,ALPHATECH PRINT AND DATA SERVICES LTD,03/11/2020,184.16,PRINTING & STATIONERY,V001635462
ROCHDALE BOROUGH COUNCIL,03/11/2020,ADULT CARE LCO FUNCTIONS,STANNAH LIFT SERVICES LTD,03/11/2020,54,REMOVAL EXPENDITURE,V001635463
ROCHDALE BOROUGH COUNCIL,06/11/2020,ECONOMY DIRECTORATE,TRANSPORT FOR GREATER MANCHESTER,06/11/2020,2000,MINOR BUILDING WORKS,V001635464
ROCHDALE BOROUGH COUNCIL,05/11/2020,RESOURCES,ROYAL MAIL GROUP LTD,05/11/2020,63.45,PRINTING & STATIONERY,V001635466
ROCHDALE BOROUGH COUNCIL,12/11/2020,RESOURCES,CRITIQOM LIMITED,12/11/2020,1458.07,POSTAGE,V001635467
ROCHDALE BOROUGH COUNCIL,03/11/2020,EARLY HELP AND SCHOOLS,ROSS CARE,03/11/2020,6074.27,EQUIPMENT - GENERAL,V001635468
ROCHDALE BOROUGH COUNCIL,05/11/2020,CHILDREN�S SOCIAL CARE,G AND A TAYLOR HOTELS LTD,05/11/2020,75.52,ACCOMMODATION,V001635469
ROCHDALE BOROUGH COUNCIL,10/11/2020,CHILDREN�S SOCIAL CARE,SWIIS FOSTER CARE LIMITED,10/11/2020,796.11,FOSTER PARENTS BASIC ALLOWANCE,V001635470
ROCHDALE BOROUGH COUNCIL,03/11/2020,CHILDREN�S SOCIAL CARE,ADOPTION MATTERS NORTHWEST,03/11/2020,1778,ADOPTION PAYMENTS,V001635471
ROCHDALE BOROUGH COUNCIL,03/11/2020,EARLY HELP AND SCHOOLS,THE CHILDRENS SOCIETY SERVICES LTD,03/11/2020,9250,ACTIVITIES,V001635472
ROCHDALE BOROUGH COUNCIL,09/11/2020,ECONOMY DIRECTORATE,OVE ARUP AND PARTNERS LIMITED,09/11/2020,12400,CONSULTANT FEES,V001635473
ROCHDALE BOROUGH COUNCIL,03/11/2020,COMMISSIONING AND STATUTORY,REDACTED - PERSONAL DATA,03/11/2020,173.37,EXPENSES - GENERAL,V001635474
ROCHDALE BOROUGH COUNCIL,03/11/2020,COMMISSIONING AND STATUTORY,REDACTED - PERSONAL DATA,03/11/2020,173.37,EXPENSES - GENERAL,V001635475
ROCHDALE BOROUGH COUNCIL,03/11/2020,COMMISSIONING AND STATUTORY,REDACTED - PERSONAL DATA,03/11/2020,173.37,EXPENSES - GENERAL,V001635476
ROCHDALE BOROUGH COUNCIL,03/11/2020,ADULT CARE LCO FUNCTIONS,UPS BUILDING AND MAINTENANCE LTD,03/11/2020,2345.17,MINOR BUILDING WORKS,V001635477
ROCHDALE BOROUGH COUNCIL,03/11/2020,ADULT CARE LCO FUNCTIONS,UPS BUILDING AND MAINTENANCE LTD,03/11/2020,3517.74,MINOR BUILDING WORKS,V001635477
ROCHDALE BOROUGH COUNCIL,03/11/2020,NEIGHBOURHOODS AND ENVIRONMENT,D H MINICOACH HIRE,03/11/2020,630,TAXI HIRE,V001635478
ROCHDALE BOROUGH COUNCIL,03/11/2020,NEIGHBOURHOODS AND ENVIRONMENT,D H MINICOACH HIRE,03/11/2020,630,TAXI HIRE,V001635478
ROCHDALE BOROUGH COUNCIL,06/11/2020,NEIGHBOURHOODS AND ENVIRONMENT,D H MINICOACH HIRE,06/11/2020,630,TAXI HIRE,V001635479
ROCHDALE BOROUGH COUNCIL,06/11/2020,NEIGHBOURHOODS AND ENVIRONMENT,D H MINICOACH HIRE,06/11/2020,630,TAXI HIRE,V001635479
ROCHDALE BOROUGH COUNCIL,03/11/2020,COMMISSIONING AND STATUTORY,ACTION FIRST ASSESSMENTS LTD,03/11/2020,1050,FEES / COMMISSION,V001635480
ROCHDALE BOROUGH COUNCIL,03/11/2020,COMMISSIONING AND STATUTORY,ACTION FIRST ASSESSMENTS LTD,03/11/2020,700,FEES / COMMISSION,V001635481
ROCHDALE BOROUGH COUNCIL,13/11/2020,NEIGHBOURHOODS AND ENVIRONMENT,REDACTED - PERSONAL DATA,13/11/2020,276.9,OTHER POST MORTEMS,V001635482
ROCHDALE BOROUGH COUNCIL,13/11/2020,NEIGHBOURHOODS AND ENVIRONMENT,REDACTED - PERSONAL DATA,13/11/2020,319,OTHER HISTOLOGY,V001635482
ROCHDALE BOROUGH COUNCIL,03/11/2020,COMMISSIONING AND STATUTORY,ACTION FIRST ASSESSMENTS LTD,03/11/2020,700,FEES / COMMISSION,V001635483
ROCHDALE BOROUGH COUNCIL,03/11/2020,COMMISSIONING AND STATUTORY,ACTION FIRST ASSESSMENTS LTD,03/11/2020,700,FEES / COMMISSION,V001635485
ROCHDALE BOROUGH COUNCIL,03/11/2020,COMMISSIONING AND STATUTORY,ACTION FIRST ASSESSMENTS LTD,03/11/2020,700,FEES / COMMISSION,V001635490
ROCHDALE BOROUGH COUNCIL,03/11/2020,COMMISSIONING AND STATUTORY,ACTION FIRST ASSESSMENTS LTD,03/11/2020,700,FEES / COMMISSION,V001635491
ROCHDALE BOROUGH COUNCIL,03/11/2020,COMMISSIONING AND STATUTORY,ACTION FIRST ASSESSMENTS LTD,03/11/2020,700,FEES / COMMISSION,V001635492
ROCHDALE BOROUGH COUNCIL,03/11/2020,COMMISSIONING AND STATUTORY,ACTION FIRST ASSESSMENTS LTD,03/11/2020,700,FEES / COMMISSION,V001635493
ROCHDALE BOROUGH COUNCIL,03/11/2020,COMMISSIONING AND STATUTORY,ACTION FIRST ASSESSMENTS LTD,03/11/2020,700,FEES / COMMISSION,V001635494
ROCHDALE BOROUGH COUNCIL,03/11/2020,COMMISSIONING AND STATUTORY,SARA MEDICS LTD,03/11/2020,173.37,EXPENSES - GENERAL,V001635495
ROCHDALE BOROUGH COUNCIL,03/11/2020,COMMISSIONING AND STATUTORY,SARA MEDICS LTD,03/11/2020,173.37,EXPENSES - GENERAL,V001635496
ROCHDALE BOROUGH COUNCIL,03/11/2020,COMMISSIONING AND STATUTORY,SARA MEDICS LTD,03/11/2020,173.37,EXPENSES - GENERAL,V001635497
ROCHDALE BOROUGH COUNCIL,03/11/2020,COMMISSIONING AND STATUTORY,SARA MEDICS LTD,03/11/2020,173.37,EXPENSES - GENERAL,V001635498
ROCHDALE BOROUGH COUNCIL,03/11/2020,COMMISSIONING AND STATUTORY,REDACTED - PERSONAL DATA,03/11/2020,173.37,EXPENSES - GENERAL,V001635499
ROCHDALE BOROUGH COUNCIL,03/11/2020,COMMISSIONING AND STATUTORY,REDACTED - PERSONAL DATA,03/11/2020,173.37,EXPENSES - GENERAL,V001635500
ROCHDALE BOROUGH COUNCIL,03/11/2020,COMMISSIONING AND STATUTORY,REDACTED - PERSONAL DATA,03/11/2020,173.37,EXPENSES - GENERAL,V001635501
ROCHDALE BOROUGH COUNCIL,03/11/2020,COMMISSIONING AND STATUTORY,REDACTED - PERSONAL DATA,03/11/2020,173.37,EXPENSES - GENERAL,V001635502
ROCHDALE BOROUGH COUNCIL,03/11/2020,COMMISSIONING AND STATUTORY,REDACTED - PERSONAL DATA,03/11/2020,173.37,EXPENSES - GENERAL,V001635503
ROCHDALE BOROUGH COUNCIL,03/11/2020,COMMISSIONING AND STATUTORY,SARA MEDICS LTD,03/11/2020,173.37,EXPENSES - GENERAL,V001635504
ROCHDALE BOROUGH COUNCIL,03/11/2020,COMMISSIONING AND STATUTORY,FLEX 360 LTD,03/11/2020,80,ACTIVITIES,V001635505
ROCHDALE BOROUGH COUNCIL,04/11/2020,NEIGHBOURHOODS AND ENVIRONMENT,REDACTED - PERSONAL DATA,04/11/2020,2950,SECURITY,V001635507
ROCHDALE BOROUGH COUNCIL,04/11/2020,COMMISSIONING AND STATUTORY,FLEX 360 LTD,04/11/2020,120,ACTIVITIES,V001635509
ROCHDALE BOROUGH COUNCIL,04/11/2020,COMMISSIONING AND STATUTORY,FLEX 360 LTD,04/11/2020,120,ACTIVITIES,V001635510
ROCHDALE BOROUGH COUNCIL,04/11/2020,COMMISSIONING AND STATUTORY,FLEX 360 LTD,04/11/2020,120,ACTIVITIES,V001635511
ROCHDALE BOROUGH COUNCIL,04/11/2020,COMMISSIONING AND STATUTORY,FLEX 360 LTD,04/11/2020,80,ACTIVITIES,V001635512
ROCHDALE BOROUGH COUNCIL,04/11/2020,COMMISSIONING AND STATUTORY,FLEX 360 LTD,04/11/2020,80,ACTIVITIES,V001635513
ROCHDALE BOROUGH COUNCIL,04/11/2020,COMMISSIONING AND STATUTORY,FLEX 360 LTD,04/11/2020,120,ACTIVITIES,V001635514
ROCHDALE BOROUGH COUNCIL,04/11/2020,COMMISSIONING AND STATUTORY,FLEX 360 LTD,04/11/2020,80,ACTIVITIES,V001635515
ROCHDALE BOROUGH COUNCIL,04/11/2020,COMMISSIONING AND STATUTORY,REDACTED - PERSONAL DATA,04/11/2020,173.37,EXPENSES - GENERAL,V001635516
ROCHDALE BOROUGH COUNCIL,04/11/2020,COMMISSIONING AND STATUTORY,REDACTED - PERSONAL DATA,04/11/2020,173.37,EXPENSES - GENERAL,V001635517
ROCHDALE BOROUGH COUNCIL,04/11/2020,COMMISSIONING AND STATUTORY,REDACTED - PERSONAL DATA,04/11/2020,173.37,EXPENSES - GENERAL,V001635518
ROCHDALE BOROUGH COUNCIL,04/11/2020,NEIGHBOURHOODS AND ENVIRONMENT,BANNER GROUP LIMITED,04/11/2020,61.84,PRINTING & STATIONERY,V001635519
ROCHDALE BOROUGH COUNCIL,04/11/2020,NEIGHBOURHOODS AND ENVIRONMENT,REDACTED - PERSONAL DATA,04/11/2020,1350,MEDICAL FEES,V001635520
ROCHDALE BOROUGH COUNCIL,04/11/2020,NEIGHBOURHOODS AND ENVIRONMENT,NOMIX ENVIRO LTD,04/11/2020,1841,EQUIPMENT - GENERAL,V001635522
ROCHDALE BOROUGH COUNCIL,04/11/2020,NEIGHBOURHOODS AND ENVIRONMENT,NOMIX ENVIRO LTD,04/11/2020,1841,EQUIPMENT - GENERAL,V001635522
ROCHDALE BOROUGH COUNCIL,04/11/2020,NEIGHBOURHOODS AND ENVIRONMENT,NOMIX ENVIRO LTD,04/11/2020,105.75,EQUIPMENT - GENERAL,V001635523
ROCHDALE BOROUGH COUNCIL,04/11/2020,NEIGHBOURHOODS AND ENVIRONMENT,NOMIX ENVIRO LTD,04/11/2020,105.75,EQUIPMENT - GENERAL,V001635523
ROCHDALE BOROUGH COUNCIL,04/11/2020,NEIGHBOURHOODS AND ENVIRONMENT,NOMIX ENVIRO LTD,04/11/2020,640,EQUIPMENT - GENERAL,V001635524
ROCHDALE BOROUGH COUNCIL,04/11/2020,NEIGHBOURHOODS AND ENVIRONMENT,NOMIX ENVIRO LTD,04/11/2020,640,EQUIPMENT - GENERAL,V001635524
ROCHDALE BOROUGH COUNCIL,04/11/2020,NEIGHBOURHOODS AND ENVIRONMENT,JCA LTD,04/11/2020,3198,EQUIPMENT - GENERAL,V001635525
ROCHDALE BOROUGH COUNCIL,04/11/2020,NEIGHBOURHOODS AND ENVIRONMENT,NOMIX ENVIRO LTD,04/11/2020,2290,EQUIPMENT - GENERAL,V001635526
ROCHDALE BOROUGH COUNCIL,04/11/2020,NEIGHBOURHOODS AND ENVIRONMENT,NOMIX ENVIRO LTD,04/11/2020,2290,EQUIPMENT - GENERAL,V001635526
ROCHDALE BOROUGH COUNCIL,04/11/2020,NEIGHBOURHOODS AND ENVIRONMENT,PATTERSONS BRISTOL LTD,04/11/2020,24.2,CLEANING EQUIPMENT,V001635527
ROCHDALE BOROUGH COUNCIL,04/11/2020,NEIGHBOURHOODS AND ENVIRONMENT,PATTERSONS BRISTOL LTD,04/11/2020,2.61,CLEANING MATERIALS,V001635528
ROCHDALE BOROUGH COUNCIL,04/11/2020,NEIGHBOURHOODS AND ENVIRONMENT,PATTERSONS BRISTOL LTD,04/11/2020,14.25,CLEANING MATERIALS,V001635528
ROCHDALE BOROUGH COUNCIL,04/11/2020,NEIGHBOURHOODS AND ENVIRONMENT,PATTERSONS BRISTOL LTD,04/11/2020,7.28,CLEANING MATERIALS,V001635528
ROCHDALE BOROUGH COUNCIL,04/11/2020,NEIGHBOURHOODS AND ENVIRONMENT,PATTERSONS BRISTOL LTD,04/11/2020,28.5,CLEANING MATERIALS,V001635528
ROCHDALE BOROUGH COUNCIL,04/11/2020,NEIGHBOURHOODS AND ENVIRONMENT,PATTERSONS BRISTOL LTD,04/11/2020,28.5,CLEANING MATERIALS,V001635528
ROCHDALE BOROUGH COUNCIL,04/11/2020,NEIGHBOURHOODS AND ENVIRONMENT,PATTERSONS BRISTOL LTD,04/11/2020,6.36,CLEANING EQUIPMENT,V001635528
ROCHDALE BOROUGH COUNCIL,04/11/2020,NEIGHBOURHOODS AND ENVIRONMENT,PATTERSONS BRISTOL LTD,04/11/2020,5.6,CLEANING EQUIPMENT,V001635528
ROCHDALE BOROUGH COUNCIL,04/11/2020,NEIGHBOURHOODS AND ENVIRONMENT,PATTERSONS BRISTOL LTD,04/11/2020,71.64,CLEANING MATERIALS,V001635528
ROCHDALE BOROUGH COUNCIL,04/11/2020,NEIGHBOURHOODS AND ENVIRONMENT,PATTERSONS BRISTOL LTD,04/11/2020,5.4,CLEANING EQUIPMENT,V001635529
ROCHDALE BOROUGH COUNCIL,04/11/2020,NEIGHBOURHOODS AND ENVIRONMENT,PATTERSONS BRISTOL LTD,04/11/2020,39.78,CLEANING MATERIALS,V001635529
ROCHDALE BOROUGH COUNCIL,04/11/2020,NEIGHBOURHOODS AND ENVIRONMENT,PATTERSONS BRISTOL LTD,04/11/2020,12.08,CLEANING MATERIALS,V001635529
ROCHDALE BOROUGH COUNCIL,04/11/2020,NEIGHBOURHOODS AND ENVIRONMENT,PATTERSONS BRISTOL LTD,04/11/2020,18.8,CLEANING MATERIALS,V001635529
ROCHDALE BOROUGH COUNCIL,04/11/2020,NEIGHBOURHOODS AND ENVIRONMENT,PATTERSONS BRISTOL LTD,04/11/2020,15,CLEANING EQUIPMENT,V001635529
ROCHDALE BOROUGH COUNCIL,04/11/2020,NEIGHBOURHOODS AND ENVIRONMENT,PATTERSONS BRISTOL LTD,04/11/2020,7.95,CLEANING EQUIPMENT,V001635529
ROCHDALE BOROUGH COUNCIL,04/11/2020,NEIGHBOURHOODS AND ENVIRONMENT,ROCHDALE TOWN TAXIS LTD,04/11/2020,350,TAXI HIRE,V001635530
ROCHDALE BOROUGH COUNCIL,04/11/2020,NEIGHBOURHOODS AND ENVIRONMENT,ROCHDALE TOWN TAXIS LTD,04/11/2020,350,TAXI HIRE,V001635530
ROCHDALE BOROUGH COUNCIL,04/11/2020,NEIGHBOURHOODS AND ENVIRONMENT,ROCHDALE TOWN TAXIS LTD,04/11/2020,350,TAXI HIRE,V001635530
ROCHDALE BOROUGH COUNCIL,05/11/2020,NEIGHBOURHOODS AND ENVIRONMENT,REDACTED - PERSONAL DATA,05/11/2020,333.5,TAXI HIRE,V001635531
ROCHDALE BOROUGH COUNCIL,04/11/2020,CHILDREN�S SOCIAL CARE,BEYOND PSYCHOLOGY LTD,04/11/2020,2800,FEES / COMMISSION,V001635532
ROCHDALE BOROUGH COUNCIL,04/11/2020,CHILDREN�S SOCIAL CARE,THERAPEUTIC FOSTERING LTD,04/11/2020,3633,FOSTER PARENTS BASIC ALLOWANCE,V001635533
ROCHDALE BOROUGH COUNCIL,27/11/2020,CHILDREN�S SOCIAL CARE,MILLENNIUM TRANSLATIONS LTD,27/11/2020,96,TRANSLATION & INTERPRETATION,V001635534
ROCHDALE BOROUGH COUNCIL,27/11/2020,CHILDREN�S SOCIAL CARE,MILLENNIUM TRANSLATIONS LTD,27/11/2020,48,TRANSLATION & INTERPRETATION,V001635535
ROCHDALE BOROUGH COUNCIL,27/11/2020,CHILDREN�S SOCIAL CARE,MILLENNIUM TRANSLATIONS LTD,27/11/2020,76.4,TRANSLATION & INTERPRETATION,V001635536
ROCHDALE BOROUGH COUNCIL,27/11/2020,CHILDREN�S SOCIAL CARE,MILLENNIUM TRANSLATIONS LTD,27/11/2020,72.6,TRANSLATION & INTERPRETATION,V001635537
ROCHDALE BOROUGH COUNCIL,04/11/2020,EARLY HELP AND SCHOOLS,RANDSTAD EDUCATION,04/11/2020,102,INDEPENDENT UNITS,V001635538
ROCHDALE BOROUGH COUNCIL,04/11/2020,EARLY HELP AND SCHOOLS,RANDSTAD EDUCATION,04/11/2020,340,INDEPENDENT UNITS,V001635539
ROCHDALE BOROUGH COUNCIL,04/11/2020,ECONOMY DIRECTORATE,DONALD INSALL ASSOCIATES,04/11/2020,5746,CONSULTANTS FEES,V001635540
ROCHDALE BOROUGH COUNCIL,04/11/2020,ECONOMY DIRECTORATE,DONALD INSALL ASSOCIATES,04/11/2020,23452,CONSULTANTS FEES,V001635541
ROCHDALE BOROUGH COUNCIL,04/11/2020,NEIGHBOURHOODS AND ENVIRONMENT,BLUEPRINT GB LTD,04/11/2020,1128,PRINTING,V001635542
ROCHDALE BOROUGH COUNCIL,05/11/2020,NEIGHBOURHOODS AND ENVIRONMENT,NO GRAFFITI LTD,05/11/2020,150,CONTRACTED SERVICES,V001635543
ROCHDALE BOROUGH COUNCIL,04/11/2020,NEIGHBOURHOODS AND ENVIRONMENT,NORTHGATE VEHICLE HIRE LIMITED,04/11/2020,543.04,EQUIPMENT - GENERAL,V001635544
ROCHDALE BOROUGH COUNCIL,04/11/2020,EARLY HELP AND SCHOOLS,RANDSTAD EDUCATION,04/11/2020,204,INDEPENDENT UNITS,V001635545
ROCHDALE BOROUGH COUNCIL,04/11/2020,EARLY HELP AND SCHOOLS,RANDSTAD EDUCATION,04/11/2020,340,INDEPENDENT UNITS,V001635546
ROCHDALE BOROUGH COUNCIL,04/11/2020,EARLY HELP AND SCHOOLS,RANDSTAD EDUCATION,04/11/2020,476,INDEPENDENT UNITS,V001635547
ROCHDALE BOROUGH COUNCIL,04/11/2020,EARLY HELP AND SCHOOLS,RANDSTAD EDUCATION,04/11/2020,136,INDEPENDENT UNITS,V001635548
ROCHDALE BOROUGH COUNCIL,04/11/2020,EARLY HELP AND SCHOOLS,RANDSTAD EDUCATION,04/11/2020,34,INDEPENDENT UNITS,V001635549
ROCHDALE BOROUGH COUNCIL,04/11/2020,EARLY HELP AND SCHOOLS,RANDSTAD EDUCATION,04/11/2020,34,INDEPENDENT UNITS,V001635550
ROCHDALE BOROUGH COUNCIL,04/11/2020,EARLY HELP AND SCHOOLS,RANDSTAD EDUCATION,04/11/2020,136,INDEPENDENT UNITS,V001635551
ROCHDALE BOROUGH COUNCIL,04/11/2020,EARLY HELP AND SCHOOLS,RANDSTAD EDUCATION,04/11/2020,102,INDEPENDENT UNITS,V001635552
ROCHDALE BOROUGH COUNCIL,04/11/2020,EARLY HELP AND SCHOOLS,RANDSTAD EDUCATION,04/11/2020,102,INDEPENDENT UNITS,V001635553
ROCHDALE BOROUGH COUNCIL,10/11/2020,NEIGHBOURHOODS AND ENVIRONMENT,REDACTED - PERSONAL DATA,10/11/2020,370,MEDICAL FEES,V001635554
ROCHDALE BOROUGH COUNCIL,10/11/2020,NEIGHBOURHOODS AND ENVIRONMENT,REDACTED - PERSONAL DATA,10/11/2020,250,MEDICAL FEES,V001635555
ROCHDALE BOROUGH COUNCIL,04/11/2020,RESOURCES,CLEAPSS,04/11/2020,440,SUBSCRIPTIONS,V001635556
ROCHDALE BOROUGH COUNCIL,04/11/2020,RESOURCES,CLEAPSS,04/11/2020,440,SUBSCRIPTIONS,V001635556
ROCHDALE BOROUGH COUNCIL,16/11/2020,CHILDREN�S SOCIAL CARE,CARE 4 CHILDREN RESIDENTIAL SERVICES,16/11/2020,3155.18,FOSTER PARENTS BASIC ALLOWANCE,V001635557
ROCHDALE BOROUGH COUNCIL,16/11/2020,CHILDREN�S SOCIAL CARE,PEBBLES CARE LTD,16/11/2020,12196.29,EBD (EMOT & BEHAV DIFF) PLACEMENTS,V001635558
ROCHDALE BOROUGH COUNCIL,16/11/2020,CHILDREN�S SOCIAL CARE,ACTIVE CARE SOLUTIONS,16/11/2020,3791.1,FOSTER PARENTS BASIC ALLOWANCE,V001635559
ROCHDALE BOROUGH COUNCIL,16/11/2020,CHILDREN�S SOCIAL CARE,PATHWAYS,16/11/2020,2899.99,YOUNG PEOPLES RENTS,V001635560
ROCHDALE BOROUGH COUNCIL,16/11/2020,CHILDREN�S SOCIAL CARE,PATHWAYS,16/11/2020,235.6,YOUNGE PERSONS ALLOWANCE,V001635561
ROCHDALE BOROUGH COUNCIL,16/11/2020,CHILDREN�S SOCIAL CARE,FOSTER CARE ASSOCIATES LIMITED,16/11/2020,1872.56,FOSTER PARENTS BASIC ALLOWANCE,V001635562
ROCHDALE BOROUGH COUNCIL,16/11/2020,CHILDREN�S SOCIAL CARE,FOSTER CARE ASSOCIATES LIMITED,16/11/2020,1872.56,FOSTER PARENTS BASIC ALLOWANCE,V001635562
ROCHDALE BOROUGH COUNCIL,16/11/2020,CHILDREN�S SOCIAL CARE,FOSTER CARE ASSOCIATES LIMITED,16/11/2020,2003.62,FOSTER PARENTS BASIC ALLOWANCE,V001635563
ROCHDALE BOROUGH COUNCIL,16/11/2020,CHILDREN�S SOCIAL CARE,FOSTER CARE ASSOCIATES LIMITED,16/11/2020,2003.62,FOSTER PARENTS BASIC ALLOWANCE,V001635563
ROCHDALE BOROUGH COUNCIL,16/11/2020,CHILDREN�S SOCIAL CARE,FOSTER CARE ASSOCIATES LIMITED,16/11/2020,1853.68,FOSTER PARENTS BASIC ALLOWANCE,V001635564
ROCHDALE BOROUGH COUNCIL,16/11/2020,CHILDREN�S SOCIAL CARE,FOSTER CARE ASSOCIATES LIMITED,16/11/2020,1853.68,FOSTER PARENTS BASIC ALLOWANCE,V001635564
ROCHDALE BOROUGH COUNCIL,16/11/2020,CHILDREN�S SOCIAL CARE,FOSTER CARE ASSOCIATES LIMITED,16/11/2020,2003.62,FOSTER PARENTS BASIC ALLOWANCE,V001635565
ROCHDALE BOROUGH COUNCIL,16/11/2020,CHILDREN�S SOCIAL CARE,FOSTER CARE ASSOCIATES LIMITED,16/11/2020,2003.62,FOSTER PARENTS BASIC ALLOWANCE,V001635565
ROCHDALE BOROUGH COUNCIL,04/11/2020,CHILDREN�S SOCIAL CARE,REDACTED - PERSONAL DATA,04/11/2020,500,CHILDRENS SUBSISTENCE,V001635566
ROCHDALE BOROUGH COUNCIL,04/11/2020,CHILDREN�S SOCIAL CARE,STEP AHEAD,04/11/2020,1200,YOUNG PEOPLES RENTS,V001635567
ROCHDALE BOROUGH COUNCIL,04/11/2020,CHILDREN�S SOCIAL CARE,STEP AHEAD,04/11/2020,1200,YOUNG PEOPLES RENTS,V001635568
ROCHDALE BOROUGH COUNCIL,04/11/2020,CHILDREN�S SOCIAL CARE,STEP AHEAD,04/11/2020,1200,YOUNG PEOPLES RENTS,V001635569
ROCHDALE BOROUGH COUNCIL,10/11/2020,CHILDREN�S SOCIAL CARE,STEP AHEAD,10/11/2020,57.9,YOUNGE PERSONS ALLOWANCE,V001635570
ROCHDALE BOROUGH COUNCIL,04/11/2020,EARLY HELP AND SCHOOLS,J C MILLS & SON LIMITED,04/11/2020,2316.18,MINOR BUILDING WORKS,V001635571
ROCHDALE BOROUGH COUNCIL,04/11/2020,NEIGHBOURHOODS AND ENVIRONMENT,MARTEN WALSH CHERER LTD,04/11/2020,23.2,TRANSLATION & INTERPRETATION,V001635572
ROCHDALE BOROUGH COUNCIL,06/11/2020,EARLY HELP AND SCHOOLS,MONARCH EDUCATION LTD,06/11/2020,880,OTHER LA`S - SEN PROVISION,V001635573
ROCHDALE BOROUGH COUNCIL,04/11/2020,NEIGHBOURHOODS AND ENVIRONMENT,NORTHGATE VEHICLE HIRE LIMITED,04/11/2020,163.33,EQUIPMENT - GENERAL,V001635574
ROCHDALE BOROUGH COUNCIL,04/11/2020,NEIGHBOURHOODS AND ENVIRONMENT,FRANCOTYP POSTALIA LTD - RENTAL,04/11/2020,137.5,HIRE OF EQUIPMENT,V001635575
ROCHDALE BOROUGH COUNCIL,04/11/2020,NEIGHBOURHOODS AND ENVIRONMENT,REDACTED - PERSONAL DATA,04/11/2020,2700,MEDICAL FEES,V001635576
ROCHDALE BOROUGH COUNCIL,04/11/2020,CHILDREN�S SOCIAL CARE,NEXT STAGE FOSTERING,04/11/2020,2169.36,FOSTER PARENTS BASIC ALLOWANCE,V001635577
ROCHDALE BOROUGH COUNCIL,04/11/2020,NEIGHBOURHOODS AND ENVIRONMENT,SAFEGARD SOLUTIONS LTD,04/11/2020,18734,SECURITY,V001635578
ROCHDALE BOROUGH COUNCIL,04/11/2020,NEIGHBOURHOODS AND ENVIRONMENT,SAFEGARD SOLUTIONS LTD,04/11/2020,18734,SECURITY,V001635579
ROCHDALE BOROUGH COUNCIL,04/11/2020,NEIGHBOURHOODS AND ENVIRONMENT,BALMERS GM LTD,04/11/2020,400,EQUIPMENT - GENERAL,V001635580
ROCHDALE BOROUGH COUNCIL,04/11/2020,NEIGHBOURHOODS AND ENVIRONMENT,BALMERS GM LTD,04/11/2020,400,EQUIPMENT - GENERAL,V001635580
ROCHDALE BOROUGH COUNCIL,04/11/2020,NEIGHBOURHOODS AND ENVIRONMENT,SAFEGARD SOLUTIONS LTD,04/11/2020,18734,SECURITY,V001635581
ROCHDALE BOROUGH COUNCIL,04/11/2020,NEIGHBOURHOODS AND ENVIRONMENT,SAFEGARD SOLUTIONS LTD,04/11/2020,18734,SECURITY,V001635582
ROCHDALE BOROUGH COUNCIL,04/11/2020,NEIGHBOURHOODS AND ENVIRONMENT,SAFEGARD SOLUTIONS LTD,04/11/2020,18734,SECURITY,V001635583
ROCHDALE BOROUGH COUNCIL,04/11/2020,NEIGHBOURHOODS AND ENVIRONMENT,SAFEGARD SOLUTIONS LTD,04/11/2020,18734,SECURITY,V001635584
ROCHDALE BOROUGH COUNCIL,04/11/2020,NEIGHBOURHOODS AND ENVIRONMENT,REDACTED - PERSONAL DATA,04/11/2020,2000,EXPERT REPORTS,V001635585
ROCHDALE BOROUGH COUNCIL,20/11/2020,NEIGHBOURHOODS AND ENVIRONMENT,REDACTED - PERSONAL DATA,20/11/2020,1350,EXPERT REPORTS,V001635586
ROCHDALE BOROUGH COUNCIL,16/11/2020,CHILDREN�S SOCIAL CARE,ORANGE GROVE FOSTERCARE LTD,16/11/2020,3551.14,FOSTER PARENTS BASIC ALLOWANCE,V001635587
ROCHDALE BOROUGH COUNCIL,16/11/2020,CHILDREN�S SOCIAL CARE,PATHWAYS,16/11/2020,235.6,YOUNGE PERSONS ALLOWANCE,V001635588
ROCHDALE BOROUGH COUNCIL,16/11/2020,CHILDREN�S SOCIAL CARE,ACTIVE CARE SOLUTIONS,16/11/2020,3322.8,FOSTER PARENTS BASIC ALLOWANCE,V001635589
ROCHDALE BOROUGH COUNCIL,04/11/2020,EARLY HELP AND SCHOOLS,J C MILLS & SON LIMITED,04/11/2020,243.53,REPAIRS & ALTS OF BUILDINGS,V001635590
ROCHDALE BOROUGH COUNCIL,04/11/2020,EARLY HELP AND SCHOOLS,J C MILLS & SON LIMITED,04/11/2020,6278.44,MINOR BUILDING WORKS,V001635591
ROCHDALE BOROUGH COUNCIL,04/11/2020,NEIGHBOURHOODS AND ENVIRONMENT,BT GLOBAL SERVICES,04/11/2020,707.53,SECURITY,V001635593
ROCHDALE BOROUGH COUNCIL,04/11/2020,NEIGHBOURHOODS AND ENVIRONMENT,BT GLOBAL SERVICES,04/11/2020,707.53,SECURITY,V001635593
ROCHDALE BOROUGH COUNCIL,04/11/2020,NEIGHBOURHOODS AND ENVIRONMENT,BT GLOBAL SERVICES,04/11/2020,6463.37,SECURITY,V001635594
ROCHDALE BOROUGH COUNCIL,04/11/2020,NEIGHBOURHOODS AND ENVIRONMENT,BT GLOBAL SERVICES,04/11/2020,6463.37,SECURITY,V001635594
ROCHDALE BOROUGH COUNCIL,04/11/2020,NEIGHBOURHOODS AND ENVIRONMENT,BT GLOBAL SERVICES,04/11/2020,8008.91,SECURITY,V001635595
ROCHDALE BOROUGH COUNCIL,04/11/2020,NEIGHBOURHOODS AND ENVIRONMENT,BT GLOBAL SERVICES,04/11/2020,8008.91,SECURITY,V001635595
ROCHDALE BOROUGH COUNCIL,04/11/2020,EARLY HELP AND SCHOOLS,B AND E BOYS LIMITED,04/11/2020,21965.68,MINOR BUILDING WORKS,V001635598
ROCHDALE BOROUGH COUNCIL,04/11/2020,EARLY HELP AND SCHOOLS,ABM LANCASHIRE LIMITED,04/11/2020,1150.85,MINOR BUILDING WORKS,V001635600
ROCHDALE BOROUGH COUNCIL,20/11/2020,NEIGHBOURHOODS AND ENVIRONMENT,REDACTED - PERSONAL DATA,20/11/2020,200,EXPERT REPORTS,V001635601
ROCHDALE BOROUGH COUNCIL,20/11/2020,NEIGHBOURHOODS AND ENVIRONMENT,REDACTED - PERSONAL DATA,20/11/2020,2375,EXPERT REPORTS,V001635602
ROCHDALE BOROUGH COUNCIL,20/11/2020,NEIGHBOURHOODS AND ENVIRONMENT,REDACTED - PERSONAL DATA,20/11/2020,2021.9,WITNESSES EXPENSES,V001635602
ROCHDALE BOROUGH COUNCIL,20/11/2020,NEIGHBOURHOODS AND ENVIRONMENT,REDACTED - PERSONAL DATA,20/11/2020,225,EXPERT REPORTS,V001635603
ROCHDALE BOROUGH COUNCIL,04/11/2020,RESOURCES,REDACTED - PERSONAL DATA,04/11/2020,0,INPUT VAT - FEEDERS,V001635604
ROCHDALE BOROUGH COUNCIL,04/11/2020,EARLY HELP AND SCHOOLS,APOLLO HOME HEALTHCARE,04/11/2020,454.08,HOME CARE - CHILDRENS SERVICES,V001635605
ROCHDALE BOROUGH COUNCIL,04/11/2020,EARLY HELP AND SCHOOLS,PRESTIGE NURSING AND CARE,04/11/2020,489.6,HOME CARE - CHILDRENS SERVICES,V001635606
ROCHDALE BOROUGH COUNCIL,16/11/2020,CHILDREN�S SOCIAL CARE,TIMEOUT CHILDRENS HOMES LTD,16/11/2020,14100,EBD (EMOT & BEHAV DIFF) PLACEMENTS,V001635607
ROCHDALE BOROUGH COUNCIL,16/11/2020,CHILDREN�S SOCIAL CARE,TIMEOUT CHILDRENS HOMES LTD,16/11/2020,15600,EBD (EMOT & BEHAV DIFF) PLACEMENTS,V001635608
ROCHDALE BOROUGH COUNCIL,04/11/2020,EARLY HELP AND SCHOOLS,BEVAN CARE LTD,04/11/2020,157.5,HOME CARE - CHILDRENS SERVICES,V001635609
ROCHDALE BOROUGH COUNCIL,04/11/2020,EARLY HELP AND SCHOOLS,BEVAN CARE LTD,04/11/2020,157.5,HOME CARE - CHILDRENS SERVICES,V001635610
ROCHDALE BOROUGH COUNCIL,04/11/2020,EARLY HELP AND SCHOOLS,BEVAN CARE LTD,04/11/2020,157.5,HOME CARE - CHILDRENS SERVICES,V001635611
ROCHDALE BOROUGH COUNCIL,04/11/2020,EARLY HELP AND SCHOOLS,BEVAN CARE LTD,04/11/2020,157.5,HOME CARE - CHILDRENS SERVICES,V001635612
ROCHDALE BOROUGH COUNCIL,04/11/2020,EARLY HELP AND SCHOOLS,BEVAN CARE LTD,04/11/2020,472.5,HOME CARE - CHILDRENS SERVICES,V001635613
ROCHDALE BOROUGH COUNCIL,04/11/2020,NEIGHBOURHOODS AND ENVIRONMENT,PATTERSONS BRISTOL LTD,04/11/2020,28.2,CLEANING MATERIALS,V001635614
ROCHDALE BOROUGH COUNCIL,04/11/2020,NEIGHBOURHOODS AND ENVIRONMENT,PATTERSONS BRISTOL LTD,04/11/2020,3.37,CLEANING MATERIALS,V001635614
ROCHDALE BOROUGH COUNCIL,04/11/2020,NEIGHBOURHOODS AND ENVIRONMENT,PATTERSONS BRISTOL LTD,04/11/2020,26.52,CLEANING MATERIALS,V001635614
ROCHDALE BOROUGH COUNCIL,04/11/2020,NEIGHBOURHOODS AND ENVIRONMENT,PATTERSONS BRISTOL LTD,04/11/2020,8.4,CLEANING MATERIALS,V001635614
ROCHDALE BOROUGH COUNCIL,04/11/2020,NEIGHBOURHOODS AND ENVIRONMENT,DICK WHITTINGTON GUEST HOUSE,04/11/2020,1960,ACCOMMODATION,V001635616
ROCHDALE BOROUGH COUNCIL,05/11/2020,NEIGHBOURHOODS AND ENVIRONMENT,NORTH WEST PORTABLES,05/11/2020,368,FEES - PLANT MACHINERY EQUIPMENT,V001635617
ROCHDALE BOROUGH COUNCIL,05/11/2020,NEIGHBOURHOODS AND ENVIRONMENT,G AND A TAYLOR HOTELS LTD,05/11/2020,5864.84,ACCOMMODATION,V001635618
ROCHDALE BOROUGH COUNCIL,05/11/2020,ECONOMY DIRECTORATE,ALPHA PEST CONTROL,05/11/2020,225,SPECIFIED MAINTENANCE,V001635619
ROCHDALE BOROUGH COUNCIL,04/11/2020,NEIGHBOURHOODS AND ENVIRONMENT,247 HOTEL,04/11/2020,1070,ACCOMMODATION,V001635620
ROCHDALE BOROUGH COUNCIL,04/11/2020,NEIGHBOURHOODS AND ENVIRONMENT,HENDHAM HOTEL LTD,04/11/2020,4473,ACCOMMODATION,V001635621
ROCHDALE BOROUGH COUNCIL,04/11/2020,RESOURCES,ARTHUR J GALLAGHER INSURANCE LTD,04/11/2020,396.38,TRANSACTIONS-EXPENDITURE,V001635622
ROCHDALE BOROUGH COUNCIL,04/11/2020,RESOURCES,ARTHUR J GALLAGHER INSURANCE LTD,04/11/2020,2479.68,TRANSACTIONS-EXPENDITURE,V001635623
ROCHDALE BOROUGH COUNCIL,10/11/2020,CHILDREN�S SOCIAL CARE,STEP AHEAD,10/11/2020,57.9,YOUNGE PERSONS ALLOWANCE,V001635624
ROCHDALE BOROUGH COUNCIL,04/11/2020,ECONOMY DIRECTORATE,WATER PLUS,04/11/2020,104.1,WATER CHARGES,V001635625
ROCHDALE BOROUGH COUNCIL,13/11/2020,CHILDREN�S SOCIAL CARE,PARADIGM PROFESSIONAL CONSULTANCY LTD,13/11/2020,553.5,AGENCY STAFF,V001635629
ROCHDALE BOROUGH COUNCIL,24/11/2020,CHILDREN�S SOCIAL CARE,MILLENNIUM TRANSLATIONS LTD,24/11/2020,48,TRANSLATION & INTERPRETATION,V001635631
ROCHDALE BOROUGH COUNCIL,06/11/2020,ECONOMY DIRECTORATE,E ON ENERGY SOLUTIONS LIMITED,06/11/2020,165.84,ELECTRICITY,V001635632
ROCHDALE BOROUGH COUNCIL,05/11/2020,RESOURCES,CRITIQOM LIMITED,05/11/2020,493.58,PRINTING & STATIONERY,V001635633
ROCHDALE BOROUGH COUNCIL,04/11/2020,NEIGHBOURHOODS AND ENVIRONMENT,PATTERSONS BRISTOL LTD,04/11/2020,20.79,CONSUMABLES,V001635635
ROCHDALE BOROUGH COUNCIL,04/11/2020,NEIGHBOURHOODS AND ENVIRONMENT,PATTERSONS BRISTOL LTD,04/11/2020,7.14,CONSUMABLES,V001635635
ROCHDALE BOROUGH COUNCIL,04/11/2020,NEIGHBOURHOODS AND ENVIRONMENT,PATTERSONS BRISTOL LTD,04/11/2020,1.8,CLEANING EQUIPMENT,V001635635
ROCHDALE BOROUGH COUNCIL,04/11/2020,NEIGHBOURHOODS AND ENVIRONMENT,PATTERSONS BRISTOL LTD,04/11/2020,4.42,CONSUMABLES,V001635635
ROCHDALE BOROUGH COUNCIL,04/11/2020,NEIGHBOURHOODS AND ENVIRONMENT,PATTERSONS BRISTOL LTD,04/11/2020,6.93,CLEANING MATERIALS,V001635635
ROCHDALE BOROUGH COUNCIL,04/11/2020,NEIGHBOURHOODS AND ENVIRONMENT,PATTERSONS BRISTOL LTD,04/11/2020,10.77,CONSUMABLES,V001635635
ROCHDALE BOROUGH COUNCIL,04/11/2020,NEIGHBOURHOODS AND ENVIRONMENT,PATTERSONS BRISTOL LTD,04/11/2020,7.28,CLEANING MATERIALS,V001635635
ROCHDALE BOROUGH COUNCIL,04/11/2020,NEIGHBOURHOODS AND ENVIRONMENT,PATTERSONS BRISTOL LTD,04/11/2020,26.52,CLEANING MATERIALS,V001635636
ROCHDALE BOROUGH COUNCIL,04/11/2020,NEIGHBOURHOODS AND ENVIRONMENT,PATTERSONS BRISTOL LTD,04/11/2020,9.4,CLEANING MATERIALS,V001635636
ROCHDALE BOROUGH COUNCIL,04/11/2020,NEIGHBOURHOODS AND ENVIRONMENT,PATTERSONS BRISTOL LTD,04/11/2020,29.8,CLEANING MATERIALS,V001635636
ROCHDALE BOROUGH COUNCIL,04/11/2020,NEIGHBOURHOODS AND ENVIRONMENT,PATTERSONS BRISTOL LTD,04/11/2020,3.6,CLEANING EQUIPMENT,V001635637
ROCHDALE BOROUGH COUNCIL,04/11/2020,NEIGHBOURHOODS AND ENVIRONMENT,PATTERSONS BRISTOL LTD,04/11/2020,3.6,CLEANING EQUIPMENT,V001635637
ROCHDALE BOROUGH COUNCIL,04/11/2020,NEIGHBOURHOODS AND ENVIRONMENT,PATTERSONS BRISTOL LTD,04/11/2020,1.01,CLEANING MATERIALS,V001635637
ROCHDALE BOROUGH COUNCIL,04/11/2020,NEIGHBOURHOODS AND ENVIRONMENT,PATTERSONS BRISTOL LTD,04/11/2020,7.05,CLEANING MATERIALS,V001635637
ROCHDALE BOROUGH COUNCIL,04/11/2020,NEIGHBOURHOODS AND ENVIRONMENT,PATTERSONS BRISTOL LTD,04/11/2020,4.7,CLEANING MATERIALS,V001635637
ROCHDALE BOROUGH COUNCIL,04/11/2020,NEIGHBOURHOODS AND ENVIRONMENT,PATTERSONS BRISTOL LTD,04/11/2020,7.45,CLEANING MATERIALS,V001635637
ROCHDALE BOROUGH COUNCIL,04/11/2020,NEIGHBOURHOODS AND ENVIRONMENT,PATTERSONS BRISTOL LTD,04/11/2020,12.1,CLEANING EQUIPMENT,V001635637
ROCHDALE BOROUGH COUNCIL,05/11/2020,NEIGHBOURHOODS AND ENVIRONMENT,PATTERSONS BRISTOL LTD,05/11/2020,13.26,CLEANING MATERIALS,V001635638
ROCHDALE BOROUGH COUNCIL,05/11/2020,NEIGHBOURHOODS AND ENVIRONMENT,PATTERSONS BRISTOL LTD,05/11/2020,14.1,CLEANING MATERIALS,V001635638
ROCHDALE BOROUGH COUNCIL,05/11/2020,NEIGHBOURHOODS AND ENVIRONMENT,PATTERSONS BRISTOL LTD,05/11/2020,5.68,CLEANING MATERIALS,V001635638
ROCHDALE BOROUGH COUNCIL,05/11/2020,NEIGHBOURHOODS AND ENVIRONMENT,PATTERSONS BRISTOL LTD,05/11/2020,3.78,CLEANING MATERIALS,V001635638
ROCHDALE BOROUGH COUNCIL,05/11/2020,NEIGHBOURHOODS AND ENVIRONMENT,PATTERSONS BRISTOL LTD,05/11/2020,6.93,CLEANING MATERIALS,V001635638
ROCHDALE BOROUGH COUNCIL,05/11/2020,NEIGHBOURHOODS AND ENVIRONMENT,PATTERSONS BRISTOL LTD,05/11/2020,12.1,CLEANING EQUIPMENT,V001635638
ROCHDALE BOROUGH COUNCIL,05/11/2020,NEIGHBOURHOODS AND ENVIRONMENT,PATTERSONS BRISTOL LTD,05/11/2020,21.54,CONSUMABLES,V001635638
ROCHDALE BOROUGH COUNCIL,06/11/2020,NEIGHBOURHOODS AND ENVIRONMENT,PATTERSONS BRISTOL LTD,06/11/2020,7.05,CLEANING MATERIALS,V001635639
ROCHDALE BOROUGH COUNCIL,06/11/2020,NEIGHBOURHOODS AND ENVIRONMENT,PATTERSONS BRISTOL LTD,06/11/2020,13.26,CLEANING MATERIALS,V001635639
ROCHDALE BOROUGH COUNCIL,06/11/2020,NEIGHBOURHOODS AND ENVIRONMENT,PATTERSONS BRISTOL LTD,06/11/2020,3.34,CLEANING MATERIALS,V001635639
ROCHDALE BOROUGH COUNCIL,06/11/2020,NEIGHBOURHOODS AND ENVIRONMENT,PATTERSONS BRISTOL LTD,06/11/2020,4.7,CLEANING MATERIALS,V001635639
ROCHDALE BOROUGH COUNCIL,06/11/2020,NEIGHBOURHOODS AND ENVIRONMENT,PATTERSONS BRISTOL LTD,06/11/2020,1.17,CLEANING MATERIALS,V001635639
ROCHDALE BOROUGH COUNCIL,06/11/2020,NEIGHBOURHOODS AND ENVIRONMENT,PATTERSONS BRISTOL LTD,06/11/2020,14.9,CLEANING MATERIALS,V001635639
ROCHDALE BOROUGH COUNCIL,06/11/2020,NEIGHBOURHOODS AND ENVIRONMENT,PATTERSONS BRISTOL LTD,06/11/2020,14.27,CLEANING MATERIALS,V001635639
ROCHDALE BOROUGH COUNCIL,04/11/2020,NEIGHBOURHOODS AND ENVIRONMENT,PATTERSONS BRISTOL LTD,04/11/2020,3.6,CLEANING EQUIPMENT,V001635640
ROCHDALE BOROUGH COUNCIL,04/11/2020,NEIGHBOURHOODS AND ENVIRONMENT,PATTERSONS BRISTOL LTD,04/11/2020,1.8,CLEANING EQUIPMENT,V001635640
ROCHDALE BOROUGH COUNCIL,04/11/2020,NEIGHBOURHOODS AND ENVIRONMENT,PATTERSONS BRISTOL LTD,04/11/2020,13.86,CONSUMABLES,V001635640
ROCHDALE BOROUGH COUNCIL,04/11/2020,NEIGHBOURHOODS AND ENVIRONMENT,PATTERSONS BRISTOL LTD,04/11/2020,3.64,CLEANING MATERIALS,V001635640
ROCHDALE BOROUGH COUNCIL,04/11/2020,NEIGHBOURHOODS AND ENVIRONMENT,PATTERSONS BRISTOL LTD,04/11/2020,64.62,CONSUMABLES,V001635641
ROCHDALE BOROUGH COUNCIL,04/11/2020,NEIGHBOURHOODS AND ENVIRONMENT,PATTERSONS BRISTOL LTD,04/11/2020,24.2,CLEANING EQUIPMENT,V001635641
ROCHDALE BOROUGH COUNCIL,04/11/2020,NEIGHBOURHOODS AND ENVIRONMENT,PATTERSONS BRISTOL LTD,04/11/2020,41.58,CONSUMABLES,V001635641
ROCHDALE BOROUGH COUNCIL,04/11/2020,NEIGHBOURHOODS AND ENVIRONMENT,PATTERSONS BRISTOL LTD,04/11/2020,3.6,CLEANING EQUIPMENT,V001635642
ROCHDALE BOROUGH COUNCIL,04/11/2020,NEIGHBOURHOODS AND ENVIRONMENT,PATTERSONS BRISTOL LTD,04/11/2020,12.1,CLEANING EQUIPMENT,V001635642
ROCHDALE BOROUGH COUNCIL,04/11/2020,NEIGHBOURHOODS AND ENVIRONMENT,PATTERSONS BRISTOL LTD,04/11/2020,3.6,CLEANING EQUIPMENT,V001635642
ROCHDALE BOROUGH COUNCIL,04/11/2020,NEIGHBOURHOODS AND ENVIRONMENT,PATTERSONS BRISTOL LTD,04/11/2020,21.54,CONSUMABLES,V001635642
ROCHDALE BOROUGH COUNCIL,04/11/2020,NEIGHBOURHOODS AND ENVIRONMENT,PATTERSONS BRISTOL LTD,04/11/2020,9.4,CLEANING MATERIALS,V001635642
ROCHDALE BOROUGH COUNCIL,04/11/2020,NEIGHBOURHOODS AND ENVIRONMENT,PATTERSONS BRISTOL LTD,04/11/2020,7.05,CLEANING MATERIALS,V001635642
ROCHDALE BOROUGH COUNCIL,04/11/2020,NEIGHBOURHOODS AND ENVIRONMENT,PATTERSONS BRISTOL LTD,04/11/2020,5.01,CLEANING MATERIALS,V001635642
ROCHDALE BOROUGH COUNCIL,04/11/2020,NEIGHBOURHOODS AND ENVIRONMENT,PATTERSONS BRISTOL LTD,04/11/2020,19.89,CLEANING MATERIALS,V001635642
ROCHDALE BOROUGH COUNCIL,04/11/2020,NEIGHBOURHOODS AND ENVIRONMENT,PATTERSONS BRISTOL LTD,04/11/2020,14.9,CLEANING MATERIALS,V001635642
ROCHDALE BOROUGH COUNCIL,04/11/2020,NEIGHBOURHOODS AND ENVIRONMENT,PATTERSONS BRISTOL LTD,04/11/2020,4.92,CONSUMABLES,V001635642
ROCHDALE BOROUGH COUNCIL,04/11/2020,NEIGHBOURHOODS AND ENVIRONMENT,PATTERSONS BRISTOL LTD,04/11/2020,2.73,CLEANING MATERIALS,V001635642
ROCHDALE BOROUGH COUNCIL,04/11/2020,NEIGHBOURHOODS AND ENVIRONMENT,PATTERSONS BRISTOL LTD,04/11/2020,3.6,CLEANING EQUIPMENT,V001635643
ROCHDALE BOROUGH COUNCIL,04/11/2020,NEIGHBOURHOODS AND ENVIRONMENT,PATTERSONS BRISTOL LTD,04/11/2020,12.08,CLEANING MATERIALS,V001635643
ROCHDALE BOROUGH COUNCIL,04/11/2020,NEIGHBOURHOODS AND ENVIRONMENT,PATTERSONS BRISTOL LTD,04/11/2020,6.68,CLEANING MATERIALS,V001635643
ROCHDALE BOROUGH COUNCIL,04/11/2020,NEIGHBOURHOODS AND ENVIRONMENT,PATTERSONS BRISTOL LTD,04/11/2020,9.4,CLEANING MATERIALS,V001635643
ROCHDALE BOROUGH COUNCIL,04/11/2020,NEIGHBOURHOODS AND ENVIRONMENT,PATTERSONS BRISTOL LTD,04/11/2020,14.9,CLEANING MATERIALS,V001635643
ROCHDALE BOROUGH COUNCIL,04/11/2020,NEIGHBOURHOODS AND ENVIRONMENT,PATTERSONS BRISTOL LTD,04/11/2020,10.77,CONSUMABLES,V001635643
ROCHDALE BOROUGH COUNCIL,04/11/2020,NEIGHBOURHOODS AND ENVIRONMENT,PATTERSONS BRISTOL LTD,04/11/2020,3.3,CONSUMABLES,V001635643
ROCHDALE BOROUGH COUNCIL,18/11/2020,NEIGHBOURHOODS AND ENVIRONMENT,PATTERSONS BRISTOL LTD,18/11/2020,1.74,CLEANING MATERIALS,V001635644
ROCHDALE BOROUGH COUNCIL,18/11/2020,NEIGHBOURHOODS AND ENVIRONMENT,PATTERSONS BRISTOL LTD,18/11/2020,1.09,CLEANING EQUIPMENT,V001635644
ROCHDALE BOROUGH COUNCIL,18/11/2020,NEIGHBOURHOODS AND ENVIRONMENT,PATTERSONS BRISTOL LTD,18/11/2020,14.4,CLEANING EQUIPMENT,V001635644
ROCHDALE BOROUGH COUNCIL,18/11/2020,NEIGHBOURHOODS AND ENVIRONMENT,PATTERSONS BRISTOL LTD,18/11/2020,14.4,CLEANING EQUIPMENT,V001635644
ROCHDALE BOROUGH COUNCIL,18/11/2020,NEIGHBOURHOODS AND ENVIRONMENT,PATTERSONS BRISTOL LTD,18/11/2020,3.27,CLEANING EQUIPMENT,V001635644
ROCHDALE BOROUGH COUNCIL,18/11/2020,NEIGHBOURHOODS AND ENVIRONMENT,PATTERSONS BRISTOL LTD,18/11/2020,2.51,CLEANING EQUIPMENT,V001635644
ROCHDALE BOROUGH COUNCIL,18/11/2020,NEIGHBOURHOODS AND ENVIRONMENT,PATTERSONS BRISTOL LTD,18/11/2020,11.4,CLEANING MATERIALS,V001635644
ROCHDALE BOROUGH COUNCIL,18/11/2020,NEIGHBOURHOODS AND ENVIRONMENT,PATTERSONS BRISTOL LTD,18/11/2020,12.66,CLEANING EQUIPMENT,V001635644
ROCHDALE BOROUGH COUNCIL,18/11/2020,NEIGHBOURHOODS AND ENVIRONMENT,PATTERSONS BRISTOL LTD,18/11/2020,14.56,CLEANING MATERIALS,V001635644
ROCHDALE BOROUGH COUNCIL,18/11/2020,NEIGHBOURHOODS AND ENVIRONMENT,PATTERSONS BRISTOL LTD,18/11/2020,14.1,CLEANING MATERIALS,V001635644
ROCHDALE BOROUGH COUNCIL,18/11/2020,NEIGHBOURHOODS AND ENVIRONMENT,PATTERSONS BRISTOL LTD,18/11/2020,11.36,CLEANING MATERIALS,V001635644
ROCHDALE BOROUGH COUNCIL,18/11/2020,NEIGHBOURHOODS AND ENVIRONMENT,PATTERSONS BRISTOL LTD,18/11/2020,1.43,CLEANING MATERIALS,V001635644
ROCHDALE BOROUGH COUNCIL,18/11/2020,NEIGHBOURHOODS AND ENVIRONMENT,PATTERSONS BRISTOL LTD,18/11/2020,1.43,CLEANING MATERIALS,V001635644
ROCHDALE BOROUGH COUNCIL,18/11/2020,NEIGHBOURHOODS AND ENVIRONMENT,PATTERSONS BRISTOL LTD,18/11/2020,3.04,CLEANING MATERIALS,V001635644
ROCHDALE BOROUGH COUNCIL,18/11/2020,NEIGHBOURHOODS AND ENVIRONMENT,PATTERSONS BRISTOL LTD,18/11/2020,29.8,CLEANING MATERIALS,V001635644
ROCHDALE BOROUGH COUNCIL,18/11/2020,NEIGHBOURHOODS AND ENVIRONMENT,PATTERSONS BRISTOL LTD,18/11/2020,5.7,CLEANING MATERIALS,V001635644
ROCHDALE BOROUGH COUNCIL,18/11/2020,NEIGHBOURHOODS AND ENVIRONMENT,PATTERSONS BRISTOL LTD,18/11/2020,3.34,CLEANING MATERIALS,V001635644
ROCHDALE BOROUGH COUNCIL,18/11/2020,NEIGHBOURHOODS AND ENVIRONMENT,PATTERSONS BRISTOL LTD,18/11/2020,3.18,CLEANING EQUIPMENT,V001635644
ROCHDALE BOROUGH COUNCIL,18/11/2020,NEIGHBOURHOODS AND ENVIRONMENT,PATTERSONS BRISTOL LTD,18/11/2020,7.28,CLEANING MATERIALS,V001635644
ROCHDALE BOROUGH COUNCIL,04/11/2020,NEIGHBOURHOODS AND ENVIRONMENT,PATTERSONS BRISTOL LTD,04/11/2020,1.4,CLEANING EQUIPMENT,V001635645
ROCHDALE BOROUGH COUNCIL,04/11/2020,NEIGHBOURHOODS AND ENVIRONMENT,PATTERSONS BRISTOL LTD,04/11/2020,3.6,CLEANING EQUIPMENT,V001635645
ROCHDALE BOROUGH COUNCIL,04/11/2020,NEIGHBOURHOODS AND ENVIRONMENT,PATTERSONS BRISTOL LTD,04/11/2020,3.6,CLEANING EQUIPMENT,V001635645
ROCHDALE BOROUGH COUNCIL,04/11/2020,NEIGHBOURHOODS AND ENVIRONMENT,PATTERSONS BRISTOL LTD,04/11/2020,2.02,CLEANING MATERIALS,V001635645
ROCHDALE BOROUGH COUNCIL,04/11/2020,NEIGHBOURHOODS AND ENVIRONMENT,PATTERSONS BRISTOL LTD,04/11/2020,2.85,CLEANING MATERIALS,V001635645
ROCHDALE BOROUGH COUNCIL,04/11/2020,NEIGHBOURHOODS AND ENVIRONMENT,PATTERSONS BRISTOL LTD,04/11/2020,24.2,CLEANING EQUIPMENT,V001635645
ROCHDALE BOROUGH COUNCIL,05/11/2020,NEIGHBOURHOODS AND ENVIRONMENT,PATTERSONS BRISTOL LTD,05/11/2020,6.63,CLEANING MATERIALS,V001635646
ROCHDALE BOROUGH COUNCIL,05/11/2020,NEIGHBOURHOODS AND ENVIRONMENT,PATTERSONS BRISTOL LTD,05/11/2020,2.46,CONSUMABLES,V001635646
ROCHDALE BOROUGH COUNCIL,05/11/2020,NEIGHBOURHOODS AND ENVIRONMENT,PATTERSONS BRISTOL LTD,05/11/2020,4.42,CONSUMABLES,V001635646
ROCHDALE BOROUGH COUNCIL,05/11/2020,NEIGHBOURHOODS AND ENVIRONMENT,PATTERSONS BRISTOL LTD,05/11/2020,14.27,CLEANING MATERIALS,V001635646
ROCHDALE BOROUGH COUNCIL,04/11/2020,ECONOMY DIRECTORATE,THE UNIVERSITY OF SALFORD,04/11/2020,2545,MINOR BUILDING WORKS,V001635649
ROCHDALE BOROUGH COUNCIL,04/11/2020,ECONOMY DIRECTORATE,THE UNIVERSITY OF SALFORD,04/11/2020,2545,MINOR BUILDING WORKS,V001635649
ROCHDALE BOROUGH COUNCIL,04/11/2020,NEIGHBOURHOODS AND ENVIRONMENT,BMS SUPERFACTORS LIMITED,04/11/2020,154.79,VEHICLE MAINTENANCE,V001635650
ROCHDALE BOROUGH COUNCIL,04/11/2020,NEIGHBOURHOODS AND ENVIRONMENT,BMS SUPERFACTORS LIMITED,04/11/2020,87.5,VEHICLE MAINTENANCE,V001635651
ROCHDALE BOROUGH COUNCIL,04/11/2020,NEIGHBOURHOODS AND ENVIRONMENT,BMS SUPERFACTORS LIMITED,04/11/2020,8.79,VEHICLE MAINTENANCE,V001635652
ROCHDALE BOROUGH COUNCIL,04/11/2020,NEIGHBOURHOODS AND ENVIRONMENT,ARCO GROUP LIMITED,04/11/2020,16.04,"CLOTHES, UNIFORM AND LAUNDRY",V001635653
ROCHDALE BOROUGH COUNCIL,04/11/2020,NEIGHBOURHOODS AND ENVIRONMENT,ARCO GROUP LIMITED,04/11/2020,16.04,"CLOTHES, UNIFORM AND LAUNDRY",V001635653
ROCHDALE BOROUGH COUNCIL,04/11/2020,NEIGHBOURHOODS AND ENVIRONMENT,ARCO GROUP LIMITED,04/11/2020,16.04,"CLOTHES, UNIFORM AND LAUNDRY",V001635653
ROCHDALE BOROUGH COUNCIL,04/11/2020,NEIGHBOURHOODS AND ENVIRONMENT,DALE INDUSTRIAL HOSE & FITTINGS LIMITED,04/11/2020,9,VEHICLE MAINTENANCE,V001635654
ROCHDALE BOROUGH COUNCIL,04/11/2020,NEIGHBOURHOODS AND ENVIRONMENT,DALE INDUSTRIAL HOSE & FITTINGS LIMITED,04/11/2020,9,VEHICLE MAINTENANCE,V001635654
ROCHDALE BOROUGH COUNCIL,04/11/2020,NEIGHBOURHOODS AND ENVIRONMENT,GREENS AUTOMOTIVE,04/11/2020,300,VEHICLE MAINTENANCE,V001635655
ROCHDALE BOROUGH COUNCIL,04/11/2020,NEIGHBOURHOODS AND ENVIRONMENT,BALMERS GM LTD,04/11/2020,41,WEAR AND TEAR,V001635656
ROCHDALE BOROUGH COUNCIL,04/11/2020,NEIGHBOURHOODS AND ENVIRONMENT,BALMERS GM LTD,04/11/2020,41,WEAR AND TEAR,V001635656
ROCHDALE BOROUGH COUNCIL,04/11/2020,NEIGHBOURHOODS AND ENVIRONMENT,BALMERS GM LTD,04/11/2020,39.31,WEAR AND TEAR,V001635656
ROCHDALE BOROUGH COUNCIL,04/11/2020,NEIGHBOURHOODS AND ENVIRONMENT,BALMERS GM LTD,04/11/2020,39.31,WEAR AND TEAR,V001635656
ROCHDALE BOROUGH COUNCIL,04/11/2020,NEIGHBOURHOODS AND ENVIRONMENT,BALMERS GM LTD,04/11/2020,22.5,WEAR AND TEAR,V001635656
ROCHDALE BOROUGH COUNCIL,04/11/2020,NEIGHBOURHOODS AND ENVIRONMENT,BALMERS GM LTD,04/11/2020,22.5,WEAR AND TEAR,V001635656
ROCHDALE BOROUGH COUNCIL,04/11/2020,NEIGHBOURHOODS AND ENVIRONMENT,BALMERS GM LTD,04/11/2020,49.01,WEAR AND TEAR,V001635656
ROCHDALE BOROUGH COUNCIL,04/11/2020,NEIGHBOURHOODS AND ENVIRONMENT,BALMERS GM LTD,04/11/2020,49.01,WEAR AND TEAR,V001635656
ROCHDALE BOROUGH COUNCIL,04/11/2020,NEIGHBOURHOODS AND ENVIRONMENT,BALMERS GM LTD,04/11/2020,32.51,WEAR AND TEAR,V001635656
ROCHDALE BOROUGH COUNCIL,04/11/2020,NEIGHBOURHOODS AND ENVIRONMENT,BALMERS GM LTD,04/11/2020,32.51,WEAR AND TEAR,V001635656
ROCHDALE BOROUGH COUNCIL,04/11/2020,NEIGHBOURHOODS AND ENVIRONMENT,BALMERS GM LTD,04/11/2020,23,WEAR AND TEAR,V001635656
ROCHDALE BOROUGH COUNCIL,04/11/2020,NEIGHBOURHOODS AND ENVIRONMENT,BALMERS GM LTD,04/11/2020,23,WEAR AND TEAR,V001635656
ROCHDALE BOROUGH COUNCIL,04/11/2020,NEIGHBOURHOODS AND ENVIRONMENT,BALMERS GM LTD,04/11/2020,80.01,WEAR AND TEAR,V001635656
ROCHDALE BOROUGH COUNCIL,04/11/2020,NEIGHBOURHOODS AND ENVIRONMENT,BALMERS GM LTD,04/11/2020,80.01,WEAR AND TEAR,V001635656
ROCHDALE BOROUGH COUNCIL,04/11/2020,NEIGHBOURHOODS AND ENVIRONMENT,BALMERS GM LTD,04/11/2020,4.07,WEAR AND TEAR,V001635656
ROCHDALE BOROUGH COUNCIL,04/11/2020,NEIGHBOURHOODS AND ENVIRONMENT,BALMERS GM LTD,04/11/2020,4.07,WEAR AND TEAR,V001635656
ROCHDALE BOROUGH COUNCIL,04/11/2020,NEIGHBOURHOODS AND ENVIRONMENT,FAUN ZOELLER UK LTD,04/11/2020,109,VEHICLE MAINTENANCE,V001635657
ROCHDALE BOROUGH COUNCIL,04/11/2020,NEIGHBOURHOODS AND ENVIRONMENT,FAUN ZOELLER UK LTD,04/11/2020,18.5,VEHICLE MAINTENANCE,V001635657
ROCHDALE BOROUGH COUNCIL,04/11/2020,NEIGHBOURHOODS AND ENVIRONMENT,ROLAND BARNES MAINTENANCE,04/11/2020,149.8,EQUIPMENT - GENERAL,V001635658
ROCHDALE BOROUGH COUNCIL,04/11/2020,NEIGHBOURHOODS AND ENVIRONMENT,ROLAND BARNES MAINTENANCE,04/11/2020,39.9,EQUIPMENT - GENERAL,V001635658
ROCHDALE BOROUGH COUNCIL,04/11/2020,NEIGHBOURHOODS AND ENVIRONMENT,ROLAND BARNES MAINTENANCE,04/11/2020,4.5,EQUIPMENT - GENERAL,V001635658
ROCHDALE BOROUGH COUNCIL,04/11/2020,NEIGHBOURHOODS AND ENVIRONMENT,CALIBRATION ENGINEERING SERVICES LTD,04/11/2020,3430,VEHICLE MAINTENANCE,V001635659
ROCHDALE BOROUGH COUNCIL,04/11/2020,NEIGHBOURHOODS AND ENVIRONMENT,CALIBRATION ENGINEERING SERVICES LTD,04/11/2020,182.5,WEAR AND TEAR,V001635660
ROCHDALE BOROUGH COUNCIL,04/11/2020,NEIGHBOURHOODS AND ENVIRONMENT,BALMERS GM LTD,04/11/2020,45,WEAR AND TEAR,V001635661
ROCHDALE BOROUGH COUNCIL,04/11/2020,NEIGHBOURHOODS AND ENVIRONMENT,BALMERS GM LTD,04/11/2020,45,WEAR AND TEAR,V001635661
ROCHDALE BOROUGH COUNCIL,04/11/2020,NEIGHBOURHOODS AND ENVIRONMENT,BALMERS GM LTD,04/11/2020,16,WEAR AND TEAR,V001635661
ROCHDALE BOROUGH COUNCIL,04/11/2020,NEIGHBOURHOODS AND ENVIRONMENT,BALMERS GM LTD,04/11/2020,16,WEAR AND TEAR,V001635661
ROCHDALE BOROUGH COUNCIL,17/11/2020,NEIGHBOURHOODS AND ENVIRONMENT,PARTSPLUS,17/11/2020,-224.4,VEHICLE MAINTENANCE,V001635662
ROCHDALE BOROUGH COUNCIL,04/11/2020,NEIGHBOURHOODS AND ENVIRONMENT,SLICKER RECYCLING,04/11/2020,184,VEHICLE MAINTENANCE,V001635663
ROCHDALE BOROUGH COUNCIL,04/11/2020,NEIGHBOURHOODS AND ENVIRONMENT,ROLAND BARNES MAINTENANCE,04/11/2020,82.5,EQUIPMENT - GENERAL,V001635664
ROCHDALE BOROUGH COUNCIL,04/11/2020,NEIGHBOURHOODS AND ENVIRONMENT,SLICKER RECYCLING,04/11/2020,225,VEHICLE MAINTENANCE,V001635665
ROCHDALE BOROUGH COUNCIL,04/11/2020,NEIGHBOURHOODS AND ENVIRONMENT,UK TELEMATICS LTD,04/11/2020,3607.47,WEAR AND TEAR,V001635666
ROCHDALE BOROUGH COUNCIL,17/11/2020,NEIGHBOURHOODS AND ENVIRONMENT,AUTO BATTERY SERVICE LTD,17/11/2020,6.95,VEHICLE MAINTENANCE,V001635668
ROCHDALE BOROUGH COUNCIL,04/11/2020,NEIGHBOURHOODS AND ENVIRONMENT,BUCHER MUNICIPAL LTD,04/11/2020,164.76,VEHICLE MAINTENANCE,V001635669
ROCHDALE BOROUGH COUNCIL,04/11/2020,NEIGHBOURHOODS AND ENVIRONMENT,BUCHER MUNICIPAL LTD,04/11/2020,164.76,VEHICLE MAINTENANCE,V001635669
ROCHDALE BOROUGH COUNCIL,04/11/2020,NEIGHBOURHOODS AND ENVIRONMENT,BUCHER MUNICIPAL LTD,04/11/2020,58.36,VEHICLE MAINTENANCE,V001635669
ROCHDALE BOROUGH COUNCIL,04/11/2020,NEIGHBOURHOODS AND ENVIRONMENT,BUCHER MUNICIPAL LTD,04/11/2020,58.36,VEHICLE MAINTENANCE,V001635669
ROCHDALE BOROUGH COUNCIL,04/11/2020,NEIGHBOURHOODS AND ENVIRONMENT,ARCO GROUP LIMITED,04/11/2020,14.31,"CLOTHES, UNIFORM AND LAUNDRY",V001635670
ROCHDALE BOROUGH COUNCIL,04/11/2020,NEIGHBOURHOODS AND ENVIRONMENT,ARCO GROUP LIMITED,04/11/2020,14.31,"CLOTHES, UNIFORM AND LAUNDRY",V001635670
ROCHDALE BOROUGH COUNCIL,04/11/2020,NEIGHBOURHOODS AND ENVIRONMENT,ARCO GROUP LIMITED,04/11/2020,14.31,"CLOTHES, UNIFORM AND LAUNDRY",V001635670
ROCHDALE BOROUGH COUNCIL,04/11/2020,NEIGHBOURHOODS AND ENVIRONMENT,ARCO GROUP LIMITED,04/11/2020,1.86,"CLOTHES, UNIFORM AND LAUNDRY",V001635670
ROCHDALE BOROUGH COUNCIL,04/11/2020,NEIGHBOURHOODS AND ENVIRONMENT,ARCO GROUP LIMITED,04/11/2020,1.86,"CLOTHES, UNIFORM AND LAUNDRY",V001635670
ROCHDALE BOROUGH COUNCIL,04/11/2020,NEIGHBOURHOODS AND ENVIRONMENT,ARCO GROUP LIMITED,04/11/2020,1.86,"CLOTHES, UNIFORM AND LAUNDRY",V001635670
ROCHDALE BOROUGH COUNCIL,04/11/2020,NEIGHBOURHOODS AND ENVIRONMENT,AEBI SCHMIDT UK LIMITED,04/11/2020,15,VEHICLE MAINTENANCE,V001635671
ROCHDALE BOROUGH COUNCIL,04/11/2020,NEIGHBOURHOODS AND ENVIRONMENT,AEBI SCHMIDT UK LIMITED,04/11/2020,411.74,VEHICLE MAINTENANCE,V001635671
ROCHDALE BOROUGH COUNCIL,04/11/2020,NEIGHBOURHOODS AND ENVIRONMENT,AEBI SCHMIDT UK LIMITED,04/11/2020,152.79,VEHICLE MAINTENANCE,V001635671
ROCHDALE BOROUGH COUNCIL,04/11/2020,NEIGHBOURHOODS AND ENVIRONMENT,AEBI SCHMIDT UK LIMITED,04/11/2020,4.89,VEHICLE MAINTENANCE,V001635671
ROCHDALE BOROUGH COUNCIL,04/11/2020,NEIGHBOURHOODS AND ENVIRONMENT,AEBI SCHMIDT UK LIMITED,04/11/2020,11.54,VEHICLE MAINTENANCE,V001635671
ROCHDALE BOROUGH COUNCIL,04/11/2020,NEIGHBOURHOODS AND ENVIRONMENT,AEBI SCHMIDT UK LIMITED,04/11/2020,603.64,VEHICLE MAINTENANCE,V001635672
ROCHDALE BOROUGH COUNCIL,04/11/2020,NEIGHBOURHOODS AND ENVIRONMENT,AEBI SCHMIDT UK LIMITED,04/11/2020,32.5,VEHICLE MAINTENANCE,V001635672
ROCHDALE BOROUGH COUNCIL,17/11/2020,NEIGHBOURHOODS AND ENVIRONMENT,PARTSPLUS,17/11/2020,224.4,VEHICLE MAINTENANCE,V001635673
ROCHDALE BOROUGH COUNCIL,04/11/2020,NEIGHBOURHOODS AND ENVIRONMENT,CICELEY COMMERCIALS LIMITED,04/11/2020,13.23,VEHICLE MAINTENANCE,V001635674
ROCHDALE BOROUGH COUNCIL,04/11/2020,NEIGHBOURHOODS AND ENVIRONMENT,MOTUS COMMERCIALS,04/11/2020,154,VEHICLE MAINTENANCE,V001635675
ROCHDALE BOROUGH COUNCIL,04/11/2020,NEIGHBOURHOODS AND ENVIRONMENT,CICELEY COMMERCIALS LIMITED,04/11/2020,27.97,VEHICLE MAINTENANCE,V001635676
ROCHDALE BOROUGH COUNCIL,04/11/2020,NEIGHBOURHOODS AND ENVIRONMENT,CICELEY COMMERCIALS LIMITED,04/11/2020,1.89,VEHICLE MAINTENANCE,V001635676
ROCHDALE BOROUGH COUNCIL,04/11/2020,NEIGHBOURHOODS AND ENVIRONMENT,PIRTEK OLDHAM,04/11/2020,242.59,VEHICLE MAINTENANCE,V001635677
ROCHDALE BOROUGH COUNCIL,04/11/2020,NEIGHBOURHOODS AND ENVIRONMENT,PIRTEK OLDHAM,04/11/2020,242.59,VEHICLE MAINTENANCE,V001635677
ROCHDALE BOROUGH COUNCIL,04/11/2020,NEIGHBOURHOODS AND ENVIRONMENT,CSB SUPPLIES,04/11/2020,93,VEHICLE MAINTENANCE,V001635678
ROCHDALE BOROUGH COUNCIL,04/11/2020,NEIGHBOURHOODS AND ENVIRONMENT,CSB SUPPLIES,04/11/2020,35.8,"CLOTHES, UNIFORM AND LAUNDRY",V001635679
ROCHDALE BOROUGH COUNCIL,17/11/2020,NEIGHBOURHOODS AND ENVIRONMENT,PARTSPLUS,17/11/2020,-50,VEHICLE MAINTENANCE,V001635680
ROCHDALE BOROUGH COUNCIL,17/11/2020,NEIGHBOURHOODS AND ENVIRONMENT,VIZWEAR,17/11/2020,-14.49,"CLOTHES, UNIFORM AND LAUNDRY",V001635681
ROCHDALE BOROUGH COUNCIL,04/11/2020,NEIGHBOURHOODS AND ENVIRONMENT,ROLAND BARNES MAINTENANCE,04/11/2020,12.74,VEHICLE MAINTENANCE,V001635682
ROCHDALE BOROUGH COUNCIL,04/11/2020,NEIGHBOURHOODS AND ENVIRONMENT,ROLAND BARNES MAINTENANCE,04/11/2020,26.7,VEHICLE MAINTENANCE,V001635682
ROCHDALE BOROUGH COUNCIL,04/11/2020,NEIGHBOURHOODS AND ENVIRONMENT,ROLAND BARNES MAINTENANCE,04/11/2020,14.4,VEHICLE MAINTENANCE,V001635682
ROCHDALE BOROUGH COUNCIL,04/11/2020,NEIGHBOURHOODS AND ENVIRONMENT,ROLAND BARNES MAINTENANCE,04/11/2020,29.6,VEHICLE MAINTENANCE,V001635682
ROCHDALE BOROUGH COUNCIL,04/11/2020,NEIGHBOURHOODS AND ENVIRONMENT,ROLAND BARNES MAINTENANCE,04/11/2020,11.4,VEHICLE MAINTENANCE,V001635682
ROCHDALE BOROUGH COUNCIL,04/11/2020,NEIGHBOURHOODS AND ENVIRONMENT,ROLAND BARNES MAINTENANCE,04/11/2020,20.6,VEHICLE MAINTENANCE,V001635682
ROCHDALE BOROUGH COUNCIL,04/11/2020,NEIGHBOURHOODS AND ENVIRONMENT,ROLAND BARNES MAINTENANCE,04/11/2020,33,VEHICLE MAINTENANCE,V001635682
ROCHDALE BOROUGH COUNCIL,04/11/2020,NEIGHBOURHOODS AND ENVIRONMENT,ROLAND BARNES MAINTENANCE,04/11/2020,12.9,EQUIPMENT - GENERAL,V001635683
ROCHDALE BOROUGH COUNCIL,04/11/2020,NEIGHBOURHOODS AND ENVIRONMENT,ROLAND BARNES MAINTENANCE,04/11/2020,14,VEHICLE MAINTENANCE,V001635684
ROCHDALE BOROUGH COUNCIL,04/11/2020,NEIGHBOURHOODS AND ENVIRONMENT,ROLAND BARNES MAINTENANCE,04/11/2020,11.1,VEHICLE MAINTENANCE,V001635684
ROCHDALE BOROUGH COUNCIL,04/11/2020,NEIGHBOURHOODS AND ENVIRONMENT,ROLAND BARNES MAINTENANCE,04/11/2020,9.9,VEHICLE MAINTENANCE,V001635684
ROCHDALE BOROUGH COUNCIL,04/11/2020,NEIGHBOURHOODS AND ENVIRONMENT,ROLAND BARNES MAINTENANCE,04/11/2020,109.5,VEHICLE MAINTENANCE,V001635684
ROCHDALE BOROUGH COUNCIL,04/11/2020,NEIGHBOURHOODS AND ENVIRONMENT,ROLAND BARNES MAINTENANCE,04/11/2020,26.25,VEHICLE MAINTENANCE,V001635684
ROCHDALE BOROUGH COUNCIL,04/11/2020,NEIGHBOURHOODS AND ENVIRONMENT,ROLAND BARNES MAINTENANCE,04/11/2020,14.85,VEHICLE MAINTENANCE,V001635684
ROCHDALE BOROUGH COUNCIL,04/11/2020,NEIGHBOURHOODS AND ENVIRONMENT,ROLAND BARNES MAINTENANCE,04/11/2020,5.6,VEHICLE MAINTENANCE,V001635684
ROCHDALE BOROUGH COUNCIL,04/11/2020,NEIGHBOURHOODS AND ENVIRONMENT,ROLAND BARNES MAINTENANCE,04/11/2020,15.4,VEHICLE MAINTENANCE,V001635684
ROCHDALE BOROUGH COUNCIL,04/11/2020,NEIGHBOURHOODS AND ENVIRONMENT,ROLAND BARNES MAINTENANCE,04/11/2020,35.08,VEHICLE MAINTENANCE,V001635684
ROCHDALE BOROUGH COUNCIL,04/11/2020,NEIGHBOURHOODS AND ENVIRONMENT,ROLAND BARNES MAINTENANCE,04/11/2020,69.95,VEHICLE MAINTENANCE,V001635684
ROCHDALE BOROUGH COUNCIL,04/11/2020,NEIGHBOURHOODS AND ENVIRONMENT,ROLAND BARNES MAINTENANCE,04/11/2020,4.16,VEHICLE MAINTENANCE,V001635684
ROCHDALE BOROUGH COUNCIL,04/11/2020,NEIGHBOURHOODS AND ENVIRONMENT,ROLAND BARNES MAINTENANCE,04/11/2020,4.1,VEHICLE MAINTENANCE,V001635684
ROCHDALE BOROUGH COUNCIL,04/11/2020,NEIGHBOURHOODS AND ENVIRONMENT,ROLAND BARNES MAINTENANCE,04/11/2020,11.2,VEHICLE MAINTENANCE,V001635684
ROCHDALE BOROUGH COUNCIL,04/11/2020,NEIGHBOURHOODS AND ENVIRONMENT,ROLAND BARNES MAINTENANCE,04/11/2020,14,VEHICLE MAINTENANCE,V001635684
ROCHDALE BOROUGH COUNCIL,04/11/2020,NEIGHBOURHOODS AND ENVIRONMENT,ROLAND BARNES MAINTENANCE,04/11/2020,4.95,VEHICLE MAINTENANCE,V001635684
ROCHDALE BOROUGH COUNCIL,04/11/2020,NEIGHBOURHOODS AND ENVIRONMENT,ROLAND BARNES MAINTENANCE,04/11/2020,10.98,VEHICLE MAINTENANCE,V001635684
ROCHDALE BOROUGH COUNCIL,04/11/2020,NEIGHBOURHOODS AND ENVIRONMENT,ROLAND BARNES MAINTENANCE,04/11/2020,9.98,VEHICLE MAINTENANCE,V001635684
ROCHDALE BOROUGH COUNCIL,04/11/2020,NEIGHBOURHOODS AND ENVIRONMENT,ROLAND BARNES MAINTENANCE,04/11/2020,294.4,EQUIPMENT - GENERAL,V001635685
ROCHDALE BOROUGH COUNCIL,04/11/2020,NEIGHBOURHOODS AND ENVIRONMENT,CICELEY COMMERCIALS LIMITED,04/11/2020,46.74,VEHICLE MAINTENANCE,V001635686
ROCHDALE BOROUGH COUNCIL,04/11/2020,NEIGHBOURHOODS AND ENVIRONMENT,CICELEY COMMERCIALS LIMITED,04/11/2020,46.74,VEHICLE MAINTENANCE,V001635686
ROCHDALE BOROUGH COUNCIL,04/11/2020,NEIGHBOURHOODS AND ENVIRONMENT,CICELEY COMMERCIALS LIMITED,04/11/2020,73.26,VEHICLE MAINTENANCE,V001635687
ROCHDALE BOROUGH COUNCIL,04/11/2020,NEIGHBOURHOODS AND ENVIRONMENT,CICELEY COMMERCIALS LIMITED,04/11/2020,331.8,VEHICLE MAINTENANCE,V001635687
ROCHDALE BOROUGH COUNCIL,04/11/2020,NEIGHBOURHOODS AND ENVIRONMENT,CICELEY COMMERCIALS LIMITED,04/11/2020,18.48,VEHICLE MAINTENANCE,V001635687
ROCHDALE BOROUGH COUNCIL,04/11/2020,NEIGHBOURHOODS AND ENVIRONMENT,CICELEY COMMERCIALS LIMITED,04/11/2020,36.96,VEHICLE MAINTENANCE,V001635687
ROCHDALE BOROUGH COUNCIL,04/11/2020,NEIGHBOURHOODS AND ENVIRONMENT,CICELEY COMMERCIALS LIMITED,04/11/2020,208.8,VEHICLE MAINTENANCE,V001635688
ROCHDALE BOROUGH COUNCIL,04/11/2020,NEIGHBOURHOODS AND ENVIRONMENT,CICELEY COMMERCIALS LIMITED,04/11/2020,29.79,VEHICLE MAINTENANCE,V001635688
ROCHDALE BOROUGH COUNCIL,04/11/2020,NEIGHBOURHOODS AND ENVIRONMENT,FAUN ZOELLER UK LTD,04/11/2020,150,VEHICLE MAINTENANCE,V001635689
ROCHDALE BOROUGH COUNCIL,04/11/2020,NEIGHBOURHOODS AND ENVIRONMENT,FAUN ZOELLER UK LTD,04/11/2020,14,VEHICLE MAINTENANCE,V001635689
ROCHDALE BOROUGH COUNCIL,04/11/2020,NEIGHBOURHOODS AND ENVIRONMENT,ARCO GROUP LIMITED,04/11/2020,-28.62,"CLOTHES, UNIFORM AND LAUNDRY",V001635690
ROCHDALE BOROUGH COUNCIL,04/11/2020,NEIGHBOURHOODS AND ENVIRONMENT,ARCO GROUP LIMITED,04/11/2020,-28.62,"CLOTHES, UNIFORM AND LAUNDRY",V001635690
ROCHDALE BOROUGH COUNCIL,04/11/2020,NEIGHBOURHOODS AND ENVIRONMENT,ARCO GROUP LIMITED,04/11/2020,-28.62,"CLOTHES, UNIFORM AND LAUNDRY",V001635690
ROCHDALE BOROUGH COUNCIL,04/11/2020,NEIGHBOURHOODS AND ENVIRONMENT,THE WINDSCREEN PEOPLE LTD,04/11/2020,185,VEHICLE MAINTENANCE,V001635692
ROCHDALE BOROUGH COUNCIL,04/11/2020,NEIGHBOURHOODS AND ENVIRONMENT,KEN TAYLOR SUPPLIES LTD,04/11/2020,35,TRANSACTIONS-EXPENDITURE,V001635693
ROCHDALE BOROUGH COUNCIL,04/11/2020,NEIGHBOURHOODS AND ENVIRONMENT,KEN TAYLOR SUPPLIES LTD,04/11/2020,54,TRANSACTIONS-EXPENDITURE,V001635693
ROCHDALE BOROUGH COUNCIL,04/11/2020,NEIGHBOURHOODS AND ENVIRONMENT,MOTUS COMMERCIALS,04/11/2020,3431.47,VEHICLE MAINTENANCE,V001635694
ROCHDALE BOROUGH COUNCIL,04/11/2020,NEIGHBOURHOODS AND ENVIRONMENT,BALMERS GM LTD,04/11/2020,750,TYRES,V001635695
ROCHDALE BOROUGH COUNCIL,04/11/2020,NEIGHBOURHOODS AND ENVIRONMENT,BALMERS GM LTD,04/11/2020,750,TYRES,V001635695
ROCHDALE BOROUGH COUNCIL,04/11/2020,NEIGHBOURHOODS AND ENVIRONMENT,RIPON FARM SERVICES,04/11/2020,62.45,VEHICLE MAINTENANCE,V001635696
ROCHDALE BOROUGH COUNCIL,04/11/2020,NEIGHBOURHOODS AND ENVIRONMENT,RIPON FARM SERVICES,04/11/2020,553.55,VEHICLE MAINTENANCE,V001635697
ROCHDALE BOROUGH COUNCIL,04/11/2020,NEIGHBOURHOODS AND ENVIRONMENT,MARLO PRODUCTS LIMITED,04/11/2020,475.2,TRANSACTIONS-EXPENDITURE,V001635698
ROCHDALE BOROUGH COUNCIL,04/11/2020,NEIGHBOURHOODS AND ENVIRONMENT,MARLO PRODUCTS LIMITED,04/11/2020,475.2,TRANSACTIONS-EXPENDITURE,V001635698
ROCHDALE BOROUGH COUNCIL,04/11/2020,NEIGHBOURHOODS AND ENVIRONMENT,HAVENPOWER,04/11/2020,2515.44,ELECTRICITY,V001635699
ROCHDALE BOROUGH COUNCIL,04/11/2020,NEIGHBOURHOODS AND ENVIRONMENT,HAVENPOWER,04/11/2020,647.93,ELECTRICITY,V001635699
ROCHDALE BOROUGH COUNCIL,04/11/2020,NEIGHBOURHOODS AND ENVIRONMENT,HAVENPOWER,04/11/2020,2541.69,ELECTRICITY,V001635699
ROCHDALE BOROUGH COUNCIL,04/11/2020,ECONOMY DIRECTORATE,HAVENPOWER,04/11/2020,202.05,ELECTRICITY,V001635699
ROCHDALE BOROUGH COUNCIL,04/11/2020,NEIGHBOURHOODS AND ENVIRONMENT,HAVENPOWER,04/11/2020,143.45,ELECTRICITY,V001635699
ROCHDALE BOROUGH COUNCIL,04/11/2020,NEIGHBOURHOODS AND ENVIRONMENT,HAVENPOWER,04/11/2020,135.87,ELECTRICITY,V001635699
ROCHDALE BOROUGH COUNCIL,04/11/2020,ECONOMY DIRECTORATE,HAVENPOWER,04/11/2020,1062.98,ELECTRICITY,V001635699
ROCHDALE BOROUGH COUNCIL,04/11/2020,ECONOMY DIRECTORATE,HAVENPOWER,04/11/2020,157.19,ELECTRICITY,V001635699
ROCHDALE BOROUGH COUNCIL,04/11/2020,ECONOMY DIRECTORATE,HAVENPOWER,04/11/2020,859.56,ELECTRICITY,V001635699
ROCHDALE BOROUGH COUNCIL,04/11/2020,NEIGHBOURHOODS AND ENVIRONMENT,HAVENPOWER,04/11/2020,89.77,ELECTRICITY,V001635699
ROCHDALE BOROUGH COUNCIL,04/11/2020,NEIGHBOURHOODS AND ENVIRONMENT,HAVENPOWER,04/11/2020,17981.58,ELECTRICITY,V001635699
ROCHDALE BOROUGH COUNCIL,04/11/2020,NEIGHBOURHOODS AND ENVIRONMENT,HAVENPOWER,04/11/2020,1604.47,ELECTRICITY,V001635699
ROCHDALE BOROUGH COUNCIL,04/11/2020,ECONOMY DIRECTORATE,HAVENPOWER,04/11/2020,2191.18,ELECTRICITY,V001635699
ROCHDALE BOROUGH COUNCIL,05/11/2020,PROPERTY AND HIGHWAYS,HAVENPOWER,05/11/2020,2652.49,ELECTRICITY,V001635701
ROCHDALE BOROUGH COUNCIL,05/11/2020,CHILDREN�S SOCIAL CARE,HAVENPOWER,05/11/2020,1385.03,ELECTRICITY,V001635701
ROCHDALE BOROUGH COUNCIL,05/11/2020,NEIGHBOURHOODS AND ENVIRONMENT,HAVENPOWER,05/11/2020,22.54,ELECTRICITY,V001635701
ROCHDALE BOROUGH COUNCIL,05/11/2020,EARLY HELP AND SCHOOLS,HAVENPOWER,05/11/2020,90.68,ELECTRICITY,V001635701
ROCHDALE BOROUGH COUNCIL,05/11/2020,EARLY HELP AND SCHOOLS,HAVENPOWER,05/11/2020,268.66,ELECTRICITY,V001635701
ROCHDALE BOROUGH COUNCIL,04/11/2020,BETTER CARE FUND POOLED BUDGET,N COMPASS,04/11/2020,40560.09,CONTRACTS,V001635702
ROCHDALE BOROUGH COUNCIL,04/11/2020,CHILDREN�S SOCIAL CARE,PARADIGM PROFESSIONAL CONSULTANCY LTD,04/11/2020,1401,AGENCY STAFF,V001635703
ROCHDALE BOROUGH COUNCIL,04/11/2020,CHILDREN�S SOCIAL CARE,PARADIGM PROFESSIONAL CONSULTANCY LTD,04/11/2020,1860,AGENCY STAFF,V001635704
ROCHDALE BOROUGH COUNCIL,04/11/2020,CHILDREN�S SOCIAL CARE,PARADIGM PROFESSIONAL CONSULTANCY LTD,04/11/2020,131.25,AGENCY STAFF,V001635705
ROCHDALE BOROUGH COUNCIL,04/11/2020,CHILDREN�S SOCIAL CARE,PARADIGM PROFESSIONAL CONSULTANCY LTD,04/11/2020,1003.5,AGENCY STAFF,V001635706
ROCHDALE BOROUGH COUNCIL,04/11/2020,CHILDREN�S SOCIAL CARE,PARADIGM PROFESSIONAL CONSULTANCY LTD,04/11/2020,1387.5,AGENCY STAFF,V001635707
ROCHDALE BOROUGH COUNCIL,04/11/2020,CHILDREN�S SOCIAL CARE,PARADIGM PROFESSIONAL CONSULTANCY LTD,04/11/2020,621.9,AGENCY STAFF,V001635708
ROCHDALE BOROUGH COUNCIL,04/11/2020,CHILDREN�S SOCIAL CARE,PARADIGM PROFESSIONAL CONSULTANCY LTD,04/11/2020,1400.55,AGENCY STAFF,V001635709
ROCHDALE BOROUGH COUNCIL,04/11/2020,CHILDREN�S SOCIAL CARE,PARADIGM PROFESSIONAL CONSULTANCY LTD,04/11/2020,1405.5,AGENCY STAFF,V001635710
ROCHDALE BOROUGH COUNCIL,04/11/2020,CHILDREN�S SOCIAL CARE,PARADIGM PROFESSIONAL CONSULTANCY LTD,04/11/2020,1460.85,AGENCY STAFF,V001635711
ROCHDALE BOROUGH COUNCIL,04/11/2020,CHILDREN�S SOCIAL CARE,PARADIGM PROFESSIONAL CONSULTANCY LTD,04/11/2020,1425.3,AGENCY STAFF,V001635712
ROCHDALE BOROUGH COUNCIL,04/11/2020,ECONOMY DIRECTORATE,ERIC WRIGHT CONSTRUCTION LTD,04/11/2020,3197.04,RENTS,V001635713
ROCHDALE BOROUGH COUNCIL,04/11/2020,ECONOMY DIRECTORATE,ERIC WRIGHT CONSTRUCTION LTD,04/11/2020,3197.04,RENTS,V001635714
ROCHDALE BOROUGH COUNCIL,04/11/2020,ECONOMY DIRECTORATE,ERIC WRIGHT CONSTRUCTION LTD,04/11/2020,2025,RENTS,V001635715
ROCHDALE BOROUGH COUNCIL,04/11/2020,ECONOMY DIRECTORATE,ERIC WRIGHT CONSTRUCTION LTD,04/11/2020,909.87,RENTS,V001635716
ROCHDALE BOROUGH COUNCIL,04/11/2020,ECONOMY DIRECTORATE,ERIC WRIGHT CONSTRUCTION LTD,04/11/2020,27918.75,RENTS,V001635717
ROCHDALE BOROUGH COUNCIL,16/11/2020,ECONOMY DIRECTORATE,ADT FIRE & SECURITY PLC,16/11/2020,246,SECURITY,V001635718
ROCHDALE BOROUGH COUNCIL,16/11/2020,ECONOMY DIRECTORATE,ADT FIRE & SECURITY PLC,16/11/2020,534.45,MAINTENANCE,V001635719
ROCHDALE BOROUGH COUNCIL,04/11/2020,ECONOMY DIRECTORATE,ERIC WRIGHT CONSTRUCTION LTD,04/11/2020,12544.32,RENTS,V001635721
ROCHDALE BOROUGH COUNCIL,04/11/2020,ECONOMY DIRECTORATE,ERIC WRIGHT CONSTRUCTION LTD,04/11/2020,3197.04,RENTS,V001635722
ROCHDALE BOROUGH COUNCIL,04/11/2020,ECONOMY DIRECTORATE,ERIC WRIGHT CONSTRUCTION LTD,04/11/2020,27918.75,RENTS,V001635723
ROCHDALE BOROUGH COUNCIL,04/11/2020,ECONOMY DIRECTORATE,ERIC WRIGHT CONSTRUCTION LTD,04/11/2020,2025,RENTS,V001635724
ROCHDALE BOROUGH COUNCIL,04/11/2020,ECONOMY DIRECTORATE,ERIC WRIGHT CONSTRUCTION LTD,04/11/2020,189.75,RENTS,V001635725
ROCHDALE BOROUGH COUNCIL,04/11/2020,ECONOMY DIRECTORATE,ERIC WRIGHT CONSTRUCTION LTD,04/11/2020,3197.04,RENTS,V001635726
ROCHDALE BOROUGH COUNCIL,04/11/2020,ECONOMY DIRECTORATE,ERIC WRIGHT CONSTRUCTION LTD,04/11/2020,3197.04,RENTS,V001635727
ROCHDALE BOROUGH COUNCIL,04/11/2020,ECONOMY DIRECTORATE,ERIC WRIGHT CONSTRUCTION LTD,04/11/2020,3197.04,RENTS,V001635728
ROCHDALE BOROUGH COUNCIL,04/11/2020,ECONOMY DIRECTORATE,ERIC WRIGHT CONSTRUCTION LTD,04/11/2020,3197.04,RENTS,V001635729
ROCHDALE BOROUGH COUNCIL,04/11/2020,CHILDREN�S SOCIAL CARE,REDACTED - PERSONAL DATA,04/11/2020,50,CHILDRENS SUBSISTENCE,V001635730
ROCHDALE BOROUGH COUNCIL,04/11/2020,CHILDREN�S SOCIAL CARE,REDACTED - PERSONAL DATA,04/11/2020,50,CHILDRENS SUBSISTENCE,V001635731
ROCHDALE BOROUGH COUNCIL,04/11/2020,CHILDREN�S SOCIAL CARE,REDACTED - PERSONAL DATA,04/11/2020,50,CHILDRENS SUBSISTENCE,V001635732
ROCHDALE BOROUGH COUNCIL,10/11/2020,CHILDREN�S SOCIAL CARE,STEP AHEAD,10/11/2020,1200,YOUNG PEOPLES RENTS,V001635733
ROCHDALE BOROUGH COUNCIL,05/11/2020,NEIGHBOURHOODS AND ENVIRONMENT,AGROVISTA UK LTD,05/11/2020,4212,EQUIPMENT - GENERAL,V001635734
ROCHDALE BOROUGH COUNCIL,05/11/2020,RESOURCES,NORTHGATE PUBLIC SERVICES UK LTD,05/11/2020,146.62,POSTAGE,V001635737
ROCHDALE BOROUGH COUNCIL,05/11/2020,PROPERTY AND HIGHWAYS,ARCO GROUP LIMITED,05/11/2020,53.08,MINOR BUILDING WORKS,V001635738
ROCHDALE BOROUGH COUNCIL,05/11/2020,PROPERTY AND HIGHWAYS,ARCO GROUP LIMITED,05/11/2020,53.08,MINOR BUILDING WORKS,V001635738
ROCHDALE BOROUGH COUNCIL,05/11/2020,PROPERTY AND HIGHWAYS,ARCO GROUP LIMITED,05/11/2020,53.08,MINOR BUILDING WORKS,V001635738
ROCHDALE BOROUGH COUNCIL,05/11/2020,ECONOMY DIRECTORATE,FERNS REMOVALS,05/11/2020,120,REPAIRS & ALTS OF BUILDINGS,V001635739
ROCHDALE BOROUGH COUNCIL,05/11/2020,PROPERTY AND HIGHWAYS,TRAFFIC GB LTD,05/11/2020,900,MINOR BUILDING WORKS,V001635740
ROCHDALE BOROUGH COUNCIL,09/11/2020,PROPERTY AND HIGHWAYS,GMCA,09/11/2020,64559.3,MINOR BUILDING WORKS,V001635741
ROCHDALE BOROUGH COUNCIL,09/11/2020,PROPERTY AND HIGHWAYS,GMCA,09/11/2020,60691.07,MINOR BUILDING WORKS,V001635742
ROCHDALE BOROUGH COUNCIL,09/11/2020,PROPERTY AND HIGHWAYS,GMCA,09/11/2020,33468.17,MINOR BUILDING WORKS,V001635743
ROCHDALE BOROUGH COUNCIL,09/11/2020,PROPERTY AND HIGHWAYS,REACH PUBLISHING SERVICES LTD,09/11/2020,81.07,ADVERTISING,V001635744
ROCHDALE BOROUGH COUNCIL,09/11/2020,PROPERTY AND HIGHWAYS,REACH PUBLISHING SERVICES LTD,09/11/2020,60.8,ADVERTISING,V001635745
ROCHDALE BOROUGH COUNCIL,05/11/2020,ECONOMY DIRECTORATE,G2 RECRUITMENT SOLUTIONS LTD,05/11/2020,1487.5,AGENCY STAFF,V001635746
ROCHDALE BOROUGH COUNCIL,05/11/2020,ECONOMY DIRECTORATE,G2 RECRUITMENT SOLUTIONS LTD,05/11/2020,1510.3,AGENCY STAFF,V001635747
ROCHDALE BOROUGH COUNCIL,05/11/2020,PROPERTY AND HIGHWAYS,ELECTRIC CENTER,05/11/2020,26.82,PROPERTY - WORKS ELEMENT,V001635748
ROCHDALE BOROUGH COUNCIL,05/11/2020,PROPERTY AND HIGHWAYS,ELECTRIC CENTER,05/11/2020,66,PROPERTY - WORKS ELEMENT,V001635749
ROCHDALE BOROUGH COUNCIL,05/11/2020,PROPERTY AND HIGHWAYS,ELECTRIC CENTER,05/11/2020,108,PROPERTY - WORKS ELEMENT,V001635750
ROCHDALE BOROUGH COUNCIL,05/11/2020,PROPERTY AND HIGHWAYS,ELECTRIC CENTER,05/11/2020,34.13,PROPERTY - WORKS ELEMENT,V001635751
ROCHDALE BOROUGH COUNCIL,05/11/2020,PROPERTY AND HIGHWAYS,BROWNS LADDERS AND CEILINGS LIMITED,05/11/2020,300,MAINTENANCE,V001635752
ROCHDALE BOROUGH COUNCIL,05/11/2020,PROPERTY AND HIGHWAYS,BROWNS LADDERS AND CEILINGS LIMITED,05/11/2020,300,MAINTENANCE,V001635752
ROCHDALE BOROUGH COUNCIL,09/11/2020,PROPERTY AND HIGHWAYS,FW SHERRATT LTD,09/11/2020,4664.89,ROADWORKS,V001635753
ROCHDALE BOROUGH COUNCIL,09/11/2020,PROPERTY AND HIGHWAYS,FW SHERRATT LTD,09/11/2020,1035,ROADWORKS,V001635754
ROCHDALE BOROUGH COUNCIL,05/11/2020,NEIGHBOURHOODS AND ENVIRONMENT,NORTHWEST ASBESTOS REMOVALS LTD,05/11/2020,220,ASBESTOS,V001635755
ROCHDALE BOROUGH COUNCIL,09/11/2020,PROPERTY AND HIGHWAYS,CALEDONIAN LIFTS MANCHESTER LTD,09/11/2020,50,PROPERTY - WORKS ELEMENT,V001635756
ROCHDALE BOROUGH COUNCIL,09/11/2020,NEIGHBOURHOODS AND ENVIRONMENT,NORTHWEST ASBESTOS REMOVALS LTD,09/11/2020,1500,ASBESTOS,V001635757
ROCHDALE BOROUGH COUNCIL,09/11/2020,ECONOMY DIRECTORATE,ABC INDUSTRIAL DOORS LTD,09/11/2020,150.5,ELECTRICAL,V001635758
ROCHDALE BOROUGH COUNCIL,11/11/2020,NEIGHBOURHOODS AND ENVIRONMENT,GRAFFIC  DETAIL,11/11/2020,340,PRINTING,V001635759
ROCHDALE BOROUGH COUNCIL,27/11/2020,NEIGHBOURHOODS AND ENVIRONMENT,ALLIANCE DISPOSABLES LIMITED,27/11/2020,787.5,CONSUMABLES,V001635760
ROCHDALE BOROUGH COUNCIL,05/11/2020,ECONOMY DIRECTORATE,BANNER GROUP LIMITED,05/11/2020,5.1,PRINTING & STATIONERY,V001635762
ROCHDALE BOROUGH COUNCIL,05/11/2020,NEIGHBOURHOODS AND ENVIRONMENT,WHISTL UK LTD,05/11/2020,187.2,TRANSACTIONS-EXPENDITURE,V001635763
ROCHDALE BOROUGH COUNCIL,17/11/2020,NEIGHBOURHOODS AND ENVIRONMENT,SOFTCAT LTD,17/11/2020,366.3,SOFTWARE,V001635764
ROCHDALE BOROUGH COUNCIL,06/11/2020,ECONOMY DIRECTORATE,GTM ELECTRICAL SERVICES LIMITED,06/11/2020,2302.35,SECURITY,V001635766
ROCHDALE BOROUGH COUNCIL,06/11/2020,ECONOMY DIRECTORATE,GTM ELECTRICAL SERVICES LIMITED,06/11/2020,108.7,SECURITY,V001635767
ROCHDALE BOROUGH COUNCIL,06/11/2020,ADULT CARE LCO FUNCTIONS,THE PENNINE ACUTE HOSPITALS NHS TRUST,06/11/2020,4480.5,SERVICE LEVEL AGREEMENTS,V001635768
ROCHDALE BOROUGH COUNCIL,13/11/2020,PROPERTY AND HIGHWAYS,ABBEY ARCHITECTURAL IRONMONGERY CO LTD,13/11/2020,5.19,PROPERTY - WORKS ELEMENT,V001635769
ROCHDALE BOROUGH COUNCIL,06/11/2020,PROPERTY AND HIGHWAYS,ABBEY ARCHITECTURAL IRONMONGERY CO LTD,06/11/2020,13.32,PROPERTY - WORKS ELEMENT,V001635770
ROCHDALE BOROUGH COUNCIL,25/11/2020,ADULT CARE LCO FUNCTIONS,ABBEY ARCHITECTURAL IRONMONGERY CO LTD,25/11/2020,60.2,EQUIPMENT - GENERAL,V001635771
ROCHDALE BOROUGH COUNCIL,05/11/2020,CHILDREN�S SOCIAL CARE,BEYOND PSYCHOLOGY LTD,05/11/2020,2460,MEDICAL FEES,V001635772
ROCHDALE BOROUGH COUNCIL,12/11/2020,CHILDREN�S SOCIAL CARE,FIRST AFFINITY FOSTERING SERVICES LTD,12/11/2020,3822.18,FOSTER PARENTS BASIC ALLOWANCE,V001635774
ROCHDALE BOROUGH COUNCIL,12/11/2020,CHILDREN�S SOCIAL CARE,FIRST AFFINITY FOSTERING SERVICES LTD,12/11/2020,3720,FOSTER PARENTS BASIC ALLOWANCE,V001635775
ROCHDALE BOROUGH COUNCIL,12/11/2020,CHILDREN�S SOCIAL CARE,FIRST AFFINITY FOSTERING SERVICES LTD,12/11/2020,3587.01,FOSTER PARENTS BASIC ALLOWANCE,V001635776
ROCHDALE BOROUGH COUNCIL,06/11/2020,PROPERTY AND HIGHWAYS,DDH FABRICATIONS LTD,06/11/2020,310,PROPERTY - WORKS ELEMENT,V001635777
ROCHDALE BOROUGH COUNCIL,05/11/2020,NEIGHBOURHOODS AND ENVIRONMENT,LUBBE & SONS LTD,05/11/2020,47,"TREES, SHRUBS, PLANTS",V001635779
ROCHDALE BOROUGH COUNCIL,05/11/2020,NEIGHBOURHOODS AND ENVIRONMENT,LUBBE & SONS LTD,05/11/2020,47,"TREES, SHRUBS, PLANTS",V001635779
ROCHDALE BOROUGH COUNCIL,05/11/2020,NEIGHBOURHOODS AND ENVIRONMENT,FOREST FUELS LTD,05/11/2020,1024.32,ENERGY COSTS,V001635780
ROCHDALE BOROUGH COUNCIL,09/11/2020,PROPERTY AND HIGHWAYS,W J LEWIS BUILDERS MERCHANTS LIMITED,09/11/2020,3.03,PROPERTY - WORKS ELEMENT,V001635781
ROCHDALE BOROUGH COUNCIL,05/11/2020,NEIGHBOURHOODS AND ENVIRONMENT,GW4 LTD,05/11/2020,35,COURIER SERVICE,V001635783
ROCHDALE BOROUGH COUNCIL,16/11/2020,CHILDREN�S SOCIAL CARE,BRYN MELYN CARE LTD,16/11/2020,17714.29,EBD (EMOT & BEHAV DIFF) PLACEMENTS,V001635785
ROCHDALE BOROUGH COUNCIL,06/11/2020,PROPERTY AND HIGHWAYS,WOLSELEY UK LIMITED,06/11/2020,27.07,BUILDING MATERIALS,V001635787
ROCHDALE BOROUGH COUNCIL,06/11/2020,ADULT CARE LCO FUNCTIONS,BARTON KENDAL RESIDENTIAL LTD,06/11/2020,100,PROFESSIONAL FEES,V001635789
ROCHDALE BOROUGH COUNCIL,06/11/2020,ECONOMY DIRECTORATE,S HALLIWELL LANDSCAPES LTD,06/11/2020,240,SPECIFIED MAINTENANCE,V001635792
ROCHDALE BOROUGH COUNCIL,06/11/2020,PROPERTY AND HIGHWAYS,ABBEY ARCHITECTURAL IRONMONGERY CO LTD,06/11/2020,4.87,PROPERTY - WORKS ELEMENT,V001635793
ROCHDALE BOROUGH COUNCIL,09/11/2020,ECONOMY DIRECTORATE,S HALLIWELL LANDSCAPES LTD,09/11/2020,1650,SPECIFIED MAINTENANCE,V001635794
ROCHDALE BOROUGH COUNCIL,18/11/2020,ADULT CARE LCO FUNCTIONS,STANNAH LIFT SERVICES LTD,18/11/2020,3372,MINOR BUILDING WORKS,V001635795
ROCHDALE BOROUGH COUNCIL,06/11/2020,NEIGHBOURHOODS AND ENVIRONMENT,LANCASHIRE LOCK AND SAFE COMPANY LIMITED,06/11/2020,24,EQUIPMENT - GENERAL,V001635797
ROCHDALE BOROUGH COUNCIL,12/11/2020,NEIGHBOURHOODS AND ENVIRONMENT,LANCASHIRE LOCK AND SAFE COMPANY LIMITED,12/11/2020,12,EQUIPMENT - GENERAL,V001635798
ROCHDALE BOROUGH COUNCIL,18/11/2020,EARLY HELP AND SCHOOLS,CARTWHEEL ARTS,18/11/2020,650,ACTIVITIES,V001635799
ROCHDALE BOROUGH COUNCIL,05/11/2020,NEIGHBOURHOODS AND ENVIRONMENT,CSB SUPPLIES,05/11/2020,325,EQUIPMENT - GENERAL,V001635800
ROCHDALE BOROUGH COUNCIL,05/11/2020,NEIGHBOURHOODS AND ENVIRONMENT,CSB SUPPLIES,05/11/2020,167.5,EQUIPMENT - GENERAL,V001635800
ROCHDALE BOROUGH COUNCIL,05/11/2020,NEIGHBOURHOODS AND ENVIRONMENT,CSB SUPPLIES,05/11/2020,187.5,EQUIPMENT - GENERAL,V001635801
ROCHDALE BOROUGH COUNCIL,05/11/2020,ECONOMY DIRECTORATE,WSP LTD UK,05/11/2020,18043,ACTIVITIES,V001635802
ROCHDALE BOROUGH COUNCIL,05/11/2020,NEIGHBOURHOODS AND ENVIRONMENT,CSB SUPPLIES,05/11/2020,1125,EQUIPMENT - GENERAL,V001635803
ROCHDALE BOROUGH COUNCIL,05/11/2020,EARLY HELP AND SCHOOLS,PHOENIX SOFTWARE LIMITED,05/11/2020,401.1,SOFTWARE,V001635805
ROCHDALE BOROUGH COUNCIL,05/11/2020,EARLY HELP AND SCHOOLS,PHOENIX SOFTWARE LIMITED,05/11/2020,401.1,SOFTWARE,V001635805
ROCHDALE BOROUGH COUNCIL,05/11/2020,NEIGHBOURHOODS AND ENVIRONMENT,PHOENIX SOFTWARE LIMITED,05/11/2020,84.97,SOFTWARE,V001635806
ROCHDALE BOROUGH COUNCIL,05/11/2020,NEIGHBOURHOODS AND ENVIRONMENT,PHOENIX SOFTWARE LIMITED,05/11/2020,84.97,SOFTWARE,V001635806
ROCHDALE BOROUGH COUNCIL,05/11/2020,NEIGHBOURHOODS AND ENVIRONMENT,BANNER GROUP LIMITED,05/11/2020,1560,CONSUMABLES,V001635807
ROCHDALE BOROUGH COUNCIL,05/11/2020,EARLY HELP AND SCHOOLS,CARTWHEEL ARTS,05/11/2020,200,ACTIVITIES,V001635808
ROCHDALE BOROUGH COUNCIL,05/11/2020,NEIGHBOURHOODS AND ENVIRONMENT,GTM ELECTRICAL SERVICES LIMITED,05/11/2020,15,REPAIRS & ALTS OF BUILDINGS,V001635809
ROCHDALE BOROUGH COUNCIL,05/11/2020,NEIGHBOURHOODS AND ENVIRONMENT,PATTERSONS BRISTOL LTD,05/11/2020,55.02,CONSUMABLES,V001635810
ROCHDALE BOROUGH COUNCIL,06/11/2020,NEIGHBOURHOODS AND ENVIRONMENT,REDFOX COUNTRYSIDE SERVICES,06/11/2020,5940,ENVIRONMENTAL WORKS LANDSCAPE,V001635812
ROCHDALE BOROUGH COUNCIL,06/11/2020,PROPERTY AND HIGHWAYS,WOLSELEY UK LIMITED,06/11/2020,43.31,BUILDING MATERIALS,V001635813
ROCHDALE BOROUGH COUNCIL,06/11/2020,ECONOMY DIRECTORATE,ACS BUSINESS SUPPLIES,06/11/2020,149.97,PRINTING & STATIONERY,V001635814
ROCHDALE BOROUGH COUNCIL,10/11/2020,ECONOMY DIRECTORATE,PTSG ELECTRICAL SERVICES LTD,10/11/2020,347,ELECTRICAL,V001635815
